Publisher Label,Publisher URI,Body Name,Service Area Categorisation,Service Division Categorisation,Expenses Type,Date,Transaction Number,Amount,Capital or Revenue,Supplier Name,Merchant Category
Peterborough,http://opendatacommunities.org/id/unitary-authority/peterborough,Peterborough City Council,Planning Services,Building Control,Employees,01/04/2015 00:00,639204,3096,REVENUE,Autec Ind Training & Educational Centre,TRAINING
Peterborough,http://opendatacommunities.org/id/unitary-authority/peterborough,Peterborough City Council,Adult Social Care,Older People,Supplies and Services,01/04/2015 00:00,674013,559.8,REVENUE,Housing 21,HOME CARE
Peterborough,http://opendatacommunities.org/id/unitary-authority/peterborough,Peterborough City Council,Adult Social Care,Older People,Supplies and Services,01/04/2015 00:00,674027,541.14,REVENUE,Housing 21,HOME CARE
Peterborough,http://opendatacommunities.org/id/unitary-authority/peterborough,Peterborough City Council,Adult Social Care,Older People,Supplies and Services,01/04/2015 00:00,674038,547.36,REVENUE,Housing 21,HOME CARE
Peterborough,http://opendatacommunities.org/id/unitary-authority/peterborough,Peterborough City Council,Adult Social Care,Older People,Supplies and Services,01/04/2015 00:00,674040,531.81,REVENUE,Housing 21,HOME CARE
Peterborough,http://opendatacommunities.org/id/unitary-authority/peterborough,Peterborough City Council,Adult Social Care,Older People,Supplies and Services,01/04/2015 00:00,674059,531.81,REVENUE,Housing 21,HOME CARE
Peterborough,http://opendatacommunities.org/id/unitary-authority/peterborough,Peterborough City Council,Adult Social Care,Older People,Supplies and Services,01/04/2015 00:00,674060,544.25,REVENUE,Housing 21,HOME CARE
Peterborough,http://opendatacommunities.org/id/unitary-authority/peterborough,Peterborough City Council,Adult Social Care,Older People,Supplies and Services,01/04/2015 00:00,676477,1548.12,REVENUE,BUPA Care Homes,RESIDENTIAL CARE
Peterborough,http://opendatacommunities.org/id/unitary-authority/peterborough,Peterborough City Council,Adult Social Care,Older People,Supplies and Services,01/04/2015 00:00,676478,-552.9,REVENUE,BUPA Care Homes,RESIDENTIAL CARE
Peterborough,http://opendatacommunities.org/id/unitary-authority/peterborough,Peterborough City Council,Adult Social Care,Older People,Supplies and Services,01/04/2015 00:00,679122,1858.76,REVENUE,BUPA Care Homes,RESIDENTIAL CARE
Peterborough,http://opendatacommunities.org/id/unitary-authority/peterborough,Peterborough City Council,Adult Social Care,Older People,Supplies and Services,01/04/2015 00:00,681138,575.35,REVENUE,Housing 21,HOME CARE
Peterborough,http://opendatacommunities.org/id/unitary-authority/peterborough,Peterborough City Council,Adult Social Care,Older People,Supplies and Services,01/04/2015 00:00,683143,989.56,REVENUE,Housing 21,HOME CARE
Peterborough,http://opendatacommunities.org/id/unitary-authority/peterborough,Peterborough City Council,Adult Social Care,Older People,Supplies and Services,01/04/2015 00:00,686898,1018.6,REVENUE,St Margarets Rest Home,RESIDENTIAL CARE
Peterborough,http://opendatacommunities.org/id/unitary-authority/peterborough,Peterborough City Council,Adult Social Care,Adult Mental Health,Supplies and Services,01/04/2015 00:00,690342,2968.04,REVENUE,The Regard Partnership Limited,PROFESSIONAL SERVICES
Peterborough,http://opendatacommunities.org/id/unitary-authority/peterborough,Peterborough City Council,Adult Social Care,Older People,Supplies and Services,01/04/2015 00:00,691827,584.68,REVENUE,Housing 21,HOME CARE
Peterborough,http://opendatacommunities.org/id/unitary-authority/peterborough,Peterborough City Council,Adult Social Care,Adult Learning Disabilities,Supplies and Services,01/04/2015 00:00,691974,3211.2,REVENUE,SOCIAL CARE SOLUTIONS LTD,HOME CARE
Peterborough,http://opendatacommunities.org/id/unitary-authority/peterborough,Peterborough City Council,Adult Social Care,Older People,Supplies and Services,01/04/2015 00:00,696060,640.66,REVENUE,Housing 21,HOME CARE
Peterborough,http://opendatacommunities.org/id/unitary-authority/peterborough,Peterborough City Council,Adult Social Care,Older People,Supplies and Services,01/04/2015 00:00,697807,2148.16,REVENUE,BUPA Care Homes,RESIDENTIAL CARE
Peterborough,http://opendatacommunities.org/id/unitary-authority/peterborough,Peterborough City Council,Adult Social Care,Social Care Activities,Employees,01/04/2015 00:00,697931,1260,REVENUE,Caritas Recruitment,EXTERNAL TEMPORARY STAFF
Peterborough,http://opendatacommunities.org/id/unitary-authority/peterborough,Peterborough City Council,Adult Social Care,Social Care Activities,Employees,01/04/2015 00:00,700150,1554,REVENUE,Caritas Recruitment,EXTERNAL TEMPORARY STAFF
Peterborough,http://opendatacommunities.org/id/unitary-authority/peterborough,Peterborough City Council,Adult Social Care,Older People,Supplies and Services,01/04/2015 00:00,700417,805.73,REVENUE,Housing 21,HOME CARE
Peterborough,http://opendatacommunities.org/id/unitary-authority/peterborough,Peterborough City Council,Support Services,Support Services,Supplies and Services,01/04/2015 00:00,701053,791.28,REVENUE,Whitewater Graphics & Design Ltd,PRINTING
Peterborough,http://opendatacommunities.org/id/unitary-authority/peterborough,Peterborough City Council,Adult Social Care,Older People,Supplies and Services,01/04/2015 00:00,702796,2428.57,REVENUE,Longueville Court (Barchester),RESIDENTIAL CARE
Peterborough,http://opendatacommunities.org/id/unitary-authority/peterborough,Peterborough City Council,Adult Social Care,Social Care Activities,Employees,01/04/2015 00:00,705133,1575,REVENUE,Caritas Recruitment,EXTERNAL TEMPORARY STAFF
Peterborough,http://opendatacommunities.org/id/unitary-authority/peterborough,Peterborough City Council,Environmental and Regulatory Services,"Cemetery, Crematorium & Mortuary Services",Supplies and Services,01/04/2015 00:00,705825,678,REVENUE,Fenland Stoneworks,SPECIAL PROJECTS
Peterborough,http://opendatacommunities.org/id/unitary-authority/peterborough,Peterborough City Council,Planning Services,Building Control,Employees,01/04/2015 00:00,705939,-2451,REVENUE,Autec Ind Training & Educational Centre,TRAINING
Peterborough,http://opendatacommunities.org/id/unitary-authority/peterborough,Peterborough City Council,Central Services to the Public,Registrar,Premises,01/04/2015 00:00,709406,3245,REVENUE,The Lawns(Peterborough) Ltd,SERVICE CHARGES
Peterborough,http://opendatacommunities.org/id/unitary-authority/peterborough,Peterborough City Council,Adult Social Care,Older People,Supplies and Services,01/04/2015 00:00,710689,1247.84,REVENUE,Avery Homes (Nelson) Ltd,RESIDENTIAL CARE
Peterborough,http://opendatacommunities.org/id/unitary-authority/peterborough,Peterborough City Council,Adult Social Care,Adult Physical Disability & Sensory Impairment,Supplies and Services,01/04/2015 00:00,710698,4000,REVENUE,Longueville Court (Barchester),RESIDENTIAL CARE
Peterborough,http://opendatacommunities.org/id/unitary-authority/peterborough,Peterborough City Council,Adult Social Care,Older People,Supplies and Services,01/04/2015 00:00,711393,8103.89,REVENUE,Autism Care (UK) Ltd,RESIDENTIAL CARE
Peterborough,http://opendatacommunities.org/id/unitary-authority/peterborough,Peterborough City Council,Highways and Transport Services,"Transport planning, policy and strategy",Transport,01/04/2015 00:00,711806,5402.4,REVENUE,Hertfordshire County Council,TRANSPORT ADMINISTRATION
Peterborough,http://opendatacommunities.org/id/unitary-authority/peterborough,Peterborough City Council,Support Services,Support Services,Supplies and Services,01/04/2015 00:00,712171,-791.28,REVENUE,Whitewater Graphics & Design Ltd,PRINTING
Peterborough,http://opendatacommunities.org/id/unitary-authority/peterborough,Peterborough City Council,Adult Social Care,Older People,Supplies and Services,01/04/2015 00:00,712550,1821.88,REVENUE,FIELD HOUSE (EYE) LTD,RESIDENTIAL CARE
Peterborough,http://opendatacommunities.org/id/unitary-authority/peterborough,Peterborough City Council,Adult Social Care,Older People,Supplies and Services,01/04/2015 00:00,712562,1041.07,REVENUE,FIELD HOUSE (EYE) LTD,RESIDENTIAL CARE
Peterborough,http://opendatacommunities.org/id/unitary-authority/peterborough,Peterborough City Council,Adult Social Care,Older People,Supplies and Services,01/04/2015 00:00,712571,1821.88,REVENUE,FIELD HOUSE (EYE) LTD,RESIDENTIAL CARE
Peterborough,http://opendatacommunities.org/id/unitary-authority/peterborough,Peterborough City Council,Adult Social Care,Older People,Supplies and Services,01/04/2015 00:00,713221,1626.68,REVENUE,FIELD HOUSE (EYE) LTD,RESIDENTIAL CARE
Peterborough,http://opendatacommunities.org/id/unitary-authority/peterborough,Peterborough City Council,Adult Social Care,Older People,Supplies and Services,01/04/2015 00:00,713226,3083.16,REVENUE,FIELD HOUSE (EYE) LTD,RESIDENTIAL CARE
Peterborough,http://opendatacommunities.org/id/unitary-authority/peterborough,Peterborough City Council,Adult Social Care,Older People,Supplies and Services,01/04/2015 00:00,713227,1797.88,REVENUE,FIELD HOUSE (EYE) LTD,RESIDENTIAL CARE
Peterborough,http://opendatacommunities.org/id/unitary-authority/peterborough,Peterborough City Council,Adult Social Care,Older People,Supplies and Services,01/04/2015 00:00,713228,1821.88,REVENUE,FIELD HOUSE (EYE) LTD,RESIDENTIAL CARE
Peterborough,http://opendatacommunities.org/id/unitary-authority/peterborough,Peterborough City Council,Adult Social Care,Older People,Supplies and Services,01/04/2015 00:00,714569,1870.5,REVENUE,BUPA Care Homes,RESIDENTIAL CARE
Peterborough,http://opendatacommunities.org/id/unitary-authority/peterborough,Peterborough City Council,Adult Social Care,Older People,Supplies and Services,01/04/2015 00:00,714594,800.28,REVENUE,BUPA Care Homes,RESIDENTIAL CARE
Peterborough,http://opendatacommunities.org/id/unitary-authority/peterborough,Peterborough City Council,Adult Social Care,Older People,Supplies and Services,01/04/2015 00:00,714823,1647.08,REVENUE,BUPA Care Homes,RESIDENTIAL CARE
Peterborough,http://opendatacommunities.org/id/unitary-authority/peterborough,Peterborough City Council,Adult Social Care,Older People,Supplies and Services,01/04/2015 00:00,714826,1422.11,REVENUE,BUPA Care Homes,RESIDENTIAL CARE
Peterborough,http://opendatacommunities.org/id/unitary-authority/peterborough,Peterborough City Council,Children's & Education Services - Children's Social Care,Other Children's & Families Services,Employees,01/04/2015 00:00,715541,1344,REVENUE,Medicare First,EXTERNAL TEMPORARY STAFF
Peterborough,http://opendatacommunities.org/id/unitary-authority/peterborough,Peterborough City Council,Children's & Education Services - Children's Social Care,Other Children's & Families Services,Employees,01/04/2015 00:00,716618,1532.7,REVENUE,Eden Brown Ltd,EXTERNAL TEMPORARY STAFF
Peterborough,http://opendatacommunities.org/id/unitary-authority/peterborough,Peterborough City Council,Adult Social Care,Older People,Supplies and Services,01/04/2015 00:00,716845,634.44,REVENUE,Housing 21,HOME CARE
Peterborough,http://opendatacommunities.org/id/unitary-authority/peterborough,Peterborough City Council,Adult Social Care,Older People,Supplies and Services,01/04/2015 00:00,716857,786.46,REVENUE,Housing 21,HOME CARE
Peterborough,http://opendatacommunities.org/id/unitary-authority/peterborough,Peterborough City Council,Adult Social Care,Older People,Supplies and Services,01/04/2015 00:00,716901,612.67,REVENUE,Housing 21,HOME CARE
Peterborough,http://opendatacommunities.org/id/unitary-authority/peterborough,Peterborough City Council,Adult Social Care,Older People,Supplies and Services,01/04/2015 00:00,716916,609.56,REVENUE,Housing 21,HOME CARE
Peterborough,http://opendatacommunities.org/id/unitary-authority/peterborough,Peterborough City Council,Children's & Education Services - Children's Social Care,Services to Young People,Supplies and Services,01/04/2015 00:00,717639,2198.05,REVENUE,Beech Clinic,PURCHASED SOCIAL CARE SERVICES
Peterborough,http://opendatacommunities.org/id/unitary-authority/peterborough,Peterborough City Council,Adult Social Care,Split,Supplies and Services,01/04/2015 00:00,718545,2104.2,REVENUE,Cresset Leisure Services Ltd,HOSPITALITY
Peterborough,http://opendatacommunities.org/id/unitary-authority/peterborough,Peterborough City Council,Adult Social Care,Older People,Supplies and Services,01/04/2015 00:00,719298,1727.2,REVENUE,Augusta Care Ltd,HOME CARE
Peterborough,http://opendatacommunities.org/id/unitary-authority/peterborough,Peterborough City Council,Children's & Education Services - Children's Social Care,Other Children's & Families Services,Employees,01/04/2015 00:00,719306,1332,REVENUE,Sanctuary Personnel Ltd,EXTERNAL TEMPORARY STAFF
Peterborough,http://opendatacommunities.org/id/unitary-authority/peterborough,Peterborough City Council,More than one Service Area Category,More than one Service Division,Employees,01/04/2015 00:00,719409,1204.99,REVENUE,The Synergy Group,EXTERNAL TEMPORARY STAFF
Peterborough,http://opendatacommunities.org/id/unitary-authority/peterborough,Peterborough City Council,Children's & Education Services - Children's Social Care,Other Children's & Families Services,Employees,01/04/2015 00:00,720017,2114.16,REVENUE,Eden Brown Ltd,EXTERNAL TEMPORARY STAFF
Peterborough,http://opendatacommunities.org/id/unitary-authority/peterborough,Peterborough City Council,Children's & Education Services - Children's Social Care,Other Children's & Families Services,Employees,01/04/2015 00:00,720021,1659.3,REVENUE,Eden Brown Ltd,EXTERNAL TEMPORARY STAFF
Peterborough,http://opendatacommunities.org/id/unitary-authority/peterborough,Peterborough City Council,Children's & Education Services - Children's Social Care,Other Children's & Families Services,Employees,01/04/2015 00:00,720025,1658.22,REVENUE,Eden Brown Ltd,EXTERNAL TEMPORARY STAFF
Peterborough,http://opendatacommunities.org/id/unitary-authority/peterborough,Peterborough City Council,Children's & Education Services - Children's Social Care,Other Children's & Families Services,Employees,01/04/2015 00:00,720033,1732.5,REVENUE,Eden Brown Ltd,EXTERNAL TEMPORARY STAFF
Peterborough,http://opendatacommunities.org/id/unitary-authority/peterborough,Peterborough City Council,Children's & Education Services - Children's Social Care,Other Children's & Families Services,Employees,01/04/2015 00:00,720036,1753.38,REVENUE,Eden Brown Ltd,EXTERNAL TEMPORARY STAFF
Peterborough,http://opendatacommunities.org/id/unitary-authority/peterborough,Peterborough City Council,Children's & Education Services - Children's Social Care,Other Children's & Families Services,Employees,01/04/2015 00:00,720040,1776.06,REVENUE,Eden Brown Ltd,EXTERNAL TEMPORARY STAFF
Peterborough,http://opendatacommunities.org/id/unitary-authority/peterborough,Peterborough City Council,Public Health,Public Health Advice,Employees,01/04/2015 00:00,720121,12528,REVENUE,Panoramic Associates Limited,EXTERNAL TEMPORARY STAFF
Peterborough,http://opendatacommunities.org/id/unitary-authority/peterborough,Peterborough City Council,Children's & Education Services - Children's Social Care,Children Looked After,Supplies and Services - Transfer Payments,01/04/2015 00:00,720183,5390,REVENUE,Care Success Solutions Ltd,BOARDING - OUT ALLOWANCES
Peterborough,http://opendatacommunities.org/id/unitary-authority/peterborough,Peterborough City Council,Children's & Education Services - Children's Social Care,Children Looked After,Supplies and Services - Transfer Payments,01/04/2015 00:00,720187,8215,REVENUE,Ellern Mede School,BOARDING - OUT ALLOWANCES
Peterborough,http://opendatacommunities.org/id/unitary-authority/peterborough,Peterborough City Council,Adult Social Care,Older People,Supplies and Services,01/04/2015 00:00,720478,541.99,REVENUE,K2 CARE LTD,HOME CARE
Peterborough,http://opendatacommunities.org/id/unitary-authority/peterborough,Peterborough City Council,Children's & Education Services - Children's Social Care,Children Looked After,Supplies and Services - Transfer Payments,01/04/2015 00:00,720615,3057.6,REVENUE,National Fostering Agency,BOARDING - OUT ALLOWANCES
Peterborough,http://opendatacommunities.org/id/unitary-authority/peterborough,Peterborough City Council,Children's & Education Services - Education,Other Children's & Families Services,Supplies and Services,01/04/2015 00:00,720655,18000,REVENUE,CIPFA,CONSULTANTS FEES
Peterborough,http://opendatacommunities.org/id/unitary-authority/peterborough,Peterborough City Council,Adult Social Care,Social Care Activities,Employees,01/04/2015 00:00,720801,1677.88,REVENUE,Liquid Personnel,EXTERNAL TEMPORARY STAFF
Peterborough,http://opendatacommunities.org/id/unitary-authority/peterborough,Peterborough City Council,Adult Social Care,Assistive Equipment and Technology,Supplies and Services,01/04/2015 00:00,720824,601.45,REVENUE,Medpage Limited T/A Easylink UK,HEALTH & SAFETY
Peterborough,http://opendatacommunities.org/id/unitary-authority/peterborough,Peterborough City Council,Support Services,Support Services,Employees,01/04/2015 00:00,720829,1989.9,REVENUE,The Synergy Group,EXTERNAL TEMPORARY STAFF
Peterborough,http://opendatacommunities.org/id/unitary-authority/peterborough,Peterborough City Council,Support Services,Support Services,Employees,01/04/2015 00:00,720830,1216.06,REVENUE,The Synergy Group,EXTERNAL TEMPORARY STAFF
Peterborough,http://opendatacommunities.org/id/unitary-authority/peterborough,Peterborough City Council,Support Services,Support Services,Employees,01/04/2015 00:00,720832,1868.29,REVENUE,The Synergy Group,EXTERNAL TEMPORARY STAFF
Peterborough,http://opendatacommunities.org/id/unitary-authority/peterborough,Peterborough City Council,Children's & Education Services - Children's Social Care,More than one Service Division,Supplies and Services - Transfer Payments,01/04/2015 00:00,720912,21560,REVENUE,East Sussex Council,BOARDING - OUT ALLOWANCES
Peterborough,http://opendatacommunities.org/id/unitary-authority/peterborough,Peterborough City Council,Housing Services,Private Sector Housing Renewal,Supplies and Services,01/04/2015 00:00,721015,1202.75,REVENUE,Home and Garden Mann,CONTRACTORS
Peterborough,http://opendatacommunities.org/id/unitary-authority/peterborough,Peterborough City Council,Capital,Capital,Capital Pending Update to BS,01/04/2015 00:00,721042,3760.8,CAPITAL,Lock it Safe,BUILDING AND SITE WORKS
Peterborough,http://opendatacommunities.org/id/unitary-authority/peterborough,Peterborough City Council,Support Services,Support Services,Supplies and Services,01/04/2015 00:00,721066,1626.4,REVENUE,Pitney Bowes Ltd,LICENCES
Peterborough,http://opendatacommunities.org/id/unitary-authority/peterborough,Peterborough City Council,Adult Social Care,Older People,Supplies and Services,01/04/2015 00:00,721399,1598.52,REVENUE,Housing 21,HOME CARE
Peterborough,http://opendatacommunities.org/id/unitary-authority/peterborough,Peterborough City Council,Support Services,Support Services,Employees,01/04/2015 00:00,721427,2014.55,REVENUE,Venn Group Ltd,EXTERNAL TEMPORARY STAFF
Peterborough,http://opendatacommunities.org/id/unitary-authority/peterborough,Peterborough City Council,Support Services,Support Services,Employees,01/04/2015 00:00,721430,2277.89,REVENUE,Venn Group Ltd,EXTERNAL TEMPORARY STAFF
Peterborough,http://opendatacommunities.org/id/unitary-authority/peterborough,Peterborough City Council,Support Services,Support Services,Employees,01/04/2015 00:00,721431,1591.2,REVENUE,Venn Group Ltd,EXTERNAL TEMPORARY STAFF
Peterborough,http://opendatacommunities.org/id/unitary-authority/peterborough,Peterborough City Council,Children's & Education Services - Children's Social Care,Children Looked After,Employees,01/04/2015 00:00,721572,2224.8,REVENUE,Engage Education,EXTERNAL TEMPORARY STAFF
Peterborough,http://opendatacommunities.org/id/unitary-authority/peterborough,Peterborough City Council,Adult Social Care,Older People,Supplies and Services,01/04/2015 00:00,721576,2045.88,REVENUE,Barchester Newton House Care Home,RESIDENTIAL CARE
Peterborough,http://opendatacommunities.org/id/unitary-authority/peterborough,Peterborough City Council,Adult Social Care,Older People,Supplies and Services,01/04/2015 00:00,721585,1974,REVENUE,Pilgrim Havens,RESIDENTIAL CARE
Peterborough,http://opendatacommunities.org/id/unitary-authority/peterborough,Peterborough City Council,Adult Social Care,Split,Third Party Payments,01/04/2015 00:00,721587,1548.12,REVENUE,Pilgrim Havens,THIRD PARTY PAYMENTS - CONTRACT
Peterborough,http://opendatacommunities.org/id/unitary-authority/peterborough,Peterborough City Council,Adult Social Care,Older People,Supplies and Services,01/04/2015 00:00,721590,1324.16,REVENUE,Pilgrim Havens,RESIDENTIAL CARE
Peterborough,http://opendatacommunities.org/id/unitary-authority/peterborough,Peterborough City Council,Adult Social Care,Older People,Supplies and Services,01/04/2015 00:00,721592,1052.32,REVENUE,Pilgrim Havens,RESIDENTIAL CARE
Peterborough,http://opendatacommunities.org/id/unitary-authority/peterborough,Peterborough City Council,Children's & Education Services - Children's Social Care,Children Looked After,Employees,01/04/2015 00:00,721632,936,REVENUE,Engage Education,EXTERNAL TEMPORARY STAFF
Peterborough,http://opendatacommunities.org/id/unitary-authority/peterborough,Peterborough City Council,Children's & Education Services - Children's Social Care,Children Looked After,Supplies and Services - Transfer Payments,01/04/2015 00:00,722131,1604.56,REVENUE,PC Homes,BOARDING - OUT ALLOWANCES
Peterborough,http://opendatacommunities.org/id/unitary-authority/peterborough,Peterborough City Council,Children's & Education Services - Children's Social Care,Children Looked After,Supplies and Services - Transfer Payments,01/04/2015 00:00,722167,1604.56,REVENUE,PC Homes,BOARDING - OUT ALLOWANCES
Peterborough,http://opendatacommunities.org/id/unitary-authority/peterborough,Peterborough City Council,Children's & Education Services - Children's Social Care,Children Looked After,Employees,01/04/2015 00:00,722173,1560,REVENUE,Textbook Teachers,EXTERNAL TEMPORARY STAFF
Peterborough,http://opendatacommunities.org/id/unitary-authority/peterborough,Peterborough City Council,Planning Services,Economic Development,Supplies and Services,01/04/2015 00:00,722176,1420.8,REVENUE,Whitworth Bros Limited,SECURITY
Peterborough,http://opendatacommunities.org/id/unitary-authority/peterborough,Peterborough City Council,Children's & Education Services - Education,Other Education and Community Budget,Supplies and Services,01/04/2015 00:00,722181,1350,REVENUE,Sue Miller Consultant,TRAINING
Peterborough,http://opendatacommunities.org/id/unitary-authority/peterborough,Peterborough City Council,Children's & Education Services - Children's Social Care,Children Looked After,Supplies and Services,01/04/2015 00:00,722319,636.77,REVENUE,Danwood Group Limited,PHOTOCOPIER
Peterborough,http://opendatacommunities.org/id/unitary-authority/peterborough,Peterborough City Council,Planning Services,Economic Development,Employees,01/04/2015 00:00,722382,508.8,REVENUE,Public Policy Exchange,TRAINING
Peterborough,http://opendatacommunities.org/id/unitary-authority/peterborough,Peterborough City Council,Children's & Education Services - Children's Social Care,Other Children's & Families Services,Employees,01/04/2015 00:00,722436,3450,REVENUE,Tempest Resourcing,EXTERNAL TEMPORARY STAFF
Peterborough,http://opendatacommunities.org/id/unitary-authority/peterborough,Peterborough City Council,Highways and Transport Services,Traffic management & Road Safety,Supplies and Services,01/04/2015 00:00,722459,545.09,REVENUE,Johnston Press Midlands Division,ADVERTISING
Peterborough,http://opendatacommunities.org/id/unitary-authority/peterborough,Peterborough City Council,Deficit/(Surplus) on Trading Undertakings,Trading Account Surpluses & Deficits,Premises,01/04/2015 00:00,722463,1541.38,REVENUE,Tesam Distribution Ltd,BUILDING MAINTENANCE
Peterborough,http://opendatacommunities.org/id/unitary-authority/peterborough,Peterborough City Council,Deficit/(Surplus) on Trading Undertakings,Trading Account Surpluses & Deficits,Premises,01/04/2015 00:00,722465,7200,REVENUE,Tesam Distribution Ltd,BUILDING MAINTENANCE
Peterborough,http://opendatacommunities.org/id/unitary-authority/peterborough,Peterborough City Council,Deficit/(Surplus) on Trading Undertakings,Trading Account Surpluses & Deficits,Premises,01/04/2015 00:00,722472,1011.6,REVENUE,Tesam Distribution Ltd,BUILDING MAINTENANCE
Peterborough,http://opendatacommunities.org/id/unitary-authority/peterborough,Peterborough City Council,Deficit/(Surplus) on Trading Undertakings,Trading Account Surpluses & Deficits,Premises,01/04/2015 00:00,722473,738,REVENUE,Tesam Distribution Ltd,BUILDING MAINTENANCE
Peterborough,http://opendatacommunities.org/id/unitary-authority/peterborough,Peterborough City Council,Adult Social Care,Adult Learning Disabilities,Supplies and Services,01/04/2015 00:00,722477,4536,REVENUE,Mencap,HOME CARE
Peterborough,http://opendatacommunities.org/id/unitary-authority/peterborough,Peterborough City Council,Adult Social Care,Adult Learning Disabilities,Supplies and Services,01/04/2015 00:00,722479,792,REVENUE,Mencap,HOME CARE
Peterborough,http://opendatacommunities.org/id/unitary-authority/peterborough,Peterborough City Council,Adult Social Care,Adult Learning Disabilities,Supplies and Services,01/04/2015 00:00,722481,960.08,REVENUE,Mencap,HOME CARE
Peterborough,http://opendatacommunities.org/id/unitary-authority/peterborough,Peterborough City Council,Adult Social Care,Adult Learning Disabilities,Supplies and Services,01/04/2015 00:00,722491,1604.56,REVENUE,Mencap,HOME CARE
Peterborough,http://opendatacommunities.org/id/unitary-authority/peterborough,Peterborough City Council,Adult Social Care,Adult Learning Disabilities,Supplies and Services,01/04/2015 00:00,722493,773.4,REVENUE,Mencap,HOME CARE
Peterborough,http://opendatacommunities.org/id/unitary-authority/peterborough,Peterborough City Council,Adult Social Care,Adult Learning Disabilities,Supplies and Services,01/04/2015 00:00,722497,1214.4,REVENUE,Mencap,HOME CARE
Peterborough,http://opendatacommunities.org/id/unitary-authority/peterborough,Peterborough City Council,Adult Social Care,Adult Learning Disabilities,Supplies and Services,01/04/2015 00:00,722498,3774.2,REVENUE,Mencap,HOME CARE
Peterborough,http://opendatacommunities.org/id/unitary-authority/peterborough,Peterborough City Council,Adult Social Care,Adult Learning Disabilities,Supplies and Services,01/04/2015 00:00,722499,824.88,REVENUE,Mencap,HOME CARE
Peterborough,http://opendatacommunities.org/id/unitary-authority/peterborough,Peterborough City Council,Adult Social Care,Adult Learning Disabilities,Supplies and Services,01/04/2015 00:00,722500,858,REVENUE,Mencap,HOME CARE
Peterborough,http://opendatacommunities.org/id/unitary-authority/peterborough,Peterborough City Council,Adult Social Care,Adult Learning Disabilities,Supplies and Services,01/04/2015 00:00,722503,792,REVENUE,Mencap,HOME CARE
Peterborough,http://opendatacommunities.org/id/unitary-authority/peterborough,Peterborough City Council,Adult Social Care,Adult Learning Disabilities,Supplies and Services,01/04/2015 00:00,722508,6172.8,REVENUE,Mencap,HOME CARE
Peterborough,http://opendatacommunities.org/id/unitary-authority/peterborough,Peterborough City Council,Adult Social Care,Adult Learning Disabilities,Supplies and Services,01/04/2015 00:00,722509,6120,REVENUE,Mencap,HOME CARE
Peterborough,http://opendatacommunities.org/id/unitary-authority/peterborough,Peterborough City Council,Adult Social Care,Adult Learning Disabilities,Supplies and Services,01/04/2015 00:00,722511,739.2,REVENUE,Mencap,HOME CARE
Peterborough,http://opendatacommunities.org/id/unitary-authority/peterborough,Peterborough City Council,Adult Social Care,Adult Learning Disabilities,Supplies and Services,01/04/2015 00:00,722512,805.2,REVENUE,Mencap,HOME CARE
Peterborough,http://opendatacommunities.org/id/unitary-authority/peterborough,Peterborough City Council,Adult Social Care,Adult Learning Disabilities,Supplies and Services,01/04/2015 00:00,722514,633.6,REVENUE,Mencap,HOME CARE
Peterborough,http://opendatacommunities.org/id/unitary-authority/peterborough,Peterborough City Council,Adult Social Care,Adult Learning Disabilities,Supplies and Services,01/04/2015 00:00,722516,1323.88,REVENUE,Mencap,HOME CARE
Peterborough,http://opendatacommunities.org/id/unitary-authority/peterborough,Peterborough City Council,Adult Social Care,Adult Learning Disabilities,Supplies and Services,01/04/2015 00:00,722519,7005.6,REVENUE,Mencap,HOME CARE
Peterborough,http://opendatacommunities.org/id/unitary-authority/peterborough,Peterborough City Council,Environmental and Regulatory Services,Regulatory services,Supplies and Services,01/04/2015 00:00,722548,5626.5,REVENUE,Campbell Associates Ltd,ROUTINE MAINTENANCE
Peterborough,http://opendatacommunities.org/id/unitary-authority/peterborough,Peterborough City Council,Highways and Transport Services,Street Lighting,Premises,01/04/2015 00:00,722560,718.34,REVENUE,E.ON Energy,MAINTENANCE
Peterborough,http://opendatacommunities.org/id/unitary-authority/peterborough,Peterborough City Council,Children's & Education Services - Education,Secondary,Supplies and Services,01/04/2015 00:00,722565,23939.04,REVENUE,IIC by Education (P'boro) Ltd,SERVICE CHARGE
Peterborough,http://opendatacommunities.org/id/unitary-authority/peterborough,Peterborough City Council,Children's & Education Services - Education,Secondary,Supplies and Services,01/04/2015 00:00,722566,4321.85,REVENUE,IIC by Education (P'boro) Ltd,SERVICE CHARGE
Peterborough,http://opendatacommunities.org/id/unitary-authority/peterborough,Peterborough City Council,Children's & Education Services - Children's Social Care,Family Support Services,Supplies and Services,01/04/2015 00:00,722567,3135.2,REVENUE,JCM Seating Solutions,EQUIPMENT
Peterborough,http://opendatacommunities.org/id/unitary-authority/peterborough,Peterborough City Council,Children's & Education Services - Children's Social Care,Family Support Services,Supplies and Services,01/04/2015 00:00,722568,2425.78,REVENUE,JCM Seating Solutions,EQUIPMENT
Peterborough,http://opendatacommunities.org/id/unitary-authority/peterborough,Peterborough City Council,Environmental and Regulatory Services,"Cemetery, Crematorium & Mortuary Services",Supplies and Services,01/04/2015 00:00,722590,1320,REVENUE,Scribes Ltd,MEMORIALS
Peterborough,http://opendatacommunities.org/id/unitary-authority/peterborough,Peterborough City Council,Adult Social Care,Older People,Supplies and Services,01/04/2015 00:00,722619,1021.88,REVENUE,Barchester Healthcare Ltd (Tixover),RESIDENTIAL CARE
Peterborough,http://opendatacommunities.org/id/unitary-authority/peterborough,Peterborough City Council,Adult Social Care,Older People,Supplies and Services,01/04/2015 00:00,722622,960.2,REVENUE,Barchester Healthcare Ltd (Tixover),RESIDENTIAL CARE
Peterborough,http://opendatacommunities.org/id/unitary-authority/peterborough,Peterborough City Council,Children's & Education Services - Children's Social Care,Other Children's & Families Services,Employees,01/04/2015 00:00,722626,605.45,REVENUE,Randstad Care Ltd,EXTERNAL TEMPORARY STAFF
Peterborough,http://opendatacommunities.org/id/unitary-authority/peterborough,Peterborough City Council,Children's & Education Services - Children's Social Care,Services to Young People,Supplies and Services,01/04/2015 00:00,722681,1258.8,REVENUE,Cellmark,HIRED SERVICES
Peterborough,http://opendatacommunities.org/id/unitary-authority/peterborough,Peterborough City Council,Support Services,Support Services,Supplies and Services,01/04/2015 00:00,722739,531.36,REVENUE,Collectica Ltd,DEBT COLLECTION
Peterborough,http://opendatacommunities.org/id/unitary-authority/peterborough,Peterborough City Council,Support Services,Support Services,Supplies and Services,01/04/2015 00:00,722740,950.72,REVENUE,Collectica Ltd,DEBT COLLECTION
Peterborough,http://opendatacommunities.org/id/unitary-authority/peterborough,Peterborough City Council,Children's & Education Services - Children's Social Care,Children Looked After,Supplies and Services - Transfer Payments,01/04/2015 00:00,722754,3430.26,REVENUE,Norfolk County Council,BOARDING - OUT ALLOWANCES
Peterborough,http://opendatacommunities.org/id/unitary-authority/peterborough,Peterborough City Council,Highways and Transport Services,Street Lighting,Premises,01/04/2015 00:00,722756,3239.08,REVENUE,EDF Energy Networks Ltd,ELECTRICITY
Peterborough,http://opendatacommunities.org/id/unitary-authority/peterborough,Peterborough City Council,Public Health,Miscellaneous Public Health Services,Third Party Payments,01/04/2015 00:00,722820,1140,REVENUE,RSPH (Royal Society for Public Health),THIRD PARTY PAYMENTS - CONTRACT
Peterborough,http://opendatacommunities.org/id/unitary-authority/peterborough,Peterborough City Council,Adult Social Care,Adult Mental Health,Supplies and Services,01/04/2015 00:00,722832,2551.32,REVENUE,The Richmond Fellowship,PROFESSIONAL SERVICES
Peterborough,http://opendatacommunities.org/id/unitary-authority/peterborough,Peterborough City Council,Adult Social Care,Split,Third Party Payments,01/04/2015 00:00,722836,7373.24,REVENUE,Housing 21,THIRD PARTY PAYMENTS - CONTRACT
Peterborough,http://opendatacommunities.org/id/unitary-authority/peterborough,Peterborough City Council,Adult Social Care,Adult Mental Health,Supplies and Services,01/04/2015 00:00,722838,3244,REVENUE,The Richmond Fellowship,PROFESSIONAL SERVICES
Peterborough,http://opendatacommunities.org/id/unitary-authority/peterborough,Peterborough City Council,Adult Social Care,Split,Third Party Payments,01/04/2015 00:00,722843,7373.24,REVENUE,Housing 21,THIRD PARTY PAYMENTS - CONTRACT
Peterborough,http://opendatacommunities.org/id/unitary-authority/peterborough,Peterborough City Council,Adult Social Care,Split,Third Party Payments,01/04/2015 00:00,722846,625.52,REVENUE,Housing 21,THIRD PARTY PAYMENTS - CONTRACT
Peterborough,http://opendatacommunities.org/id/unitary-authority/peterborough,Peterborough City Council,Adult Social Care,Split,Supplies and Services,01/04/2015 00:00,722900,1957.2,REVENUE,Cresset Leisure Services Ltd,HOSPITALITY
Peterborough,http://opendatacommunities.org/id/unitary-authority/peterborough,Peterborough City Council,Adult Social Care,Adult Learning Disabilities,Supplies and Services,01/04/2015 00:00,722934,6064.8,REVENUE,SOCIAL CARE SOLUTIONS LTD,HOME CARE
Peterborough,http://opendatacommunities.org/id/unitary-authority/peterborough,Peterborough City Council,Highways and Transport Services,"Transport planning, policy and strategy",Supplies and Services,01/04/2015 00:00,722935,1732.24,REVENUE,Johnston Press Midlands Division,ADVERTISING
Peterborough,http://opendatacommunities.org/id/unitary-authority/peterborough,Peterborough City Council,Adult Social Care,Adult Learning Disabilities,Supplies and Services,01/04/2015 00:00,722944,2863.2,REVENUE,SOCIAL CARE SOLUTIONS LTD,HOME CARE
Peterborough,http://opendatacommunities.org/id/unitary-authority/peterborough,Peterborough City Council,Planning Services,Development Control,Supplies and Services,01/04/2015 00:00,722966,720,REVENUE,Johnston Press Midlands Division,ADVERTISING
Peterborough,http://opendatacommunities.org/id/unitary-authority/peterborough,Peterborough City Council,Adult Social Care,Adult Learning Disabilities,Supplies and Services,01/04/2015 00:00,722967,3223.2,REVENUE,SOCIAL CARE SOLUTIONS LTD,HOME CARE
Peterborough,http://opendatacommunities.org/id/unitary-authority/peterborough,Peterborough City Council,Adult Social Care,Adult Learning Disabilities,Supplies and Services,01/04/2015 00:00,722972,600,REVENUE,SOCIAL CARE SOLUTIONS LTD,HOME CARE
Peterborough,http://opendatacommunities.org/id/unitary-authority/peterborough,Peterborough City Council,Adult Social Care,Adult Learning Disabilities,Supplies and Services,01/04/2015 00:00,722974,4834.8,REVENUE,SOCIAL CARE SOLUTIONS LTD,HOME CARE
Peterborough,http://opendatacommunities.org/id/unitary-authority/peterborough,Peterborough City Council,Adult Social Care,Adult Learning Disabilities,Supplies and Services,01/04/2015 00:00,722977,3211.2,REVENUE,SOCIAL CARE SOLUTIONS LTD,HOME CARE
Peterborough,http://opendatacommunities.org/id/unitary-authority/peterborough,Peterborough City Council,Children's & Education Services - Children's Social Care,Other Children's & Families Services,Employees,01/04/2015 00:00,722993,1753.8,REVENUE,Sanctuary Personnel Ltd,EXTERNAL TEMPORARY STAFF
Peterborough,http://opendatacommunities.org/id/unitary-authority/peterborough,Peterborough City Council,Children's & Education Services - Children's Social Care,Other Children's & Families Services,Employees,01/04/2015 00:00,722996,1800,REVENUE,Sanctuary Personnel Ltd,EXTERNAL TEMPORARY STAFF
Peterborough,http://opendatacommunities.org/id/unitary-authority/peterborough,Peterborough City Council,Children's & Education Services - Children's Social Care,Other Children's & Families Services,Employees,01/04/2015 00:00,722997,1800,REVENUE,Sanctuary Personnel Ltd,EXTERNAL TEMPORARY STAFF
Peterborough,http://opendatacommunities.org/id/unitary-authority/peterborough,Peterborough City Council,Children's & Education Services - Children's Social Care,Other Children's & Families Services,Employees,01/04/2015 00:00,722998,1800,REVENUE,Sanctuary Personnel Ltd,EXTERNAL TEMPORARY STAFF
Peterborough,http://opendatacommunities.org/id/unitary-authority/peterborough,Peterborough City Council,Adult Social Care,Adult Learning Disabilities,Supplies and Services,01/04/2015 00:00,722999,3740.12,REVENUE,SOCIAL CARE SOLUTIONS LTD,HOME CARE
Peterborough,http://opendatacommunities.org/id/unitary-authority/peterborough,Peterborough City Council,Adult Social Care,Adult Learning Disabilities,Supplies and Services,01/04/2015 00:00,723003,2983.2,REVENUE,SOCIAL CARE SOLUTIONS LTD,HOME CARE
Peterborough,http://opendatacommunities.org/id/unitary-authority/peterborough,Peterborough City Council,Adult Social Care,Adult Learning Disabilities,Supplies and Services,01/04/2015 00:00,723004,6064.8,REVENUE,SOCIAL CARE SOLUTIONS LTD,HOME CARE
Peterborough,http://opendatacommunities.org/id/unitary-authority/peterborough,Peterborough City Council,Adult Social Care,Adult Learning Disabilities,Supplies and Services,01/04/2015 00:00,723005,4463.2,REVENUE,SOCIAL CARE SOLUTIONS LTD,HOME CARE
Peterborough,http://opendatacommunities.org/id/unitary-authority/peterborough,Peterborough City Council,Adult Social Care,Adult Learning Disabilities,Supplies and Services,01/04/2015 00:00,723006,3903.2,REVENUE,SOCIAL CARE SOLUTIONS LTD,HOME CARE
Peterborough,http://opendatacommunities.org/id/unitary-authority/peterborough,Peterborough City Council,Adult Social Care,Older People,Supplies and Services,01/04/2015 00:00,723007,1216.95,REVENUE,Park Vista Care Home,RESIDENTIAL CARE
Peterborough,http://opendatacommunities.org/id/unitary-authority/peterborough,Peterborough City Council,Children's & Education Services - Children's Social Care,Other Children's & Families Services,Employees,01/04/2015 00:00,723010,1440,REVENUE,Sanctuary Personnel Ltd,EXTERNAL TEMPORARY STAFF
Peterborough,http://opendatacommunities.org/id/unitary-authority/peterborough,Peterborough City Council,Children's & Education Services - Children's Social Care,Other Children's & Families Services,Employees,01/04/2015 00:00,723011,1800,REVENUE,Sanctuary Personnel Ltd,EXTERNAL TEMPORARY STAFF
Peterborough,http://opendatacommunities.org/id/unitary-authority/peterborough,Peterborough City Council,Adult Social Care,Older People,Supplies and Services,01/04/2015 00:00,723012,506.93,REVENUE,Park Vista Care Home,RESIDENTIAL CARE
Peterborough,http://opendatacommunities.org/id/unitary-authority/peterborough,Peterborough City Council,Children's & Education Services - Children's Social Care,Other Children's & Families Services,Employees,01/04/2015 00:00,723013,2144.52,REVENUE,Sanctuary Personnel Ltd,EXTERNAL TEMPORARY STAFF
Peterborough,http://opendatacommunities.org/id/unitary-authority/peterborough,Peterborough City Council,Adult Social Care,Adult Physical Disability & Sensory Impairment,Supplies and Services,01/04/2015 00:00,723015,859.2,REVENUE,ABOUT ME CARE AND SUPPORT LTD,HOME CARE
Peterborough,http://opendatacommunities.org/id/unitary-authority/peterborough,Peterborough City Council,Children's & Education Services - Children's Social Care,Other Children's & Families Services,Employees,01/04/2015 00:00,723017,1435.2,REVENUE,Sanctuary Personnel Ltd,EXTERNAL TEMPORARY STAFF
Peterborough,http://opendatacommunities.org/id/unitary-authority/peterborough,Peterborough City Council,Children's & Education Services - Children's Social Care,Other Children's & Families Services,Employees,01/04/2015 00:00,723018,2144.52,REVENUE,Sanctuary Personnel Ltd,EXTERNAL TEMPORARY STAFF
Peterborough,http://opendatacommunities.org/id/unitary-authority/peterborough,Peterborough City Council,Children's & Education Services - Children's Social Care,Other Children's & Families Services,Employees,01/04/2015 00:00,723019,2144.52,REVENUE,Sanctuary Personnel Ltd,EXTERNAL TEMPORARY STAFF
Peterborough,http://opendatacommunities.org/id/unitary-authority/peterborough,Peterborough City Council,Adult Social Care,Adult Physical Disability & Sensory Impairment,Supplies and Services,01/04/2015 00:00,723020,2148,REVENUE,ABOUT ME CARE AND SUPPORT LTD,HOME CARE
Peterborough,http://opendatacommunities.org/id/unitary-authority/peterborough,Peterborough City Council,Children's & Education Services - Children's Social Care,Other Children's & Families Services,Employees,01/04/2015 00:00,723021,2144.52,REVENUE,Sanctuary Personnel Ltd,EXTERNAL TEMPORARY STAFF
Peterborough,http://opendatacommunities.org/id/unitary-authority/peterborough,Peterborough City Council,Adult Social Care,Adult Physical Disability & Sensory Impairment,Supplies and Services,01/04/2015 00:00,723022,680.22,REVENUE,ABOUT ME CARE AND SUPPORT LTD,HOME CARE
Peterborough,http://opendatacommunities.org/id/unitary-authority/peterborough,Peterborough City Council,Children's & Education Services - Children's Social Care,Other Children's & Families Services,Employees,01/04/2015 00:00,723023,2144.52,REVENUE,Sanctuary Personnel Ltd,EXTERNAL TEMPORARY STAFF
Peterborough,http://opendatacommunities.org/id/unitary-authority/peterborough,Peterborough City Council,Adult Social Care,Adult Physical Disability & Sensory Impairment,Supplies and Services,01/04/2015 00:00,723024,1217.2,REVENUE,ABOUT ME CARE AND SUPPORT LTD,HOME CARE
Peterborough,http://opendatacommunities.org/id/unitary-authority/peterborough,Peterborough City Council,Adult Social Care,Adult Physical Disability & Sensory Impairment,Supplies and Services,01/04/2015 00:00,723025,1861.6,REVENUE,ABOUT ME CARE AND SUPPORT LTD,HOME CARE
Peterborough,http://opendatacommunities.org/id/unitary-authority/peterborough,Peterborough City Council,Children's & Education Services - Children's Social Care,Other Children's & Families Services,Employees,01/04/2015 00:00,723027,2619.6,REVENUE,Sanctuary Personnel Ltd,EXTERNAL TEMPORARY STAFF
Peterborough,http://opendatacommunities.org/id/unitary-authority/peterborough,Peterborough City Council,More than one Service Area Category,More than one Service Division,Supplies and Services,01/04/2015 00:00,723031,546.94,REVENUE,O2 (UK) Ltd,MOBILE TELEPHONES
Peterborough,http://opendatacommunities.org/id/unitary-authority/peterborough,Peterborough City Council,Adult Social Care,Adult Learning Disabilities,Supplies and Services,01/04/2015 00:00,723032,518.16,REVENUE,Betta Cars (UK) Ltd,HIRED TRANSPORT
Peterborough,http://opendatacommunities.org/id/unitary-authority/peterborough,Peterborough City Council,More than one Service Area Category,More than one Service Division,Balance Sheet,01/04/2015 00:00,723037,5831.98,Balance Sheet,IIC by Education (P'boro) Ltd,INPUT VAT
Peterborough,http://opendatacommunities.org/id/unitary-authority/peterborough,Peterborough City Council,Children's & Education Services - Education,Secondary,Employees,01/04/2015 00:00,723040,947.46,REVENUE,IIC by Education (P'boro) Ltd,PENSIONS
Peterborough,http://opendatacommunities.org/id/unitary-authority/peterborough,Peterborough City Council,Adult Social Care,Adult Physical Disability & Sensory Impairment,Supplies and Services,01/04/2015 00:00,723043,859.2,REVENUE,ABOUT ME CARE AND SUPPORT LTD,HOME CARE
Peterborough,http://opendatacommunities.org/id/unitary-authority/peterborough,Peterborough City Council,Adult Social Care,Adult Physical Disability & Sensory Impairment,Supplies and Services,01/04/2015 00:00,723046,1145.74,REVENUE,ABOUT ME CARE AND SUPPORT LTD,HOME CARE
Peterborough,http://opendatacommunities.org/id/unitary-authority/peterborough,Peterborough City Council,Adult Social Care,Adult Physical Disability & Sensory Impairment,Supplies and Services,01/04/2015 00:00,723049,1145.6,REVENUE,ABOUT ME CARE AND SUPPORT LTD,HOME CARE
Peterborough,http://opendatacommunities.org/id/unitary-authority/peterborough,Peterborough City Council,Adult Social Care,Adult Physical Disability & Sensory Impairment,Supplies and Services,01/04/2015 00:00,723051,1127.7,REVENUE,ABOUT ME CARE AND SUPPORT LTD,HOME CARE
Peterborough,http://opendatacommunities.org/id/unitary-authority/peterborough,Peterborough City Council,Adult Social Care,Adult Physical Disability & Sensory Impairment,Supplies and Services,01/04/2015 00:00,723053,1825.8,REVENUE,ABOUT ME CARE AND SUPPORT LTD,HOME CARE
Peterborough,http://opendatacommunities.org/id/unitary-authority/peterborough,Peterborough City Council,Adult Social Care,Adult Physical Disability & Sensory Impairment,Supplies and Services,01/04/2015 00:00,723055,2148,REVENUE,ABOUT ME CARE AND SUPPORT LTD,HOME CARE
Peterborough,http://opendatacommunities.org/id/unitary-authority/peterborough,Peterborough City Council,Children's & Education Services - Children's Social Care,Other Children's & Families Services,Employees,01/04/2015 00:00,723069,2144.52,REVENUE,Sanctuary Personnel Ltd,EXTERNAL TEMPORARY STAFF
Peterborough,http://opendatacommunities.org/id/unitary-authority/peterborough,Peterborough City Council,Children's & Education Services - Children's Social Care,Other Children's & Families Services,Employees,01/04/2015 00:00,723071,1800,REVENUE,Sanctuary Personnel Ltd,EXTERNAL TEMPORARY STAFF
Peterborough,http://opendatacommunities.org/id/unitary-authority/peterborough,Peterborough City Council,Children's & Education Services - Children's Social Care,Other Children's & Families Services,Employees,01/04/2015 00:00,723073,1800,REVENUE,Sanctuary Personnel Ltd,EXTERNAL TEMPORARY STAFF
Peterborough,http://opendatacommunities.org/id/unitary-authority/peterborough,Peterborough City Council,Children's & Education Services - Children's Social Care,Other Children's & Families Services,Employees,01/04/2015 00:00,723074,1198.8,REVENUE,Sanctuary Personnel Ltd,EXTERNAL TEMPORARY STAFF
Peterborough,http://opendatacommunities.org/id/unitary-authority/peterborough,Peterborough City Council,Children's & Education Services - Children's Social Care,Other Children's & Families Services,Employees,01/04/2015 00:00,723077,1198.8,REVENUE,Sanctuary Personnel Ltd,EXTERNAL TEMPORARY STAFF
Peterborough,http://opendatacommunities.org/id/unitary-authority/peterborough,Peterborough City Council,Adult Social Care,Social Care Activities,Employees,01/04/2015 00:00,723654,1554,REVENUE,Randstad Care Ltd,EXTERNAL TEMPORARY STAFF
Peterborough,http://opendatacommunities.org/id/unitary-authority/peterborough,Peterborough City Council,Support Services,Support Services,Supplies and Services,01/04/2015 00:00,723721,660,REVENUE,"Elliott, Ms Margot",LEGAL COSTS
Peterborough,http://opendatacommunities.org/id/unitary-authority/peterborough,Peterborough City Council,Capital,Capital,Capital Pending Update to BS,01/04/2015 00:00,723724,792,CAPITAL,Freeth Cartwright LLP,PROFESSIONAL/LEGAL FEES
Peterborough,http://opendatacommunities.org/id/unitary-authority/peterborough,Peterborough City Council,Support Services,Support Services,Supplies and Services,01/04/2015 00:00,723731,1602.54,REVENUE,Rossendales C B Ltd,DEBT COLLECTION
Peterborough,http://opendatacommunities.org/id/unitary-authority/peterborough,Peterborough City Council,Children's & Education Services - Education,Other Education and Community Budget,Supplies and Services - Transfer Payments,01/04/2015 00:00,723750,2475,REVENUE,Oakview School,BOARDING - OUT ALLOWANCES
Peterborough,http://opendatacommunities.org/id/unitary-authority/peterborough,Peterborough City Council,Children's & Education Services - Education,Other Education and Community Budget,Supplies and Services - Transfer Payments,01/04/2015 00:00,723754,1650,REVENUE,Oakview School,BOARDING - OUT ALLOWANCES
Peterborough,http://opendatacommunities.org/id/unitary-authority/peterborough,Peterborough City Council,Adult Social Care,Split,Third Party Payments,01/04/2015 00:00,723792,4460.15,REVENUE,ABOUT ME CARE AND SUPPORT LTD,THIRD PARTY PAYMENTS - CONTRACT
Peterborough,http://opendatacommunities.org/id/unitary-authority/peterborough,Peterborough City Council,Cultural and Related Services,Tourism,Premises,01/04/2015 00:00,723809,1176,REVENUE,"Lane, Mr Chris (Artinfusion)",IMPROVEMENTS
Peterborough,http://opendatacommunities.org/id/unitary-authority/peterborough,Peterborough City Council,Children's & Education Services - Education,Secondary,Employees,01/04/2015 00:00,723846,876,REVENUE,Vision for Education Ltd,SUPPLY TEACHERS
Peterborough,http://opendatacommunities.org/id/unitary-authority/peterborough,Peterborough City Council,Adult Social Care,Adult Learning Disabilities,Supplies and Services,01/04/2015 00:00,723856,897.6,REVENUE,Mencap,HOME CARE
Peterborough,http://opendatacommunities.org/id/unitary-authority/peterborough,Peterborough City Council,Children's & Education Services - Children's Social Care,Children Looked After,Employees,01/04/2015 00:00,723890,627.71,REVENUE,Service Care Solutions Ltd,EXTERNAL TEMPORARY STAFF
Peterborough,http://opendatacommunities.org/id/unitary-authority/peterborough,Peterborough City Council,Adult Social Care,Older People,Supplies and Services,01/04/2015 00:00,723896,1042.52,REVENUE,FLORENCE HOUSE,RESIDENTIAL CARE
Peterborough,http://opendatacommunities.org/id/unitary-authority/peterborough,Peterborough City Council,Children's & Education Services - Children's Social Care,Children Looked After,Supplies and Services - Transfer Payments,01/04/2015 00:00,723921,3063.05,REVENUE,Transition Care Peterborough Ltd,BOARDING - OUT ALLOWANCES
Peterborough,http://opendatacommunities.org/id/unitary-authority/peterborough,Peterborough City Council,Highways and Transport Services,Public Transport,Supplies and Services,01/04/2015 00:00,723934,15913.17,REVENUE,First Eastern Counties Buses Ltd,CONTRACTORS
Peterborough,http://opendatacommunities.org/id/unitary-authority/peterborough,Peterborough City Council,Capital,Capital,Capital Pending Update to BS,01/04/2015 00:00,723964,14394.56,CAPITAL,Harmony Roofing Serv. Ltd,BUILDING AND SITE WORKS
Peterborough,http://opendatacommunities.org/id/unitary-authority/peterborough,Peterborough City Council,Adult Social Care,Older People,Supplies and Services,01/04/2015 00:00,723975,1633.12,REVENUE,Longueville Court (Barchester),RESIDENTIAL CARE
Peterborough,http://opendatacommunities.org/id/unitary-authority/peterborough,Peterborough City Council,Children's & Education Services - Children's Social Care,Children Looked After,Supplies and Services - Transfer Payments,01/04/2015 00:00,723993,-639.43,REVENUE,PC Homes,BOARDING - OUT ALLOWANCES
Peterborough,http://opendatacommunities.org/id/unitary-authority/peterborough,Peterborough City Council,Highways and Transport Services,Street Lighting,Premises,01/04/2015 00:00,724095,-103447.36,REVENUE,EDF Energy Networks Ltd,ELECTRICITY
Peterborough,http://opendatacommunities.org/id/unitary-authority/peterborough,Peterborough City Council,Highways and Transport Services,Public Transport,Supplies and Services,01/04/2015 00:00,724097,7744.21,REVENUE,Stagecoach in Peterborough,CONTRACTORS
Peterborough,http://opendatacommunities.org/id/unitary-authority/peterborough,Peterborough City Council,Highways and Transport Services,Street Lighting,Premises,01/04/2015 00:00,724105,125418.46,REVENUE,EDF Energy Networks Ltd,ELECTRICITY
Peterborough,http://opendatacommunities.org/id/unitary-authority/peterborough,Peterborough City Council,Highways and Transport Services,Street Lighting,Premises,01/04/2015 00:00,724108,98693.29,REVENUE,EDF Energy Networks Ltd,ELECTRICITY
Peterborough,http://opendatacommunities.org/id/unitary-authority/peterborough,Peterborough City Council,Adult Social Care,Older People,Supplies and Services,01/04/2015 00:00,724369,694.7,REVENUE,Longueville Court (Barchester),RESIDENTIAL CARE
Peterborough,http://opendatacommunities.org/id/unitary-authority/peterborough,Peterborough City Council,Adult Social Care,Older People,Supplies and Services,01/04/2015 00:00,724370,1494.48,REVENUE,Longueville Court (Barchester),RESIDENTIAL CARE
Peterborough,http://opendatacommunities.org/id/unitary-authority/peterborough,Peterborough City Council,Adult Social Care,Older People,Supplies and Services,01/04/2015 00:00,724372,694.7,REVENUE,Longueville Court (Barchester),RESIDENTIAL CARE
Peterborough,http://opendatacommunities.org/id/unitary-authority/peterborough,Peterborough City Council,Adult Social Care,Older People,Supplies and Services,01/04/2015 00:00,724419,1807.2,REVENUE,Allied Healthcare (UK) Ltd,HOME CARE
Peterborough,http://opendatacommunities.org/id/unitary-authority/peterborough,Peterborough City Council,Adult Social Care,Older People,Supplies and Services,01/04/2015 00:00,724423,1800.6,REVENUE,Allied Healthcare (UK) Ltd,HOME CARE
Peterborough,http://opendatacommunities.org/id/unitary-authority/peterborough,Peterborough City Council,Support Services,Support Services,Employees,01/04/2015 00:00,724431,706.06,REVENUE,Reed Specialist Recruitment,EXTERNAL TEMPORARY STAFF
Peterborough,http://opendatacommunities.org/id/unitary-authority/peterborough,Peterborough City Council,Support Services,Support Services,Employees,01/04/2015 00:00,724432,658.98,REVENUE,Reed Specialist Recruitment,EXTERNAL TEMPORARY STAFF
Peterborough,http://opendatacommunities.org/id/unitary-authority/peterborough,Peterborough City Council,Children's & Education Services - Children's Social Care,Safeguarding Children and Young People Services,Employees,01/04/2015 00:00,724434,622.93,REVENUE,Reed Personnel Services Plc,OTHER STAFF COSTS
Peterborough,http://opendatacommunities.org/id/unitary-authority/peterborough,Peterborough City Council,Capital,Capital,Capital Pending Update to BS,01/04/2015 00:00,724444,826.66,CAPITAL,Reed Specialist Recruitment,EXTERNAL TEMPORARY STAFF
Peterborough,http://opendatacommunities.org/id/unitary-authority/peterborough,Peterborough City Council,Capital,Capital,Capital Pending Update to BS,01/04/2015 00:00,724448,696.64,CAPITAL,Reed Specialist Recruitment,EXTERNAL TEMPORARY STAFF
Peterborough,http://opendatacommunities.org/id/unitary-authority/peterborough,Peterborough City Council,Adult Social Care,Older People,Supplies and Services,01/04/2015 00:00,724547,3521.52,REVENUE,Sanctuary Care Limited,RESIDENTIAL CARE
Peterborough,http://opendatacommunities.org/id/unitary-authority/peterborough,Peterborough City Council,Adult Social Care,Older People,Supplies and Services,01/04/2015 00:00,724567,-1050.51,REVENUE,THE TUDORS,RESIDENTIAL CARE
Peterborough,http://opendatacommunities.org/id/unitary-authority/peterborough,Peterborough City Council,Adult Social Care,Older People,Supplies and Services,01/04/2015 00:00,724570,-591.22,REVENUE,THE TUDORS,RESIDENTIAL CARE
Peterborough,http://opendatacommunities.org/id/unitary-authority/peterborough,Peterborough City Council,Children's & Education Services - Education,Secondary,Premises,01/04/2015 00:00,724574,3215.23,REVENUE,Anglian Water,WATER
Peterborough,http://opendatacommunities.org/id/unitary-authority/peterborough,Peterborough City Council,Adult Social Care,Older People,Supplies and Services,01/04/2015 00:00,724576,2017.08,REVENUE,THE TUDORS,RESIDENTIAL CARE
Peterborough,http://opendatacommunities.org/id/unitary-authority/peterborough,Peterborough City Council,Adult Social Care,Older People,Supplies and Services,01/04/2015 00:00,724810,2449.2,REVENUE,THE TUDORS,RESIDENTIAL CARE
Peterborough,http://opendatacommunities.org/id/unitary-authority/peterborough,Peterborough City Council,Adult Social Care,Older People,Supplies and Services,01/04/2015 00:00,724812,-1271.4,REVENUE,THE TUDORS,RESIDENTIAL CARE
Peterborough,http://opendatacommunities.org/id/unitary-authority/peterborough,Peterborough City Council,Adult Social Care,Commissioning and Service Delivery,Premises,01/04/2015 00:00,724820,553.84,REVENUE,Cross Keys Homes,RENT
Peterborough,http://opendatacommunities.org/id/unitary-authority/peterborough,Peterborough City Council,Adult Social Care,Older People,Supplies and Services,01/04/2015 00:00,724866,4595.52,REVENUE,Longueville Court (Barchester),RESIDENTIAL CARE
Peterborough,http://opendatacommunities.org/id/unitary-authority/peterborough,Peterborough City Council,Adult Social Care,Older People,Supplies and Services,01/04/2015 00:00,724868,2708.8,REVENUE,Longueville Court (Barchester),RESIDENTIAL CARE
Peterborough,http://opendatacommunities.org/id/unitary-authority/peterborough,Peterborough City Council,Adult Social Care,Older People,Supplies and Services,01/04/2015 00:00,724869,3237.4,REVENUE,Longueville Court (Barchester),RESIDENTIAL CARE
Peterborough,http://opendatacommunities.org/id/unitary-authority/peterborough,Peterborough City Council,Adult Social Care,Older People,Supplies and Services,01/04/2015 00:00,724876,2107.28,REVENUE,Longueville Court (Barchester),RESIDENTIAL CARE
Peterborough,http://opendatacommunities.org/id/unitary-authority/peterborough,Peterborough City Council,Adult Social Care,Social Care Activities,Employees,01/04/2015 00:00,724879,966.92,REVENUE,Sanctuary Personnel Ltd,EXTERNAL TEMPORARY STAFF
Peterborough,http://opendatacommunities.org/id/unitary-authority/peterborough,Peterborough City Council,Adult Social Care,Older People,Supplies and Services,01/04/2015 00:00,724886,2655.84,REVENUE,Longueville Court (Barchester),RESIDENTIAL CARE
Peterborough,http://opendatacommunities.org/id/unitary-authority/peterborough,Peterborough City Council,Adult Social Care,Older People,Supplies and Services,01/04/2015 00:00,724887,4000,REVENUE,Longueville Court (Barchester),RESIDENTIAL CARE
Peterborough,http://opendatacommunities.org/id/unitary-authority/peterborough,Peterborough City Council,Adult Social Care,Older People,Supplies and Services,01/04/2015 00:00,724888,3480.6,REVENUE,Longueville Court (Barchester),RESIDENTIAL CARE
Peterborough,http://opendatacommunities.org/id/unitary-authority/peterborough,Peterborough City Council,Adult Social Care,Older People,Supplies and Services,01/04/2015 00:00,724889,2751.86,REVENUE,Longueville Court (Barchester),RESIDENTIAL CARE
Peterborough,http://opendatacommunities.org/id/unitary-authority/peterborough,Peterborough City Council,Adult Social Care,Adult Physical Disability & Sensory Impairment,Supplies and Services,01/04/2015 00:00,724890,3336,REVENUE,Longueville Court (Barchester),RESIDENTIAL CARE
Peterborough,http://opendatacommunities.org/id/unitary-authority/peterborough,Peterborough City Council,Adult Social Care,Older People,Supplies and Services,01/04/2015 00:00,724891,4000,REVENUE,Longueville Court (Barchester),RESIDENTIAL CARE
Peterborough,http://opendatacommunities.org/id/unitary-authority/peterborough,Peterborough City Council,Adult Social Care,Older People,Supplies and Services,01/04/2015 00:00,724892,4460,REVENUE,Longueville Court (Barchester),RESIDENTIAL CARE
Peterborough,http://opendatacommunities.org/id/unitary-authority/peterborough,Peterborough City Council,Adult Social Care,Older People,Supplies and Services,01/04/2015 00:00,724893,3853.48,REVENUE,Longueville Court (Barchester),RESIDENTIAL CARE
Peterborough,http://opendatacommunities.org/id/unitary-authority/peterborough,Peterborough City Council,Adult Social Care,Older People,Supplies and Services,01/04/2015 00:00,724894,3541.2,REVENUE,Longueville Court (Barchester),RESIDENTIAL CARE
Peterborough,http://opendatacommunities.org/id/unitary-authority/peterborough,Peterborough City Council,Adult Social Care,Older People,Supplies and Services,01/04/2015 00:00,724895,3340,REVENUE,Longueville Court (Barchester),RESIDENTIAL CARE
Peterborough,http://opendatacommunities.org/id/unitary-authority/peterborough,Peterborough City Council,Adult Social Care,Older People,Supplies and Services,01/04/2015 00:00,724896,1899.51,REVENUE,Longueville Court (Barchester),RESIDENTIAL CARE
Peterborough,http://opendatacommunities.org/id/unitary-authority/peterborough,Peterborough City Council,Adult Social Care,Social Care Activities,Employees,01/04/2015 00:00,724897,560.95,REVENUE,Sanctuary Personnel Ltd,EXTERNAL TEMPORARY STAFF
Peterborough,http://opendatacommunities.org/id/unitary-authority/peterborough,Peterborough City Council,Adult Social Care,Older People,Supplies and Services,01/04/2015 00:00,724898,-2499.04,REVENUE,FIELD HOUSE (EYE) LTD,RESIDENTIAL CARE
Peterborough,http://opendatacommunities.org/id/unitary-authority/peterborough,Peterborough City Council,Adult Social Care,Older People,Supplies and Services,01/04/2015 00:00,724900,1424.68,REVENUE,FIELD HOUSE (EYE) LTD,RESIDENTIAL CARE
Peterborough,http://opendatacommunities.org/id/unitary-authority/peterborough,Peterborough City Council,Adult Social Care,Older People,Supplies and Services,01/04/2015 00:00,724903,1886.95,REVENUE,FIELD HOUSE (EYE) LTD,RESIDENTIAL CARE
Peterborough,http://opendatacommunities.org/id/unitary-authority/peterborough,Peterborough City Council,Adult Social Care,Older People,Supplies and Services,01/04/2015 00:00,724906,-1292.62,REVENUE,FIELD HOUSE (EYE) LTD,RESIDENTIAL CARE
Peterborough,http://opendatacommunities.org/id/unitary-authority/peterborough,Peterborough City Council,Adult Social Care,Older People,Supplies and Services,01/04/2015 00:00,724907,1326.08,REVENUE,FIELD HOUSE (EYE) LTD,RESIDENTIAL CARE
Peterborough,http://opendatacommunities.org/id/unitary-authority/peterborough,Peterborough City Council,Adult Social Care,Older People,Supplies and Services,01/04/2015 00:00,724908,1077.48,REVENUE,FIELD HOUSE (EYE) LTD,RESIDENTIAL CARE
Peterborough,http://opendatacommunities.org/id/unitary-authority/peterborough,Peterborough City Council,Adult Social Care,Older People,Supplies and Services,01/04/2015 00:00,724909,1120.84,REVENUE,FIELD HOUSE (EYE) LTD,RESIDENTIAL CARE
Peterborough,http://opendatacommunities.org/id/unitary-authority/peterborough,Peterborough City Council,Adult Social Care,Older People,Supplies and Services,01/04/2015 00:00,724910,671.8,REVENUE,FIELD HOUSE (EYE) LTD,RESIDENTIAL CARE
Peterborough,http://opendatacommunities.org/id/unitary-authority/peterborough,Peterborough City Council,Adult Social Care,Older People,Supplies and Services,01/04/2015 00:00,724911,1326.08,REVENUE,FIELD HOUSE (EYE) LTD,RESIDENTIAL CARE
Peterborough,http://opendatacommunities.org/id/unitary-authority/peterborough,Peterborough City Council,Adult Social Care,Older People,Supplies and Services,01/04/2015 00:00,724912,1326.08,REVENUE,FIELD HOUSE (EYE) LTD,RESIDENTIAL CARE
Peterborough,http://opendatacommunities.org/id/unitary-authority/peterborough,Peterborough City Council,Adult Social Care,Older People,Supplies and Services,01/04/2015 00:00,724913,1322.08,REVENUE,FIELD HOUSE (EYE) LTD,RESIDENTIAL CARE
Peterborough,http://opendatacommunities.org/id/unitary-authority/peterborough,Peterborough City Council,Adult Social Care,Older People,Supplies and Services,01/04/2015 00:00,724915,1021.24,REVENUE,FIELD HOUSE (EYE) LTD,RESIDENTIAL CARE
Peterborough,http://opendatacommunities.org/id/unitary-authority/peterborough,Peterborough City Council,Adult Social Care,Older People,Supplies and Services,01/04/2015 00:00,724918,1406.96,REVENUE,FIELD HOUSE (EYE) LTD,RESIDENTIAL CARE
Peterborough,http://opendatacommunities.org/id/unitary-authority/peterborough,Peterborough City Council,Adult Social Care,Older People,Supplies and Services,01/04/2015 00:00,724921,1821.88,REVENUE,FIELD HOUSE (EYE) LTD,RESIDENTIAL CARE
Peterborough,http://opendatacommunities.org/id/unitary-authority/peterborough,Peterborough City Council,Adult Social Care,Older People,Supplies and Services,01/04/2015 00:00,724924,1287.24,REVENUE,FIELD HOUSE (EYE) LTD,RESIDENTIAL CARE
Peterborough,http://opendatacommunities.org/id/unitary-authority/peterborough,Peterborough City Council,Adult Social Care,Older People,Supplies and Services,01/04/2015 00:00,724925,1382.08,REVENUE,FIELD HOUSE (EYE) LTD,RESIDENTIAL CARE
Peterborough,http://opendatacommunities.org/id/unitary-authority/peterborough,Peterborough City Council,Children's & Education Services - Children's Social Care,Family Support Services,Supplies and Services,01/04/2015 00:00,724937,500,REVENUE,Vivacity Culture and Leisure,PURCHASED SOCIAL CARE SERVICES
Peterborough,http://opendatacommunities.org/id/unitary-authority/peterborough,Peterborough City Council,Adult Social Care,Adult Learning Disabilities,Supplies and Services,01/04/2015 00:00,725528,1269.6,REVENUE,Mencap,HOME CARE
Peterborough,http://opendatacommunities.org/id/unitary-authority/peterborough,Peterborough City Council,Adult Social Care,Older People,Supplies and Services,01/04/2015 00:00,725529,609.56,REVENUE,Housing 21,HOME CARE
Peterborough,http://opendatacommunities.org/id/unitary-authority/peterborough,Peterborough City Council,Adult Social Care,Older People,Supplies and Services,01/04/2015 00:00,725532,-3137.6,REVENUE,Augusta Care Ltd,HOME CARE
Peterborough,http://opendatacommunities.org/id/unitary-authority/peterborough,Peterborough City Council,Adult Social Care,Older People,Supplies and Services,01/04/2015 00:00,725533,1353.05,REVENUE,OAKHOUSE HOMECARE LTD,RESIDENTIAL CARE
Peterborough,http://opendatacommunities.org/id/unitary-authority/peterborough,Peterborough City Council,Adult Social Care,Adult Physical Disability & Sensory Impairment,Supplies and Services,01/04/2015 00:00,725535,-1080.44,REVENUE,BUPA Care Homes,RESIDENTIAL CARE
Peterborough,http://opendatacommunities.org/id/unitary-authority/peterborough,Peterborough City Council,Adult Social Care,Older People,Supplies and Services,01/04/2015 00:00,725538,-847.37,REVENUE,BUPA Care Homes,RESIDENTIAL CARE
Peterborough,http://opendatacommunities.org/id/unitary-authority/peterborough,Peterborough City Council,Adult Social Care,Older People,Supplies and Services,01/04/2015 00:00,725540,-571.44,REVENUE,BUPA Care Homes,RESIDENTIAL CARE
Peterborough,http://opendatacommunities.org/id/unitary-authority/peterborough,Peterborough City Council,Adult Social Care,Older People,Supplies and Services,01/04/2015 00:00,725544,1633.12,REVENUE,FIELD HOUSE (EYE) LTD,RESIDENTIAL CARE
Peterborough,http://opendatacommunities.org/id/unitary-authority/peterborough,Peterborough City Council,More than one Service Area Category,More than one Service Division,Premises,01/04/2015 00:00,725565,797.58,REVENUE,British Gas Business,ELECTRICITY
Peterborough,http://opendatacommunities.org/id/unitary-authority/peterborough,Peterborough City Council,Adult Social Care,Adult Learning Disabilities,Supplies and Services,01/04/2015 00:00,725568,752.4,REVENUE,Allied Healthcare (UK) Ltd,HOME CARE
Peterborough,http://opendatacommunities.org/id/unitary-authority/peterborough,Peterborough City Council,More than one Service Area Category,More than one Service Division,Premises,01/04/2015 00:00,725576,-671.03,REVENUE,British Gas Business,ELECTRICITY
Peterborough,http://opendatacommunities.org/id/unitary-authority/peterborough,Peterborough City Council,Adult Social Care,Older People,Supplies and Services,01/04/2015 00:00,725604,831.6,REVENUE,Allied Healthcare (UK) Ltd,HOME CARE
Peterborough,http://opendatacommunities.org/id/unitary-authority/peterborough,Peterborough City Council,Adult Social Care,Older People,Supplies and Services,01/04/2015 00:00,725612,1940.4,REVENUE,Allied Healthcare (UK) Ltd,HOME CARE
Peterborough,http://opendatacommunities.org/id/unitary-authority/peterborough,Peterborough City Council,Adult Social Care,Older People,Supplies and Services,01/04/2015 00:00,725650,1940.25,REVENUE,Allied Healthcare (UK) Ltd,HOME CARE
Peterborough,http://opendatacommunities.org/id/unitary-authority/peterborough,Peterborough City Council,Adult Social Care,Adult Mental Health,Supplies and Services,01/04/2015 00:00,725658,562.35,REVENUE,Allied Healthcare (UK) Ltd,HOME CARE
Peterborough,http://opendatacommunities.org/id/unitary-authority/peterborough,Peterborough City Council,Adult Social Care,Older People,Supplies and Services,01/04/2015 00:00,725659,833.1,REVENUE,Allied Healthcare (UK) Ltd,HOME CARE
Peterborough,http://opendatacommunities.org/id/unitary-authority/peterborough,Peterborough City Council,Children's & Education Services - Education,Sure Start Children's Centres / Flying Start and Early Years,Supplies and Services,01/04/2015 00:00,725665,546.48,REVENUE,Redacted Personal Data,GRANT PAYMENT
Peterborough,http://opendatacommunities.org/id/unitary-authority/peterborough,Peterborough City Council,Children's & Education Services - Education,Sure Start Children's Centres / Flying Start and Early Years,Supplies and Services,01/04/2015 00:00,725667,1522.95,REVENUE,Redacted Personal Data,GRANT PAYMENT
Peterborough,http://opendatacommunities.org/id/unitary-authority/peterborough,Peterborough City Council,Children's & Education Services - Education,Sure Start Children's Centres / Flying Start and Early Years,Supplies and Services,01/04/2015 00:00,725669,1076.4,REVENUE,Redacted Personal Data,GRANT PAYMENT
Peterborough,http://opendatacommunities.org/id/unitary-authority/peterborough,Peterborough City Council,Children's & Education Services - Education,Sure Start Children's Centres / Flying Start and Early Years,Supplies and Services,01/04/2015 00:00,725671,1076.4,REVENUE,Redacted Personal Data,GRANT PAYMENT
Peterborough,http://opendatacommunities.org/id/unitary-authority/peterborough,Peterborough City Council,Children's & Education Services - Education,Sure Start Children's Centres / Flying Start and Early Years,Supplies and Services,01/04/2015 00:00,725673,538.2,REVENUE,Redacted Personal Data,GRANT PAYMENT
Peterborough,http://opendatacommunities.org/id/unitary-authority/peterborough,Peterborough City Council,Children's & Education Services - Education,Sure Start Children's Centres / Flying Start and Early Years,Supplies and Services,01/04/2015 00:00,725678,1308.24,REVENUE,Redacted Personal Data,GRANT PAYMENT
Peterborough,http://opendatacommunities.org/id/unitary-authority/peterborough,Peterborough City Council,Children's & Education Services - Education,Sure Start Children's Centres / Flying Start and Early Years,Supplies and Services,01/04/2015 00:00,725680,538.2,REVENUE,Redacted Personal Data,GRANT PAYMENT
Peterborough,http://opendatacommunities.org/id/unitary-authority/peterborough,Peterborough City Council,Children's & Education Services - Education,Sure Start Children's Centres / Flying Start and Early Years,Supplies and Services,01/04/2015 00:00,725684,1076.4,REVENUE,Redacted Personal Data,GRANT PAYMENT
Peterborough,http://opendatacommunities.org/id/unitary-authority/peterborough,Peterborough City Council,Children's & Education Services - Education,Sure Start Children's Centres / Flying Start and Early Years,Supplies and Services,01/04/2015 00:00,725686,1030.57,REVENUE,Redacted Personal Data,GRANT PAYMENT
Peterborough,http://opendatacommunities.org/id/unitary-authority/peterborough,Peterborough City Council,Children's & Education Services - Education,Sure Start Children's Centres / Flying Start and Early Years,Supplies and Services,01/04/2015 00:00,725688,1076.4,REVENUE,Redacted Personal Data,GRANT PAYMENT
Peterborough,http://opendatacommunities.org/id/unitary-authority/peterborough,Peterborough City Council,Children's & Education Services - Education,Sure Start Children's Centres / Flying Start and Early Years,Supplies and Services,01/04/2015 00:00,725690,611.05,REVENUE,Redacted Personal Data,GRANT PAYMENT
Peterborough,http://opendatacommunities.org/id/unitary-authority/peterborough,Peterborough City Council,Children's & Education Services - Education,Sure Start Children's Centres / Flying Start and Early Years,Supplies and Services,01/04/2015 00:00,725691,1339,REVENUE,Redacted Personal Data,GRANT PAYMENT
Peterborough,http://opendatacommunities.org/id/unitary-authority/peterborough,Peterborough City Council,Children's & Education Services - Education,Sure Start Children's Centres / Flying Start and Early Years,Supplies and Services,01/04/2015 00:00,725693,611.05,REVENUE,Redacted Personal Data,GRANT PAYMENT
Peterborough,http://opendatacommunities.org/id/unitary-authority/peterborough,Peterborough City Council,Children's & Education Services - Education,Sure Start Children's Centres / Flying Start and Early Years,Supplies and Services,01/04/2015 00:00,725694,3075.73,REVENUE,Redacted Personal Data,GRANT PAYMENT
Peterborough,http://opendatacommunities.org/id/unitary-authority/peterborough,Peterborough City Council,Adult Social Care,Learning Disability Support - Adults (18-64),Employees,01/04/2015 00:00,725697,927.18,REVENUE,Sanctuary Personnel Ltd,EXTERNAL TEMPORARY STAFF
Peterborough,http://opendatacommunities.org/id/unitary-authority/peterborough,Peterborough City Council,Capital,Capital,Capital Pending Update to BS,01/04/2015 00:00,725714,60473.14,CAPITAL,Ringway Infrastructure Services,INFRASTRUCTURE
Peterborough,http://opendatacommunities.org/id/unitary-authority/peterborough,Peterborough City Council,Adult Social Care,Learning Disability Support - Adults (18-64),Employees,01/04/2015 00:00,725721,576.91,REVENUE,Sanctuary Personnel Ltd,EXTERNAL TEMPORARY STAFF
Peterborough,http://opendatacommunities.org/id/unitary-authority/peterborough,Peterborough City Council,Children's & Education Services - Education,Sure Start Children's Centres / Flying Start and Early Years,Supplies and Services,01/04/2015 00:00,725737,1614.6,REVENUE,Redacted Personal Data,GRANT PAYMENT
Peterborough,http://opendatacommunities.org/id/unitary-authority/peterborough,Peterborough City Council,Children's & Education Services - Education,Sure Start Children's Centres / Flying Start and Early Years,Supplies and Services,01/04/2015 00:00,725741,2061.15,REVENUE,Redacted Personal Data,GRANT PAYMENT
Peterborough,http://opendatacommunities.org/id/unitary-authority/peterborough,Peterborough City Council,Children's & Education Services - Education,Sure Start Children's Centres / Flying Start and Early Years,Supplies and Services,01/04/2015 00:00,725745,1076.4,REVENUE,Redacted Personal Data,GRANT PAYMENT
Peterborough,http://opendatacommunities.org/id/unitary-authority/peterborough,Peterborough City Council,Children's & Education Services - Education,Sure Start Children's Centres / Flying Start and Early Years,Supplies and Services,01/04/2015 00:00,725748,1030.57,REVENUE,Redacted Personal Data,GRANT PAYMENT
Peterborough,http://opendatacommunities.org/id/unitary-authority/peterborough,Peterborough City Council,Children's & Education Services - Education,Sure Start Children's Centres / Flying Start and Early Years,Supplies and Services,01/04/2015 00:00,725753,538.2,REVENUE,Redacted Personal Data,GRANT PAYMENT
Peterborough,http://opendatacommunities.org/id/unitary-authority/peterborough,Peterborough City Council,Children's & Education Services - Education,Sure Start Children's Centres / Flying Start and Early Years,Supplies and Services,01/04/2015 00:00,725784,1551.12,REVENUE,Lisa Childminding,GRANT PAYMENT
Peterborough,http://opendatacommunities.org/id/unitary-authority/peterborough,Peterborough City Council,Children's & Education Services - Education,Sure Start Children's Centres / Flying Start and Early Years,Supplies and Services,01/04/2015 00:00,725786,2188.68,REVENUE,Redacted Personal Data,GRANT PAYMENT
Peterborough,http://opendatacommunities.org/id/unitary-authority/peterborough,Peterborough City Council,Children's & Education Services - Education,Sure Start Children's Centres / Flying Start and Early Years,Supplies and Services,01/04/2015 00:00,725789,1437.48,REVENUE,Redacted Personal Data,GRANT PAYMENT
Peterborough,http://opendatacommunities.org/id/unitary-authority/peterborough,Peterborough City Council,Children's & Education Services - Education,Sure Start Children's Centres / Flying Start and Early Years,Supplies and Services,01/04/2015 00:00,725792,538.2,REVENUE,Redacted Personal Data,GRANT PAYMENT
Peterborough,http://opendatacommunities.org/id/unitary-authority/peterborough,Peterborough City Council,Children's & Education Services - Education,Sure Start Children's Centres / Flying Start and Early Years,Supplies and Services,01/04/2015 00:00,725794,1083.22,REVENUE,Redacted Personal Data,GRANT PAYMENT
Peterborough,http://opendatacommunities.org/id/unitary-authority/peterborough,Peterborough City Council,Children's & Education Services - Education,Sure Start Children's Centres / Flying Start and Early Years,Supplies and Services,01/04/2015 00:00,725796,2691,REVENUE,Redacted Personal Data,GRANT PAYMENT
Peterborough,http://opendatacommunities.org/id/unitary-authority/peterborough,Peterborough City Council,Children's & Education Services - Education,Sure Start Children's Centres / Flying Start and Early Years,Supplies and Services,01/04/2015 00:00,725800,538.2,REVENUE,Redacted Personal Data,GRANT PAYMENT
Peterborough,http://opendatacommunities.org/id/unitary-authority/peterborough,Peterborough City Council,Children's & Education Services - Education,Sure Start Children's Centres / Flying Start and Early Years,Supplies and Services,01/04/2015 00:00,725802,667.92,REVENUE,Redacted Personal Data,GRANT PAYMENT
Peterborough,http://opendatacommunities.org/id/unitary-authority/peterborough,Peterborough City Council,Children's & Education Services - Education,Sure Start Children's Centres / Flying Start and Early Years,Supplies and Services,01/04/2015 00:00,725805,1281.73,REVENUE,Redacted Personal Data,GRANT PAYMENT
Peterborough,http://opendatacommunities.org/id/unitary-authority/peterborough,Peterborough City Council,Children's & Education Services - Education,Sure Start Children's Centres / Flying Start and Early Years,Supplies and Services,01/04/2015 00:00,725807,538.2,REVENUE,Rachaels Childminding,GRANT PAYMENT
Peterborough,http://opendatacommunities.org/id/unitary-authority/peterborough,Peterborough City Council,Children's & Education Services - Education,Sure Start Children's Centres / Flying Start and Early Years,Supplies and Services,01/04/2015 00:00,725809,1278.97,REVENUE,Redacted Personal Data,GRANT PAYMENT
Peterborough,http://opendatacommunities.org/id/unitary-authority/peterborough,Peterborough City Council,Children's & Education Services - Education,Sure Start Children's Centres / Flying Start and Early Years,Supplies and Services,01/04/2015 00:00,725812,538.2,REVENUE,Redacted Personal Data,GRANT PAYMENT
Peterborough,http://opendatacommunities.org/id/unitary-authority/peterborough,Peterborough City Council,Children's & Education Services - Education,Sure Start Children's Centres / Flying Start and Early Years,Supplies and Services,01/04/2015 00:00,725813,1030.57,REVENUE,Redacted Personal Data,GRANT PAYMENT
Peterborough,http://opendatacommunities.org/id/unitary-authority/peterborough,Peterborough City Council,Children's & Education Services - Education,Sure Start Children's Centres / Flying Start and Early Years,Supplies and Services,01/04/2015 00:00,725820,1568.77,REVENUE,Redacted Personal Data,GRANT PAYMENT
Peterborough,http://opendatacommunities.org/id/unitary-authority/peterborough,Peterborough City Council,Children's & Education Services - Education,Sure Start Children's Centres / Flying Start and Early Years,Supplies and Services,01/04/2015 00:00,725821,1138.21,REVENUE,Redacted Personal Data,GRANT PAYMENT
Peterborough,http://opendatacommunities.org/id/unitary-authority/peterborough,Peterborough City Council,Children's & Education Services - Education,Sure Start Children's Centres / Flying Start and Early Years,Supplies and Services,01/04/2015 00:00,725822,611.05,REVENUE,Redacted Personal Data,GRANT PAYMENT
Peterborough,http://opendatacommunities.org/id/unitary-authority/peterborough,Peterborough City Council,Children's & Education Services - Education,Sure Start Children's Centres / Flying Start and Early Years,Supplies and Services,01/04/2015 00:00,725825,10163.56,REVENUE,Barnack Pre-School,GRANT PAYMENT
Peterborough,http://opendatacommunities.org/id/unitary-authority/peterborough,Peterborough City Council,Children's & Education Services - Education,Sure Start Children's Centres / Flying Start and Early Years,Supplies and Services,01/04/2015 00:00,725826,39481.82,REVENUE,Acorn Academy Day Nursery,GRANT PAYMENT
Peterborough,http://opendatacommunities.org/id/unitary-authority/peterborough,Peterborough City Council,Children's & Education Services - Education,Sure Start Children's Centres / Flying Start and Early Years,Supplies and Services,01/04/2015 00:00,725827,26525.07,REVENUE,Alpha Big Sky Ltd,GRANT PAYMENT
Peterborough,http://opendatacommunities.org/id/unitary-authority/peterborough,Peterborough City Council,Children's & Education Services - Education,Sure Start Children's Centres / Flying Start and Early Years,Supplies and Services,01/04/2015 00:00,725829,42628.95,REVENUE,Anna-Ca-Soo Day Nursery,GRANT PAYMENT
Peterborough,http://opendatacommunities.org/id/unitary-authority/peterborough,Peterborough City Council,Children's & Education Services - Education,Sure Start Children's Centres / Flying Start and Early Years,Supplies and Services,01/04/2015 00:00,725831,23543.72,REVENUE,ABC Nursery,GRANT PAYMENT
Peterborough,http://opendatacommunities.org/id/unitary-authority/peterborough,Peterborough City Council,Children's & Education Services - Education,Sure Start Children's Centres / Flying Start and Early Years,Supplies and Services,01/04/2015 00:00,725834,66145.56,REVENUE,Alpha Big Sky Ltd,GRANT PAYMENT
Peterborough,http://opendatacommunities.org/id/unitary-authority/peterborough,Peterborough City Council,Children's & Education Services - Education,Sure Start Children's Centres / Flying Start and Early Years,Supplies and Services,01/04/2015 00:00,725835,25735.13,REVENUE,Beeches Pre-School,GRANT PAYMENT
Peterborough,http://opendatacommunities.org/id/unitary-authority/peterborough,Peterborough City Council,Children's & Education Services - Education,Sure Start Children's Centres / Flying Start and Early Years,Supplies and Services,01/04/2015 00:00,725837,42202.29,REVENUE,Bretton Community Pre-School,GRANT PAYMENT
Peterborough,http://opendatacommunities.org/id/unitary-authority/peterborough,Peterborough City Council,Children's & Education Services - Education,Sure Start Children's Centres / Flying Start and Early Years,Supplies and Services,01/04/2015 00:00,725839,3555.04,REVENUE,Belsize Day Nursery,GRANT PAYMENT
Peterborough,http://opendatacommunities.org/id/unitary-authority/peterborough,Peterborough City Council,Children's & Education Services - Children's Social Care,Other Children's & Families Services,Employees,01/04/2015 00:00,725840,2095.68,REVENUE,Sanctuary Personnel Ltd,EXTERNAL TEMPORARY STAFF
Peterborough,http://opendatacommunities.org/id/unitary-authority/peterborough,Peterborough City Council,Children's & Education Services - Education,Sure Start Children's Centres / Flying Start and Early Years,Supplies and Services,01/04/2015 00:00,725841,29084.72,REVENUE,Braybrook Nursery,GRANT PAYMENT
Peterborough,http://opendatacommunities.org/id/unitary-authority/peterborough,Peterborough City Council,Children's & Education Services - Education,Sure Start Children's Centres / Flying Start and Early Years,Supplies and Services,01/04/2015 00:00,725842,17481.09,REVENUE,PSLA,GRANT PAYMENT
Peterborough,http://opendatacommunities.org/id/unitary-authority/peterborough,Peterborough City Council,Children's & Education Services - Education,Sure Start Children's Centres / Flying Start and Early Years,Supplies and Services,01/04/2015 00:00,725843,16844.69,REVENUE,Bright Kids Nursery Ltd (Broadway),GRANT PAYMENT
Peterborough,http://opendatacommunities.org/id/unitary-authority/peterborough,Peterborough City Council,Children's & Education Services - Education,Sure Start Children's Centres / Flying Start and Early Years,Supplies and Services,01/04/2015 00:00,725844,30568,REVENUE,Leapfrog Day Nurseries,GRANT PAYMENT
Peterborough,http://opendatacommunities.org/id/unitary-authority/peterborough,Peterborough City Council,Children's & Education Services - Children's Social Care,Other Children's & Families Services,Employees,01/04/2015 00:00,725845,2190,REVENUE,Sanctuary Personnel Ltd,EXTERNAL TEMPORARY STAFF
Peterborough,http://opendatacommunities.org/id/unitary-authority/peterborough,Peterborough City Council,Children's & Education Services - Education,Sure Start Children's Centres / Flying Start and Early Years,Supplies and Services,01/04/2015 00:00,725846,36676.77,REVENUE,Bright Star's day Nursery,GRANT PAYMENT
Peterborough,http://opendatacommunities.org/id/unitary-authority/peterborough,Peterborough City Council,Children's & Education Services - Children's Social Care,Other Children's & Families Services,Employees,01/04/2015 00:00,725847,2553.6,REVENUE,Sanctuary Personnel Ltd,EXTERNAL TEMPORARY STAFF
Peterborough,http://opendatacommunities.org/id/unitary-authority/peterborough,Peterborough City Council,Children's & Education Services - Education,Sure Start Children's Centres / Flying Start and Early Years,Supplies and Services,01/04/2015 00:00,725849,7178.92,REVENUE,Bundles Pre School,GRANT PAYMENT
Peterborough,http://opendatacommunities.org/id/unitary-authority/peterborough,Peterborough City Council,Children's & Education Services - Education,Sure Start Children's Centres / Flying Start and Early Years,Supplies and Services,01/04/2015 00:00,725850,11119.13,REVENUE,Brookside Playgroup,GRANT PAYMENT
Peterborough,http://opendatacommunities.org/id/unitary-authority/peterborough,Peterborough City Council,Children's & Education Services - Education,Sure Start Children's Centres / Flying Start and Early Years,Supplies and Services,01/04/2015 00:00,725852,14409.72,REVENUE,Busy Bees Pre-School,GRANT PAYMENT
Peterborough,http://opendatacommunities.org/id/unitary-authority/peterborough,Peterborough City Council,Children's & Education Services - Education,Sure Start Children's Centres / Flying Start and Early Years,Supplies and Services,01/04/2015 00:00,725853,18152.98,REVENUE,Discovery Pre School,GRANT PAYMENT
Peterborough,http://opendatacommunities.org/id/unitary-authority/peterborough,Peterborough City Council,Children's & Education Services - Education,Sure Start Children's Centres / Flying Start and Early Years,Supplies and Services,01/04/2015 00:00,725854,40253.07,REVENUE,PSLA,GRANT PAYMENT
Peterborough,http://opendatacommunities.org/id/unitary-authority/peterborough,Peterborough City Council,Children's & Education Services - Education,Sure Start Children's Centres / Flying Start and Early Years,Supplies and Services,01/04/2015 00:00,725855,10943.7,REVENUE,East Community Playgroup,GRANT PAYMENT
Peterborough,http://opendatacommunities.org/id/unitary-authority/peterborough,Peterborough City Council,Children's & Education Services - Education,Sure Start Children's Centres / Flying Start and Early Years,Supplies and Services,01/04/2015 00:00,725857,21077.65,REVENUE,Springtime Nursery Ltd T/As Daisy Chain Day Nursery,GRANT PAYMENT
Peterborough,http://opendatacommunities.org/id/unitary-authority/peterborough,Peterborough City Council,Children's & Education Services - Education,Sure Start Children's Centres / Flying Start and Early Years,Supplies and Services,01/04/2015 00:00,725858,18693.17,REVENUE,Eye Pre-School,GRANT PAYMENT
Peterborough,http://opendatacommunities.org/id/unitary-authority/peterborough,Peterborough City Council,Children's & Education Services - Education,Sure Start Children's Centres / Flying Start and Early Years,Supplies and Services,01/04/2015 00:00,725859,13967.42,REVENUE,Pakistan Comm Ass of PBoro Pre- School,GRANT PAYMENT
Peterborough,http://opendatacommunities.org/id/unitary-authority/peterborough,Peterborough City Council,Children's & Education Services - Education,Sure Start Children's Centres / Flying Start and Early Years,Supplies and Services,01/04/2015 00:00,725860,41833.94,REVENUE,Flying Start Pre-School & Day Care Centre,GRANT PAYMENT
Peterborough,http://opendatacommunities.org/id/unitary-authority/peterborough,Peterborough City Council,More than one Service Area Category,More than one Service Division,Balance Sheet,01/04/2015 00:00,725862,5320,Balance Sheet,HM Revenues & Customs,TAXES
Peterborough,http://opendatacommunities.org/id/unitary-authority/peterborough,Peterborough City Council,Children's & Education Services - Education,Sure Start Children's Centres / Flying Start and Early Years,Supplies and Services,01/04/2015 00:00,725863,7225.53,REVENUE,Husaini Pre-School,GRANT PAYMENT
Peterborough,http://opendatacommunities.org/id/unitary-authority/peterborough,Peterborough City Council,Children's & Education Services - Education,Sure Start Children's Centres / Flying Start and Early Years,Supplies and Services,01/04/2015 00:00,725864,10353.76,REVENUE,First Steps Nursery (Maxey) Ltd,GRANT PAYMENT
Peterborough,http://opendatacommunities.org/id/unitary-authority/peterborough,Peterborough City Council,Children's & Education Services - Education,Sure Start Children's Centres / Flying Start and Early Years,Supplies and Services,01/04/2015 00:00,725865,10466.82,REVENUE,Glinton Pre-School Playgroup,GRANT PAYMENT
Peterborough,http://opendatacommunities.org/id/unitary-authority/peterborough,Peterborough City Council,Children's & Education Services - Education,Sure Start Children's Centres / Flying Start and Early Years,Supplies and Services,01/04/2015 00:00,725866,10788.92,REVENUE,Kidsunlimited Group Ltd,GRANT PAYMENT
Peterborough,http://opendatacommunities.org/id/unitary-authority/peterborough,Peterborough City Council,Children's & Education Services - Education,Sure Start Children's Centres / Flying Start and Early Years,Supplies and Services,01/04/2015 00:00,725867,81387.25,REVENUE,Herlington Pre-School,GRANT PAYMENT
Peterborough,http://opendatacommunities.org/id/unitary-authority/peterborough,Peterborough City Council,Children's & Education Services - Education,Sure Start Children's Centres / Flying Start and Early Years,Supplies and Services,01/04/2015 00:00,725868,14797.58,REVENUE,Little Bees Pre-School,GRANT PAYMENT
Peterborough,http://opendatacommunities.org/id/unitary-authority/peterborough,Peterborough City Council,Children's & Education Services - Education,Sure Start Children's Centres / Flying Start and Early Years,Supplies and Services,01/04/2015 00:00,725869,11665.77,REVENUE,Leighton Primary Pre-School,GRANT PAYMENT
Peterborough,http://opendatacommunities.org/id/unitary-authority/peterborough,Peterborough City Council,Children's & Education Services - Education,Sure Start Children's Centres / Flying Start and Early Years,Supplies and Services,01/04/2015 00:00,725870,9188.01,REVENUE,Little Owls Day Nursery,GRANT PAYMENT
Peterborough,http://opendatacommunities.org/id/unitary-authority/peterborough,Peterborough City Council,Children's & Education Services - Education,Sure Start Children's Centres / Flying Start and Early Years,Supplies and Services,01/04/2015 00:00,725871,6427.2,REVENUE,Little Angels,GRANT PAYMENT
Peterborough,http://opendatacommunities.org/id/unitary-authority/peterborough,Peterborough City Council,Children's & Education Services - Education,Sure Start Children's Centres / Flying Start and Early Years,Supplies and Services,01/04/2015 00:00,725872,3705.98,REVENUE,Little Blossoms,GRANT PAYMENT
Peterborough,http://opendatacommunities.org/id/unitary-authority/peterborough,Peterborough City Council,Adult Social Care,Older People,Supplies and Services,01/04/2015 00:00,725875,2049.76,REVENUE,BUPA Care Homes,RESIDENTIAL CARE
Peterborough,http://opendatacommunities.org/id/unitary-authority/peterborough,Peterborough City Council,Adult Social Care,Older People,Supplies and Services,01/04/2015 00:00,725877,1594.84,REVENUE,BUPA Care Homes,RESIDENTIAL CARE
Peterborough,http://opendatacommunities.org/id/unitary-authority/peterborough,Peterborough City Council,Adult Social Care,Older People,Supplies and Services,01/04/2015 00:00,725878,758.23,REVENUE,BUPA Care Homes,RESIDENTIAL CARE
Peterborough,http://opendatacommunities.org/id/unitary-authority/peterborough,Peterborough City Council,Adult Social Care,Older People,Supplies and Services,01/04/2015 00:00,725879,1633.12,REVENUE,BUPA Care Homes,RESIDENTIAL CARE
Peterborough,http://opendatacommunities.org/id/unitary-authority/peterborough,Peterborough City Council,Adult Social Care,Older People,Supplies and Services,01/04/2015 00:00,725880,1633.12,REVENUE,BUPA Care Homes,RESIDENTIAL CARE
Peterborough,http://opendatacommunities.org/id/unitary-authority/peterborough,Peterborough City Council,Adult Social Care,Older People,Supplies and Services,01/04/2015 00:00,725881,1633.12,REVENUE,BUPA Care Homes,RESIDENTIAL CARE
Peterborough,http://opendatacommunities.org/id/unitary-authority/peterborough,Peterborough City Council,Adult Social Care,Adult Physical Disability & Sensory Impairment,Supplies and Services,01/04/2015 00:00,725893,-1080.44,REVENUE,BUPA Care Homes,RESIDENTIAL CARE
Peterborough,http://opendatacommunities.org/id/unitary-authority/peterborough,Peterborough City Council,Adult Social Care,Social Care Activities,Employees,01/04/2015 00:00,725896,3150,REVENUE,Sanctuary Personnel Ltd,EXTERNAL TEMPORARY STAFF
Peterborough,http://opendatacommunities.org/id/unitary-authority/peterborough,Peterborough City Council,Adult Social Care,Social Care Activities,Employees,01/04/2015 00:00,725898,3150,REVENUE,Sanctuary Personnel Ltd,EXTERNAL TEMPORARY STAFF
Peterborough,http://opendatacommunities.org/id/unitary-authority/peterborough,Peterborough City Council,Adult Social Care,Social Care Activities,Employees,01/04/2015 00:00,725899,1890,REVENUE,Sanctuary Personnel Ltd,EXTERNAL TEMPORARY STAFF
Peterborough,http://opendatacommunities.org/id/unitary-authority/peterborough,Peterborough City Council,Adult Social Care,Social Care Activities,Employees,01/04/2015 00:00,725900,3150,REVENUE,Sanctuary Personnel Ltd,EXTERNAL TEMPORARY STAFF
Peterborough,http://opendatacommunities.org/id/unitary-authority/peterborough,Peterborough City Council,Adult Social Care,Older People,Supplies and Services,01/04/2015 00:00,725910,2100.12,REVENUE,Longueville Court (Barchester),RESIDENTIAL CARE
Peterborough,http://opendatacommunities.org/id/unitary-authority/peterborough,Peterborough City Council,Children's & Education Services - Children's Social Care,Children Looked After,Supplies and Services - Transfer Payments,01/04/2015 00:00,725914,3454.33,REVENUE,Synergy Fostering Ltd,BOARDING - OUT ALLOWANCES
Peterborough,http://opendatacommunities.org/id/unitary-authority/peterborough,Peterborough City Council,Adult Social Care,Older People,Supplies and Services,01/04/2015 00:00,725918,849.94,REVENUE,FIELD HOUSE (EYE) LTD,RESIDENTIAL CARE
Peterborough,http://opendatacommunities.org/id/unitary-authority/peterborough,Peterborough City Council,Adult Social Care,Older People,Supplies and Services,01/04/2015 00:00,725955,609.56,REVENUE,Housing 21,HOME CARE
Peterborough,http://opendatacommunities.org/id/unitary-authority/peterborough,Peterborough City Council,Planning Services,Community Development,Supplies and Services,01/04/2015 00:00,725963,1000,REVENUE,Thorney Parish Council,GRANT PAYMENT
Peterborough,http://opendatacommunities.org/id/unitary-authority/peterborough,Peterborough City Council,Children's & Education Services - Education,Sure Start Children's Centres / Flying Start and Early Years,Supplies and Services,01/04/2015 00:00,725974,51975,REVENUE,Little Tigers Day Nursery,GRANT PAYMENT
Peterborough,http://opendatacommunities.org/id/unitary-authority/peterborough,Peterborough City Council,Children's & Education Services - Education,Sure Start Children's Centres / Flying Start and Early Years,Supplies and Services,01/04/2015 00:00,725977,19861.76,REVENUE,Longthorpe Playgroup,GRANT PAYMENT
Peterborough,http://opendatacommunities.org/id/unitary-authority/peterborough,Peterborough City Council,Children's & Education Services - Education,Sure Start Children's Centres / Flying Start and Early Years,Supplies and Services,01/04/2015 00:00,725981,20479.1,REVENUE,Millfield Pre-School,GRANT PAYMENT
Peterborough,http://opendatacommunities.org/id/unitary-authority/peterborough,Peterborough City Council,Children's & Education Services - Education,Sure Start Children's Centres / Flying Start and Early Years,Supplies and Services,01/04/2015 00:00,725985,19301.38,REVENUE,Little Poppets Day Nursery,GRANT PAYMENT
Peterborough,http://opendatacommunities.org/id/unitary-authority/peterborough,Peterborough City Council,Children's & Education Services - Education,Sure Start Children's Centres / Flying Start and Early Years,Supplies and Services,01/04/2015 00:00,725990,71438.25,REVENUE,Little Stars Day Nursery,GRANT PAYMENT
Peterborough,http://opendatacommunities.org/id/unitary-authority/peterborough,Peterborough City Council,Children's & Education Services - Education,Sure Start Children's Centres / Flying Start and Early Years,Supplies and Services,01/04/2015 00:00,725994,11011.28,REVENUE,Newborough Pre-School Playgroup,GRANT PAYMENT
Peterborough,http://opendatacommunities.org/id/unitary-authority/peterborough,Peterborough City Council,Children's & Education Services - Education,Sure Start Children's Centres / Flying Start and Early Years,Supplies and Services,01/04/2015 00:00,725997,20559.99,REVENUE,Newark Playgroup,GRANT PAYMENT
Peterborough,http://opendatacommunities.org/id/unitary-authority/peterborough,Peterborough City Council,Children's & Education Services - Education,Sure Start Children's Centres / Flying Start and Early Years,Supplies and Services,01/04/2015 00:00,726013,40225.77,REVENUE,Nene Valley Day Nursery,GRANT PAYMENT
Peterborough,http://opendatacommunities.org/id/unitary-authority/peterborough,Peterborough City Council,Adult Social Care,Adult Learning Disabilities,Supplies and Services,01/04/2015 00:00,726014,4857.44,REVENUE,Craegmoor Priory Group,RESIDENTIAL CARE
Peterborough,http://opendatacommunities.org/id/unitary-authority/peterborough,Peterborough City Council,Adult Social Care,Older People,Supplies and Services,01/04/2015 00:00,726015,-1738.06,REVENUE,Avery Homes (Nelson) Ltd,RESIDENTIAL CARE
Peterborough,http://opendatacommunities.org/id/unitary-authority/peterborough,Peterborough City Council,Children's & Education Services - Education,Sure Start Children's Centres / Flying Start and Early Years,Supplies and Services,01/04/2015 00:00,726016,11636.62,REVENUE,Noah's Ark Pre-School,GRANT PAYMENT
Peterborough,http://opendatacommunities.org/id/unitary-authority/peterborough,Peterborough City Council,Children's & Education Services - Education,Sure Start Children's Centres / Flying Start and Early Years,Supplies and Services,01/04/2015 00:00,726017,28010.84,REVENUE,Orton Longueville Playgroup,GRANT PAYMENT
Peterborough,http://opendatacommunities.org/id/unitary-authority/peterborough,Peterborough City Council,Children's & Education Services - Education,Sure Start Children's Centres / Flying Start and Early Years,Supplies and Services,01/04/2015 00:00,726020,20359.56,REVENUE,Shining Stars Pre-School Nursery,GRANT PAYMENT
Peterborough,http://opendatacommunities.org/id/unitary-authority/peterborough,Peterborough City Council,Children's & Education Services - Education,Sure Start Children's Centres / Flying Start and Early Years,Supplies and Services,01/04/2015 00:00,726021,13719.36,REVENUE,Paston & Gunthorpe Pre-School,GRANT PAYMENT
Peterborough,http://opendatacommunities.org/id/unitary-authority/peterborough,Peterborough City Council,Children's & Education Services - Education,Sure Start Children's Centres / Flying Start and Early Years,Supplies and Services,01/04/2015 00:00,726022,14193.52,REVENUE,Orton Wistow Under Fives,GRANT PAYMENT
Peterborough,http://opendatacommunities.org/id/unitary-authority/peterborough,Peterborough City Council,Children's & Education Services - Education,Sure Start Children's Centres / Flying Start and Early Years,Supplies and Services,01/04/2015 00:00,726023,13028.87,REVENUE,Rainbow Pre-School,GRANT PAYMENT
Peterborough,http://opendatacommunities.org/id/unitary-authority/peterborough,Peterborough City Council,Children's & Education Services - Education,Sure Start Children's Centres / Flying Start and Early Years,Supplies and Services,01/04/2015 00:00,726025,18323.18,REVENUE,South Bretton Pre School,GRANT PAYMENT
Peterborough,http://opendatacommunities.org/id/unitary-authority/peterborough,Peterborough City Council,Children's & Education Services - Education,Sure Start Children's Centres / Flying Start and Early Years,Supplies and Services,01/04/2015 00:00,726027,8613.5,REVENUE,Silverhill Community Pre-School Ltd,GRANT PAYMENT
Peterborough,http://opendatacommunities.org/id/unitary-authority/peterborough,Peterborough City Council,Children's & Education Services - Education,Sure Start Children's Centres / Flying Start and Early Years,Supplies and Services,01/04/2015 00:00,726031,16959.54,REVENUE,Shooting Stars Pre-School,GRANT PAYMENT
Peterborough,http://opendatacommunities.org/id/unitary-authority/peterborough,Peterborough City Council,Children's & Education Services - Education,Sure Start Children's Centres / Flying Start and Early Years,Supplies and Services,01/04/2015 00:00,726032,10773.56,REVENUE,Smiley Faces Day Nursery,GRANT PAYMENT
Peterborough,http://opendatacommunities.org/id/unitary-authority/peterborough,Peterborough City Council,Children's & Education Services - Education,Sure Start Children's Centres / Flying Start and Early Years,Supplies and Services,01/04/2015 00:00,726034,7570.77,REVENUE,Southfields Pre-School Playgroup,GRANT PAYMENT
Peterborough,http://opendatacommunities.org/id/unitary-authority/peterborough,Peterborough City Council,Adult Social Care,Older People,Supplies and Services,01/04/2015 00:00,726050,3521.52,REVENUE,Sanctuary Care Limited,RESIDENTIAL CARE
Peterborough,http://opendatacommunities.org/id/unitary-authority/peterborough,Peterborough City Council,Adult Social Care,Adult Mental Health,Supplies and Services,01/04/2015 00:00,726051,2968.04,REVENUE,The Regard Partnership Limited,PROFESSIONAL SERVICES
Peterborough,http://opendatacommunities.org/id/unitary-authority/peterborough,Peterborough City Council,Children's & Education Services - Education,Sure Start Children's Centres / Flying Start and Early Years,Supplies and Services,01/04/2015 00:00,726056,26874.41,REVENUE,St Johns C of E Pre-School,GRANT PAYMENT
Peterborough,http://opendatacommunities.org/id/unitary-authority/peterborough,Peterborough City Council,Adult Social Care,Adult Learning Disabilities,Supplies and Services,01/04/2015 00:00,726060,5109.44,REVENUE,BOULEVARD CARE,RESIDENTIAL CARE
Peterborough,http://opendatacommunities.org/id/unitary-authority/peterborough,Peterborough City Council,Children's & Education Services - Education,Sure Start Children's Centres / Flying Start and Early Years,Supplies and Services,01/04/2015 00:00,726064,39154.83,REVENUE,St Thomas More Catholic Nursery,GRANT PAYMENT
Peterborough,http://opendatacommunities.org/id/unitary-authority/peterborough,Peterborough City Council,Children's & Education Services - Education,Sure Start Children's Centres / Flying Start and Early Years,Supplies and Services,01/04/2015 00:00,726067,39923.75,REVENUE,Stars Pre-School Dogsthorpe,GRANT PAYMENT
Peterborough,http://opendatacommunities.org/id/unitary-authority/peterborough,Peterborough City Council,Children's & Education Services - Education,Sure Start Children's Centres / Flying Start and Early Years,Supplies and Services,01/04/2015 00:00,726068,51898.27,REVENUE,St Josephs Day Nursery,GRANT PAYMENT
Peterborough,http://opendatacommunities.org/id/unitary-authority/peterborough,Peterborough City Council,Children's & Education Services - Education,Sure Start Children's Centres / Flying Start and Early Years,Supplies and Services,01/04/2015 00:00,726069,16132.16,REVENUE,Stanground St Johns Pre-School,GRANT PAYMENT
Peterborough,http://opendatacommunities.org/id/unitary-authority/peterborough,Peterborough City Council,Adult Social Care,Older People,Supplies and Services,01/04/2015 00:00,726072,1238.4,REVENUE,Allied Healthcare (UK) Ltd,HOME CARE
Peterborough,http://opendatacommunities.org/id/unitary-authority/peterborough,Peterborough City Council,Children's & Education Services - Education,Sure Start Children's Centres / Flying Start and Early Years,Supplies and Services,01/04/2015 00:00,726074,26081.64,REVENUE,Stars Pre-School Ravensthorpe,GRANT PAYMENT
Peterborough,http://opendatacommunities.org/id/unitary-authority/peterborough,Peterborough City Council,Children's & Education Services - Education,Sure Start Children's Centres / Flying Start and Early Years,Supplies and Services,01/04/2015 00:00,726075,34950.44,REVENUE,Stars Pre-School Parnwell,GRANT PAYMENT
Peterborough,http://opendatacommunities.org/id/unitary-authority/peterborough,Peterborough City Council,Children's & Education Services - Education,Sure Start Children's Centres / Flying Start and Early Years,Supplies and Services,01/04/2015 00:00,726077,42276.59,REVENUE,Stars Pre-School Welland,GRANT PAYMENT
Peterborough,http://opendatacommunities.org/id/unitary-authority/peterborough,Peterborough City Council,Adult Social Care,Older People,Supplies and Services,01/04/2015 00:00,726084,1247.84,REVENUE,Avery Homes (Nelson) Ltd,RESIDENTIAL CARE
Peterborough,http://opendatacommunities.org/id/unitary-authority/peterborough,Peterborough City Council,Children's & Education Services - Education,Sure Start Children's Centres / Flying Start and Early Years,Supplies and Services,01/04/2015 00:00,726086,11320.14,REVENUE,Step One Day Care,GRANT PAYMENT
Peterborough,http://opendatacommunities.org/id/unitary-authority/peterborough,Peterborough City Council,Children's & Education Services - Education,Sure Start Children's Centres / Flying Start and Early Years,Supplies and Services,01/04/2015 00:00,726088,23673.52,REVENUE,Stepping Stones Day Nursery,GRANT PAYMENT
Peterborough,http://opendatacommunities.org/id/unitary-authority/peterborough,Peterborough City Council,Children's & Education Services - Education,Sure Start Children's Centres / Flying Start and Early Years,Supplies and Services,01/04/2015 00:00,726090,7557.3,REVENUE,Stepping Stones Day Nursery,GRANT PAYMENT
Peterborough,http://opendatacommunities.org/id/unitary-authority/peterborough,Peterborough City Council,Children's & Education Services - Education,Sure Start Children's Centres / Flying Start and Early Years,Supplies and Services,01/04/2015 00:00,726093,13094.26,REVENUE,Sunflower Seed Pre-School,GRANT PAYMENT
Peterborough,http://opendatacommunities.org/id/unitary-authority/peterborough,Peterborough City Council,Children's & Education Services - Education,Sure Start Children's Centres / Flying Start and Early Years,Supplies and Services,01/04/2015 00:00,726094,4656.6,REVENUE,The Peterborough School Ltd,GRANT PAYMENT
Peterborough,http://opendatacommunities.org/id/unitary-authority/peterborough,Peterborough City Council,Children's & Education Services - Education,Sure Start Children's Centres / Flying Start and Early Years,Supplies and Services,01/04/2015 00:00,726095,16899.02,REVENUE,The Teddy Bears inn Day Nursery,GRANT PAYMENT
Peterborough,http://opendatacommunities.org/id/unitary-authority/peterborough,Peterborough City Council,Children's & Education Services - Education,Sure Start Children's Centres / Flying Start and Early Years,Supplies and Services,01/04/2015 00:00,726098,26988.86,REVENUE,Peterborough Regional College,GRANT PAYMENT
Peterborough,http://opendatacommunities.org/id/unitary-authority/peterborough,Peterborough City Council,Children's & Education Services - Education,Sure Start Children's Centres / Flying Start and Early Years,Supplies and Services,01/04/2015 00:00,726099,29382.99,REVENUE,Peterborough High School Nursery,GRANT PAYMENT
Peterborough,http://opendatacommunities.org/id/unitary-authority/peterborough,Peterborough City Council,Children's & Education Services - Education,Sure Start Children's Centres / Flying Start and Early Years,Supplies and Services,01/04/2015 00:00,726104,37705.2,REVENUE,The Day Nursery Peterborough Ltd,GRANT PAYMENT
Peterborough,http://opendatacommunities.org/id/unitary-authority/peterborough,Peterborough City Council,Children's & Education Services - Education,Sure Start Children's Centres / Flying Start and Early Years,Supplies and Services,01/04/2015 00:00,726105,9272.02,REVENUE,The Village Playgroup,GRANT PAYMENT
Peterborough,http://opendatacommunities.org/id/unitary-authority/peterborough,Peterborough City Council,Children's & Education Services - Education,Sure Start Children's Centres / Flying Start and Early Years,Supplies and Services,01/04/2015 00:00,726107,14442.95,REVENUE,Vale Community Pre-School,GRANT PAYMENT
Peterborough,http://opendatacommunities.org/id/unitary-authority/peterborough,Peterborough City Council,Children's & Education Services - Education,Sure Start Children's Centres / Flying Start and Early Years,Supplies and Services,01/04/2015 00:00,726108,17007.32,REVENUE,The Voyager Nursery,GRANT PAYMENT
Peterborough,http://opendatacommunities.org/id/unitary-authority/peterborough,Peterborough City Council,Children's & Education Services - Education,Sure Start Children's Centres / Flying Start and Early Years,Supplies and Services,01/04/2015 00:00,726109,15726.23,REVENUE,Young Generation Playgroup,GRANT PAYMENT
Peterborough,http://opendatacommunities.org/id/unitary-authority/peterborough,Peterborough City Council,Children's & Education Services - Education,Sure Start Children's Centres / Flying Start and Early Years,Supplies and Services,01/04/2015 00:00,726111,18876.66,REVENUE,West Town Playgroup,GRANT PAYMENT
Peterborough,http://opendatacommunities.org/id/unitary-authority/peterborough,Peterborough City Council,Children's & Education Services - Education,Sure Start Children's Centres / Flying Start and Early Years,Supplies and Services,01/04/2015 00:00,726113,15393.26,REVENUE,Winyates Pre School,GRANT PAYMENT
Peterborough,http://opendatacommunities.org/id/unitary-authority/peterborough,Peterborough City Council,Children's & Education Services - Education,Sure Start Children's Centres / Flying Start and Early Years,Supplies and Services,01/04/2015 00:00,726114,45745.83,REVENUE,ZigZag Day Nursery Ltd,GRANT PAYMENT
Peterborough,http://opendatacommunities.org/id/unitary-authority/peterborough,Peterborough City Council,Children's & Education Services - Education,Sure Start Children's Centres / Flying Start and Early Years,Supplies and Services,01/04/2015 00:00,726139,16932.33,REVENUE,Whiz Kids Day Nursery,GRANT PAYMENT
Peterborough,http://opendatacommunities.org/id/unitary-authority/peterborough,Peterborough City Council,Housing Services,Homelessness,Supplies and Services,01/04/2015 00:00,726140,1320,REVENUE,Redacted Personal Data,FINANCIAL ASSISTANCE
Peterborough,http://opendatacommunities.org/id/unitary-authority/peterborough,Peterborough City Council,Adult Social Care,Older People,Supplies and Services,01/04/2015 00:00,726143,6687.04,REVENUE,Augusta Care Ltd,HOME CARE
Peterborough,http://opendatacommunities.org/id/unitary-authority/peterborough,Peterborough City Council,Adult Social Care,Older People,Supplies and Services,01/04/2015 00:00,726166,1284.16,REVENUE,BUPA Care Homes,RESIDENTIAL CARE
Peterborough,http://opendatacommunities.org/id/unitary-authority/peterborough,Peterborough City Council,Adult Social Care,Older People,Supplies and Services,01/04/2015 00:00,726168,1647.08,REVENUE,BUPA Care Homes,RESIDENTIAL CARE
Peterborough,http://opendatacommunities.org/id/unitary-authority/peterborough,Peterborough City Council,Adult Social Care,Older People,Supplies and Services,01/04/2015 00:00,726169,800.28,REVENUE,BUPA Care Homes,RESIDENTIAL CARE
Peterborough,http://opendatacommunities.org/id/unitary-authority/peterborough,Peterborough City Council,Adult Social Care,Older People,Supplies and Services,01/04/2015 00:00,726171,1633.12,REVENUE,BUPA Care Homes,RESIDENTIAL CARE
Peterborough,http://opendatacommunities.org/id/unitary-authority/peterborough,Peterborough City Council,Adult Social Care,Older People,Supplies and Services,01/04/2015 00:00,726173,760.28,REVENUE,BUPA Care Homes,RESIDENTIAL CARE
Peterborough,http://opendatacommunities.org/id/unitary-authority/peterborough,Peterborough City Council,Adult Social Care,Older People,Supplies and Services,01/04/2015 00:00,726175,897.5,REVENUE,BUPA Care Homes,RESIDENTIAL CARE
Peterborough,http://opendatacommunities.org/id/unitary-authority/peterborough,Peterborough City Council,Adult Social Care,Older People,Supplies and Services,01/04/2015 00:00,726176,1536,REVENUE,BUPA Care Homes,RESIDENTIAL CARE
Peterborough,http://opendatacommunities.org/id/unitary-authority/peterborough,Peterborough City Council,Adult Social Care,Adult Physical Disability & Sensory Impairment,Supplies and Services,01/04/2015 00:00,726204,1548.12,REVENUE,St Margarets Rest Home,RESIDENTIAL CARE
Peterborough,http://opendatacommunities.org/id/unitary-authority/peterborough,Peterborough City Council,Adult Social Care,Split,Third Party Payments,01/04/2015 00:00,726211,1779.96,REVENUE,St Margarets Rest Home,THIRD PARTY PAYMENTS - CONTRACT
Peterborough,http://opendatacommunities.org/id/unitary-authority/peterborough,Peterborough City Council,Adult Social Care,Split,Third Party Payments,01/04/2015 00:00,726213,1779.96,REVENUE,St Margarets Rest Home,THIRD PARTY PAYMENTS - CONTRACT
Peterborough,http://opendatacommunities.org/id/unitary-authority/peterborough,Peterborough City Council,Adult Social Care,Older People,Supplies and Services,01/04/2015 00:00,726216,1575.53,REVENUE,St Margarets Rest Home,RESIDENTIAL CARE
Peterborough,http://opendatacommunities.org/id/unitary-authority/peterborough,Peterborough City Council,Adult Social Care,Older People,Supplies and Services,01/04/2015 00:00,726225,1492.83,REVENUE,St Margarets Rest Home,RESIDENTIAL CARE
Peterborough,http://opendatacommunities.org/id/unitary-authority/peterborough,Peterborough City Council,Adult Social Care,Older People,Supplies and Services,01/04/2015 00:00,726226,1869.88,REVENUE,St Margarets Rest Home,RESIDENTIAL CARE
Peterborough,http://opendatacommunities.org/id/unitary-authority/peterborough,Peterborough City Council,Housing Services,Homelessness,Supplies and Services,01/04/2015 00:00,726227,1040,REVENUE,Martin & Co (Stamford & Bourne),FINANCIAL ASSISTANCE
Peterborough,http://opendatacommunities.org/id/unitary-authority/peterborough,Peterborough City Council,Adult Social Care,Social Care Activities,More than one Expenses Type,01/04/2015 00:00,726228,4940.5,REVENUE,Fieldwork Admin Team (IMPREST),Numerous
Peterborough,http://opendatacommunities.org/id/unitary-authority/peterborough,Peterborough City Council,More than one Service Area Category,More than one Service Division,More than one Expenses Type,01/04/2015 00:00,726242,4000,"Mixture of Capital, Revenue and/or Balance Sheet",Futureheat Plumbing & Heating,GRANT PAYMENT
Peterborough,http://opendatacommunities.org/id/unitary-authority/peterborough,Peterborough City Council,More than one Service Area Category,More than one Service Division,More than one Expenses Type,01/04/2015 00:00,726252,678535.34,"Mixture of Capital, Revenue and/or Balance Sheet",Enterprise Managed Services Limited,THIRD PARTY PAYMENTS - CONTRACT
Peterborough,http://opendatacommunities.org/id/unitary-authority/peterborough,Peterborough City Council,Children's & Education Services - Education,All Schools - apportion across sectors,Supplies and Services,01/04/2015 00:00,726255,4125,REVENUE,Families First Ltd,GRANT PAYMENT
Peterborough,http://opendatacommunities.org/id/unitary-authority/peterborough,Peterborough City Council,Children's & Education Services - Children's Social Care,Children Looked After,Supplies and Services - Transfer Payments,01/04/2015 00:00,726275,16806.42,REVENUE,Care Focus Ltd,BOARDING - OUT ALLOWANCES
Peterborough,http://opendatacommunities.org/id/unitary-authority/peterborough,Peterborough City Council,Children's & Education Services - Education,Other Education and Community Budget,Transport,01/04/2015 00:00,726278,891.6,REVENUE,A2B Euro Cars,HIRED TRANSPORT
Peterborough,http://opendatacommunities.org/id/unitary-authority/peterborough,Peterborough City Council,Children's & Education Services - Education,Other Education and Community Budget,Transport,01/04/2015 00:00,726279,912.6,REVENUE,A2B Euro Cars,HIRED TRANSPORT
Peterborough,http://opendatacommunities.org/id/unitary-authority/peterborough,Peterborough City Council,Children's & Education Services - Children's Social Care,Children Looked After,Transport,01/04/2015 00:00,726280,900.24,REVENUE,A2B Euro Cars,HIRED TRANSPORT
Peterborough,http://opendatacommunities.org/id/unitary-authority/peterborough,Peterborough City Council,Children's & Education Services - Children's Social Care,Children Looked After,Transport,01/04/2015 00:00,726281,773.04,REVENUE,A2B Euro Cars,HIRED TRANSPORT
Peterborough,http://opendatacommunities.org/id/unitary-authority/peterborough,Peterborough City Council,Children's & Education Services - Children's Social Care,Children Looked After,Transport,01/04/2015 00:00,726282,944.4,REVENUE,A2B Euro Cars,HIRED TRANSPORT
Peterborough,http://opendatacommunities.org/id/unitary-authority/peterborough,Peterborough City Council,Children's & Education Services - Children's Social Care,Children Looked After,Transport,01/04/2015 00:00,726283,720.12,REVENUE,A2B Euro Cars,HIRED TRANSPORT
Peterborough,http://opendatacommunities.org/id/unitary-authority/peterborough,Peterborough City Council,More than one Service Area Category,More than one Service Division,Transport,01/04/2015 00:00,726284,1014.84,REVENUE,A2B Euro Cars,HIRED TRANSPORT
Peterborough,http://opendatacommunities.org/id/unitary-authority/peterborough,Peterborough City Council,More than one Service Area Category,More than one Service Division,Transport,01/04/2015 00:00,726285,735,REVENUE,A2B Euro Cars,HIRED TRANSPORT
Peterborough,http://opendatacommunities.org/id/unitary-authority/peterborough,Peterborough City Council,Children's & Education Services - Education,Other Education and Community Budget,Transport,01/04/2015 00:00,726286,1455.73,REVENUE,A2B Euro Cars,HIRED TRANSPORT
Peterborough,http://opendatacommunities.org/id/unitary-authority/peterborough,Peterborough City Council,More than one Service Area Category,More than one Service Division,Transport,01/04/2015 00:00,726287,1552.8,REVENUE,A2B Euro Cars,HIRED TRANSPORT
Peterborough,http://opendatacommunities.org/id/unitary-authority/peterborough,Peterborough City Council,Children's & Education Services - Education,Other Education and Community Budget,Transport,01/04/2015 00:00,726288,840,REVENUE,A2B Euro Cars,HIRED TRANSPORT
Peterborough,http://opendatacommunities.org/id/unitary-authority/peterborough,Peterborough City Council,Children's & Education Services - Education,Other Education and Community Budget,Transport,01/04/2015 00:00,726289,792,REVENUE,A2B Euro Cars,HIRED TRANSPORT
Peterborough,http://opendatacommunities.org/id/unitary-authority/peterborough,Peterborough City Council,Children's & Education Services - Education,Other Education and Community Budget,Transport,01/04/2015 00:00,726290,957.6,REVENUE,A2B Euro Cars,HIRED TRANSPORT
Peterborough,http://opendatacommunities.org/id/unitary-authority/peterborough,Peterborough City Council,Children's & Education Services - Education,Other Education and Community Budget,Transport,01/04/2015 00:00,726291,876,REVENUE,A2B Euro Cars,HIRED TRANSPORT
Peterborough,http://opendatacommunities.org/id/unitary-authority/peterborough,Peterborough City Council,Children's & Education Services - Education,Other Education and Community Budget,Transport,01/04/2015 00:00,726292,540,REVENUE,A2B Euro Cars,HIRED TRANSPORT
Peterborough,http://opendatacommunities.org/id/unitary-authority/peterborough,Peterborough City Council,Children's & Education Services - Education,Other Education and Community Budget,Transport,01/04/2015 00:00,726293,685.44,REVENUE,A2B Euro Cars,HIRED TRANSPORT
Peterborough,http://opendatacommunities.org/id/unitary-authority/peterborough,Peterborough City Council,Children's & Education Services - Education,Other Education and Community Budget,Transport,01/04/2015 00:00,726294,1905.36,REVENUE,Peterborough Cars,HIRED TRANSPORT
Peterborough,http://opendatacommunities.org/id/unitary-authority/peterborough,Peterborough City Council,Children's & Education Services - Education,Other Education and Community Budget,Transport,01/04/2015 00:00,726295,1710.98,REVENUE,Peterborough Cars,HIRED TRANSPORT
Peterborough,http://opendatacommunities.org/id/unitary-authority/peterborough,Peterborough City Council,Children's & Education Services - Education,Other Education and Community Budget,Transport,01/04/2015 00:00,726296,945.02,REVENUE,Peterborough Cars,HIRED TRANSPORT
Peterborough,http://opendatacommunities.org/id/unitary-authority/peterborough,Peterborough City Council,Children's & Education Services - Education,Other Education and Community Budget,Transport,01/04/2015 00:00,726297,697.92,REVENUE,Peterborough Cars,HIRED TRANSPORT
Peterborough,http://opendatacommunities.org/id/unitary-authority/peterborough,Peterborough City Council,Children's & Education Services - Education,Other Education and Community Budget,Transport,01/04/2015 00:00,726298,628.13,REVENUE,Peterborough Cars,HIRED TRANSPORT
Peterborough,http://opendatacommunities.org/id/unitary-authority/peterborough,Peterborough City Council,Children's & Education Services - Education,Other Education and Community Budget,Transport,01/04/2015 00:00,726300,500.4,REVENUE,Goldstar Cabs Ltd,HIRED TRANSPORT
Peterborough,http://opendatacommunities.org/id/unitary-authority/peterborough,Peterborough City Council,Children's & Education Services - Education,Other Education and Community Budget,Transport,01/04/2015 00:00,726301,1144.8,REVENUE,Goldstar Cabs Ltd,HIRED TRANSPORT
Peterborough,http://opendatacommunities.org/id/unitary-authority/peterborough,Peterborough City Council,Children's & Education Services - Education,Other Education and Community Budget,Transport,01/04/2015 00:00,726302,632.4,REVENUE,Goldstar Cabs Ltd,HIRED TRANSPORT
Peterborough,http://opendatacommunities.org/id/unitary-authority/peterborough,Peterborough City Council,Children's & Education Services - Education,Other Education and Community Budget,Transport,01/04/2015 00:00,726303,1609.8,REVENUE,Goldstar Cabs Ltd,HIRED TRANSPORT
Peterborough,http://opendatacommunities.org/id/unitary-authority/peterborough,Peterborough City Council,More than one Service Area Category,More than one Service Division,Transport,01/04/2015 00:00,726304,1672.92,REVENUE,Goldstar Cabs Ltd,HIRED TRANSPORT
Peterborough,http://opendatacommunities.org/id/unitary-authority/peterborough,Peterborough City Council,Children's & Education Services - Education,Other Education and Community Budget,Transport,01/04/2015 00:00,726305,1921.2,REVENUE,Goldstar Cabs Ltd,HIRED TRANSPORT
Peterborough,http://opendatacommunities.org/id/unitary-authority/peterborough,Peterborough City Council,Children's & Education Services - Education,Other Education and Community Budget,Transport,01/04/2015 00:00,726306,1269,REVENUE,Goldstar Cabs Ltd,HIRED TRANSPORT
Peterborough,http://opendatacommunities.org/id/unitary-authority/peterborough,Peterborough City Council,Children's & Education Services - Education,Other Education and Community Budget,Transport,01/04/2015 00:00,726311,1134,REVENUE,Peterborough Cars,HIRED TRANSPORT
Peterborough,http://opendatacommunities.org/id/unitary-authority/peterborough,Peterborough City Council,Children's & Education Services - Education,Other Education and Community Budget,Transport,01/04/2015 00:00,726312,878.95,REVENUE,Peterborough Cars,HIRED TRANSPORT
Peterborough,http://opendatacommunities.org/id/unitary-authority/peterborough,Peterborough City Council,Children's & Education Services - Education,Other Education and Community Budget,Transport,01/04/2015 00:00,726313,1258.66,REVENUE,Peterborough Cars,HIRED TRANSPORT
Peterborough,http://opendatacommunities.org/id/unitary-authority/peterborough,Peterborough City Council,Children's & Education Services - Education,Other Education and Community Budget,Transport,01/04/2015 00:00,726314,1674.7,REVENUE,Peterborough Cars,HIRED TRANSPORT
Peterborough,http://opendatacommunities.org/id/unitary-authority/peterborough,Peterborough City Council,Children's & Education Services - Education,Other Education and Community Budget,Transport,01/04/2015 00:00,726315,586.82,REVENUE,Peterborough Cars,HIRED TRANSPORT
Peterborough,http://opendatacommunities.org/id/unitary-authority/peterborough,Peterborough City Council,Children's & Education Services - Education,Other Education and Community Budget,Transport,01/04/2015 00:00,726316,823.68,REVENUE,Goldstar Cabs Ltd,HIRED TRANSPORT
Peterborough,http://opendatacommunities.org/id/unitary-authority/peterborough,Peterborough City Council,Children's & Education Services - Education,Other Education and Community Budget,Transport,01/04/2015 00:00,726317,1320.48,REVENUE,Goldstar Cabs Ltd,HIRED TRANSPORT
Peterborough,http://opendatacommunities.org/id/unitary-authority/peterborough,Peterborough City Council,Children's & Education Services - Education,Other Education and Community Budget,Transport,01/04/2015 00:00,726318,1475.52,REVENUE,Goldstar Cabs Ltd,HIRED TRANSPORT
Peterborough,http://opendatacommunities.org/id/unitary-authority/peterborough,Peterborough City Council,Children's & Education Services - Education,Other Education and Community Budget,Transport,01/04/2015 00:00,726319,1131.84,REVENUE,Goldstar Cabs Ltd,HIRED TRANSPORT
Peterborough,http://opendatacommunities.org/id/unitary-authority/peterborough,Peterborough City Council,Children's & Education Services - Education,Other Education and Community Budget,Transport,01/04/2015 00:00,726320,1376.4,REVENUE,Goldstar Cabs Ltd,HIRED TRANSPORT
Peterborough,http://opendatacommunities.org/id/unitary-authority/peterborough,Peterborough City Council,Children's & Education Services - Education,Other Education and Community Budget,Transport,01/04/2015 00:00,726321,1919.96,REVENUE,Goldstar Cabs Ltd,HIRED TRANSPORT
Peterborough,http://opendatacommunities.org/id/unitary-authority/peterborough,Peterborough City Council,Children's & Education Services - Education,Other Education and Community Budget,Transport,01/04/2015 00:00,726322,2149.2,REVENUE,Goldstar Cabs Ltd,HIRED TRANSPORT
Peterborough,http://opendatacommunities.org/id/unitary-authority/peterborough,Peterborough City Council,Children's & Education Services - Education,Other Education and Community Budget,Transport,01/04/2015 00:00,726323,3054,REVENUE,Goldstar Cabs Ltd,HIRED TRANSPORT
Peterborough,http://opendatacommunities.org/id/unitary-authority/peterborough,Peterborough City Council,Children's & Education Services - Education,Other Education and Community Budget,Transport,01/04/2015 00:00,726324,1731.6,REVENUE,Goldstar Cabs Ltd,HIRED TRANSPORT
Peterborough,http://opendatacommunities.org/id/unitary-authority/peterborough,Peterborough City Council,Children's & Education Services - Education,Other Education and Community Budget,Transport,01/04/2015 00:00,726325,1508.4,REVENUE,Goldstar Cabs Ltd,HIRED TRANSPORT
Peterborough,http://opendatacommunities.org/id/unitary-authority/peterborough,Peterborough City Council,Children's & Education Services - Education,All Schools - apportion across sectors,Supplies and Services,01/04/2015 00:00,726349,1912.5,REVENUE,Families First Ltd,GRANT PAYMENT
Peterborough,http://opendatacommunities.org/id/unitary-authority/peterborough,Peterborough City Council,Public Health,Substance Misuse,Third Party Payments,01/04/2015 00:00,726350,851,REVENUE,BOOTS MIDNIGHT PHARMACY (Bretton Centre),THIRD PARTY PAYMENTS - CONTRACT
Peterborough,http://opendatacommunities.org/id/unitary-authority/peterborough,Peterborough City Council,Public Health,Substance Misuse,Third Party Payments,01/04/2015 00:00,726351,1609,REVENUE,ASDA PHARMACY PETERBOROUGH,THIRD PARTY PAYMENTS - CONTRACT
Peterborough,http://opendatacommunities.org/id/unitary-authority/peterborough,Peterborough City Council,Children's & Education Services - Education,All Schools - apportion across sectors,Supplies and Services,01/04/2015 00:00,726353,2970,REVENUE,Families First Ltd,GRANT PAYMENT
Peterborough,http://opendatacommunities.org/id/unitary-authority/peterborough,Peterborough City Council,More than one Service Area Category,More than one Service Division,More than one Expenses Type,01/04/2015 00:00,726355,4648,"Mixture of Capital, Revenue and/or Balance Sheet",M J Greaves,GRANT PAYMENT
Peterborough,http://opendatacommunities.org/id/unitary-authority/peterborough,Peterborough City Council,Public Health,Substance Misuse,Third Party Payments,01/04/2015 00:00,726369,518.5,REVENUE,Graham Young Pharmacy,THIRD PARTY PAYMENTS - CONTRACT
Peterborough,http://opendatacommunities.org/id/unitary-authority/peterborough,Peterborough City Council,Adult Social Care,Older People,Supplies and Services,01/04/2015 00:00,726374,1052.3,REVENUE,St Margarets Rest Home,RESIDENTIAL CARE
Peterborough,http://opendatacommunities.org/id/unitary-authority/peterborough,Peterborough City Council,Public Health,Substance Misuse,Third Party Payments,01/04/2015 00:00,726378,842.5,REVENUE,City Pharmacy,THIRD PARTY PAYMENTS - CONTRACT
Peterborough,http://opendatacommunities.org/id/unitary-authority/peterborough,Peterborough City Council,Public Health,Substance Misuse,Third Party Payments,01/04/2015 00:00,726380,1234,REVENUE,Millfield Pharmacy,THIRD PARTY PAYMENTS - CONTRACT
Peterborough,http://opendatacommunities.org/id/unitary-authority/peterborough,Peterborough City Council,Public Health,Substance Misuse,Third Party Payments,01/04/2015 00:00,726385,844.5,REVENUE,BOOTS MIDNIGHT PHARMACY (Bretton Centre),THIRD PARTY PAYMENTS - CONTRACT
Peterborough,http://opendatacommunities.org/id/unitary-authority/peterborough,Peterborough City Council,Public Health,Substance Misuse,Third Party Payments,01/04/2015 00:00,726389,723,REVENUE,Boots Queensgate,THIRD PARTY PAYMENTS - CONTRACT
Peterborough,http://opendatacommunities.org/id/unitary-authority/peterborough,Peterborough City Council,Adult Social Care,Older People,Supplies and Services,01/04/2015 00:00,726398,-1266.16,REVENUE,St Margarets Rest Home,RESIDENTIAL CARE
Peterborough,http://opendatacommunities.org/id/unitary-authority/peterborough,Peterborough City Council,Adult Social Care,Older People,Supplies and Services,01/04/2015 00:00,726401,1112.44,REVENUE,St Margarets Rest Home,RESIDENTIAL CARE
Peterborough,http://opendatacommunities.org/id/unitary-authority/peterborough,Peterborough City Council,Adult Social Care,Older People,Supplies and Services,01/04/2015 00:00,726403,1004.16,REVENUE,St Margarets Rest Home,RESIDENTIAL CARE
Peterborough,http://opendatacommunities.org/id/unitary-authority/peterborough,Peterborough City Council,Adult Social Care,Older People,Supplies and Services,01/04/2015 00:00,726408,1389.6,REVENUE,St Margarets Rest Home,RESIDENTIAL CARE
Peterborough,http://opendatacommunities.org/id/unitary-authority/peterborough,Peterborough City Council,Adult Social Care,Older People,Supplies and Services,01/04/2015 00:00,726410,8805.92,REVENUE,St Margarets Rest Home,RESIDENTIAL CARE
Peterborough,http://opendatacommunities.org/id/unitary-authority/peterborough,Peterborough City Council,Adult Social Care,Older People,Supplies and Services,01/04/2015 00:00,726422,1082.42,REVENUE,St Margarets Rest Home,RESIDENTIAL CARE
Peterborough,http://opendatacommunities.org/id/unitary-authority/peterborough,Peterborough City Council,Adult Social Care,Older People,Supplies and Services,01/04/2015 00:00,726423,762.4,REVENUE,St Margarets Rest Home,RESIDENTIAL CARE
Peterborough,http://opendatacommunities.org/id/unitary-authority/peterborough,Peterborough City Council,Adult Social Care,Older People,Supplies and Services,01/04/2015 00:00,726425,802.48,REVENUE,St Margarets Rest Home,RESIDENTIAL CARE
Peterborough,http://opendatacommunities.org/id/unitary-authority/peterborough,Peterborough City Council,Adult Social Care,Older People,Supplies and Services,01/04/2015 00:00,726428,778.58,REVENUE,St Margarets Rest Home,RESIDENTIAL CARE
Peterborough,http://opendatacommunities.org/id/unitary-authority/peterborough,Peterborough City Council,Adult Social Care,Older People,Supplies and Services,01/04/2015 00:00,726430,890.32,REVENUE,St Margarets Rest Home,RESIDENTIAL CARE
Peterborough,http://opendatacommunities.org/id/unitary-authority/peterborough,Peterborough City Council,Adult Social Care,Older People,Supplies and Services,01/04/2015 00:00,726435,-909.46,REVENUE,St Margarets Rest Home,RESIDENTIAL CARE
Peterborough,http://opendatacommunities.org/id/unitary-authority/peterborough,Peterborough City Council,Children's & Education Services - Children's Social Care,Other Children's & Families Services,Employees,01/04/2015 00:00,726490,-2144.52,REVENUE,Sanctuary Personnel Ltd,EXTERNAL TEMPORARY STAFF
Peterborough,http://opendatacommunities.org/id/unitary-authority/peterborough,Peterborough City Council,Children's & Education Services - Children's Social Care,Other Children's & Families Services,Employees,01/04/2015 00:00,726492,1800,REVENUE,Sanctuary Personnel Ltd,EXTERNAL TEMPORARY STAFF
Peterborough,http://opendatacommunities.org/id/unitary-authority/peterborough,Peterborough City Council,Adult Social Care,Older People,Supplies and Services,01/04/2015 00:00,726545,1492.8,REVENUE,Housing 21,HOME CARE
Peterborough,http://opendatacommunities.org/id/unitary-authority/peterborough,Peterborough City Council,Adult Social Care,Older People,Supplies and Services,01/04/2015 00:00,726546,671.76,REVENUE,Housing 21,HOME CARE
Peterborough,http://opendatacommunities.org/id/unitary-authority/peterborough,Peterborough City Council,Adult Social Care,Older People,Supplies and Services,01/04/2015 00:00,726547,522.48,REVENUE,Housing 21,HOME CARE
Peterborough,http://opendatacommunities.org/id/unitary-authority/peterborough,Peterborough City Council,Adult Social Care,Older People,Supplies and Services,01/04/2015 00:00,726549,528.7,REVENUE,Housing 21,HOME CARE
Peterborough,http://opendatacommunities.org/id/unitary-authority/peterborough,Peterborough City Council,Adult Social Care,Older People,Supplies and Services,01/04/2015 00:00,726553,609.56,REVENUE,Housing 21,HOME CARE
Peterborough,http://opendatacommunities.org/id/unitary-authority/peterborough,Peterborough City Council,Adult Social Care,Older People,Supplies and Services,01/04/2015 00:00,726555,1791.36,REVENUE,Housing 21,HOME CARE
Peterborough,http://opendatacommunities.org/id/unitary-authority/peterborough,Peterborough City Council,Adult Social Care,Older People,Supplies and Services,01/04/2015 00:00,726557,696.64,REVENUE,Housing 21,HOME CARE
Peterborough,http://opendatacommunities.org/id/unitary-authority/peterborough,Peterborough City Council,Adult Social Care,Older People,Supplies and Services,01/04/2015 00:00,726561,1915.76,REVENUE,Housing 21,HOME CARE
Peterborough,http://opendatacommunities.org/id/unitary-authority/peterborough,Peterborough City Council,Adult Social Care,Older People,Supplies and Services,01/04/2015 00:00,726563,522.48,REVENUE,Housing 21,HOME CARE
Peterborough,http://opendatacommunities.org/id/unitary-authority/peterborough,Peterborough City Council,Adult Social Care,Older People,Supplies and Services,01/04/2015 00:00,726568,783.72,REVENUE,Housing 21,HOME CARE
Peterborough,http://opendatacommunities.org/id/unitary-authority/peterborough,Peterborough City Council,Adult Social Care,Older People,Supplies and Services,01/04/2015 00:00,726570,609.56,REVENUE,Housing 21,HOME CARE
Peterborough,http://opendatacommunities.org/id/unitary-authority/peterborough,Peterborough City Council,Adult Social Care,Older People,Supplies and Services,01/04/2015 00:00,726571,609.56,REVENUE,Housing 21,HOME CARE
Peterborough,http://opendatacommunities.org/id/unitary-authority/peterborough,Peterborough City Council,Adult Social Care,Older People,Supplies and Services,01/04/2015 00:00,726572,2699.48,REVENUE,Housing 21,HOME CARE
Peterborough,http://opendatacommunities.org/id/unitary-authority/peterborough,Peterborough City Council,Adult Social Care,Older People,Supplies and Services,01/04/2015 00:00,726574,584.68,REVENUE,Housing 21,HOME CARE
Peterborough,http://opendatacommunities.org/id/unitary-authority/peterborough,Peterborough City Council,Adult Social Care,Older People,Supplies and Services,01/04/2015 00:00,726575,783.72,REVENUE,Housing 21,HOME CARE
Peterborough,http://opendatacommunities.org/id/unitary-authority/peterborough,Peterborough City Council,Adult Social Care,Older People,Supplies and Services,01/04/2015 00:00,726576,522.48,REVENUE,Housing 21,HOME CARE
Peterborough,http://opendatacommunities.org/id/unitary-authority/peterborough,Peterborough City Council,Adult Social Care,Older People,Supplies and Services,01/04/2015 00:00,726577,609.56,REVENUE,Housing 21,HOME CARE
Peterborough,http://opendatacommunities.org/id/unitary-authority/peterborough,Peterborough City Council,Adult Social Care,Older People,Supplies and Services,01/04/2015 00:00,726578,522.48,REVENUE,Housing 21,HOME CARE
Peterborough,http://opendatacommunities.org/id/unitary-authority/peterborough,Peterborough City Council,Capital,Capital,Capital Pending Update to BS,01/04/2015 00:00,726801,11128.33,CAPITAL,Ringway Infrastructure Services,INFRASTRUCTURE
Peterborough,http://opendatacommunities.org/id/unitary-authority/peterborough,Peterborough City Council,Adult Social Care,Social Care Activities,Employees,01/04/2015 00:00,726836,1365,REVENUE,Caritas Recruitment,EXTERNAL TEMPORARY STAFF
Peterborough,http://opendatacommunities.org/id/unitary-authority/peterborough,Peterborough City Council,Adult Social Care,Social Care Activities,Employees,01/04/2015 00:00,726843,3108,REVENUE,Caritas Recruitment,EXTERNAL TEMPORARY STAFF
Peterborough,http://opendatacommunities.org/id/unitary-authority/peterborough,Peterborough City Council,Adult Social Care,Social Care Activities,Employees,01/04/2015 00:00,726846,1596,REVENUE,Caritas Recruitment,EXTERNAL TEMPORARY STAFF
Peterborough,http://opendatacommunities.org/id/unitary-authority/peterborough,Peterborough City Council,Adult Social Care,Social Care Activities,Employees,01/04/2015 00:00,726849,1512,REVENUE,Caritas Recruitment,EXTERNAL TEMPORARY STAFF
Peterborough,http://opendatacommunities.org/id/unitary-authority/peterborough,Peterborough City Council,Adult Social Care,Social Care Activities,Employees,01/04/2015 00:00,726850,1554,REVENUE,Caritas Recruitment,EXTERNAL TEMPORARY STAFF
Peterborough,http://opendatacommunities.org/id/unitary-authority/peterborough,Peterborough City Council,Adult Social Care,Social Care Activities,Employees,01/04/2015 00:00,726853,1554,REVENUE,Caritas Recruitment,EXTERNAL TEMPORARY STAFF
Peterborough,http://opendatacommunities.org/id/unitary-authority/peterborough,Peterborough City Council,Adult Social Care,Social Care Activities,Employees,01/04/2015 00:00,726869,1554,REVENUE,Caritas Recruitment,EXTERNAL TEMPORARY STAFF
Peterborough,http://opendatacommunities.org/id/unitary-authority/peterborough,Peterborough City Council,Adult Social Care,Social Care Activities,Employees,01/04/2015 00:00,726872,1512,REVENUE,Caritas Recruitment,EXTERNAL TEMPORARY STAFF
Peterborough,http://opendatacommunities.org/id/unitary-authority/peterborough,Peterborough City Council,Adult Social Care,Social Care Activities,Employees,01/04/2015 00:00,726874,1575,REVENUE,Caritas Recruitment,EXTERNAL TEMPORARY STAFF
Peterborough,http://opendatacommunities.org/id/unitary-authority/peterborough,Peterborough City Council,Adult Social Care,Social Care Activities,Employees,01/04/2015 00:00,726876,1281,REVENUE,Caritas Recruitment,EXTERNAL TEMPORARY STAFF
Peterborough,http://opendatacommunities.org/id/unitary-authority/peterborough,Peterborough City Council,Adult Social Care,Social Care Activities,Employees,01/04/2015 00:00,726900,1491,REVENUE,Caritas Recruitment,EXTERNAL TEMPORARY STAFF
Peterborough,http://opendatacommunities.org/id/unitary-authority/peterborough,Peterborough City Council,Adult Social Care,Social Care Activities,Employees,01/04/2015 00:00,726904,1575,REVENUE,Caritas Recruitment,EXTERNAL TEMPORARY STAFF
Peterborough,http://opendatacommunities.org/id/unitary-authority/peterborough,Peterborough City Council,Adult Social Care,Social Care Activities,Employees,01/04/2015 00:00,726907,4504.5,REVENUE,Caritas Recruitment,EXTERNAL TEMPORARY STAFF
Peterborough,http://opendatacommunities.org/id/unitary-authority/peterborough,Peterborough City Council,Adult Social Care,Social Care Activities,Employees,01/04/2015 00:00,726909,1596,REVENUE,Caritas Recruitment,EXTERNAL TEMPORARY STAFF
Peterborough,http://opendatacommunities.org/id/unitary-authority/peterborough,Peterborough City Council,Adult Social Care,Social Care Activities,Employees,01/04/2015 00:00,726910,1554,REVENUE,Caritas Recruitment,EXTERNAL TEMPORARY STAFF
Peterborough,http://opendatacommunities.org/id/unitary-authority/peterborough,Peterborough City Council,Adult Social Care,Social Care Activities,Employees,01/04/2015 00:00,726916,1575,REVENUE,Caritas Recruitment,EXTERNAL TEMPORARY STAFF
Peterborough,http://opendatacommunities.org/id/unitary-authority/peterborough,Peterborough City Council,Adult Social Care,Social Care Activities,Employees,01/04/2015 00:00,726918,1596,REVENUE,Caritas Recruitment,EXTERNAL TEMPORARY STAFF
Peterborough,http://opendatacommunities.org/id/unitary-authority/peterborough,Peterborough City Council,Adult Social Care,Split,Third Party Payments,01/04/2015 00:00,726943,60548.12,REVENUE,HEREWARD CARE SERVICES LIMITED,THIRD PARTY PAYMENTS - CONTRACT
Peterborough,http://opendatacommunities.org/id/unitary-authority/peterborough,Peterborough City Council,Adult Social Care,Social Care Activities,Employees,01/04/2015 00:00,726944,1554,REVENUE,Caritas Recruitment,EXTERNAL TEMPORARY STAFF
Peterborough,http://opendatacommunities.org/id/unitary-authority/peterborough,Peterborough City Council,Adult Social Care,Social Care Activities,Employees,01/04/2015 00:00,726947,1554,REVENUE,Caritas Recruitment,EXTERNAL TEMPORARY STAFF
Peterborough,http://opendatacommunities.org/id/unitary-authority/peterborough,Peterborough City Council,Adult Social Care,Social Care Activities,Employees,01/04/2015 00:00,726949,1008,REVENUE,Caritas Recruitment,EXTERNAL TEMPORARY STAFF
Peterborough,http://opendatacommunities.org/id/unitary-authority/peterborough,Peterborough City Council,Adult Social Care,Social Care Activities,Employees,01/04/2015 00:00,726954,1554,REVENUE,Caritas Recruitment,EXTERNAL TEMPORARY STAFF
Peterborough,http://opendatacommunities.org/id/unitary-authority/peterborough,Peterborough City Council,Adult Social Care,Social Care Activities,Employees,01/04/2015 00:00,726955,1554,REVENUE,Caritas Recruitment,EXTERNAL TEMPORARY STAFF
Peterborough,http://opendatacommunities.org/id/unitary-authority/peterborough,Peterborough City Council,Adult Social Care,Social Care Activities,Employees,01/04/2015 00:00,726957,1554,REVENUE,Caritas Recruitment,EXTERNAL TEMPORARY STAFF
Peterborough,http://opendatacommunities.org/id/unitary-authority/peterborough,Peterborough City Council,Adult Social Care,Social Care Activities,Employees,01/04/2015 00:00,726962,1554,REVENUE,Caritas Recruitment,EXTERNAL TEMPORARY STAFF
Peterborough,http://opendatacommunities.org/id/unitary-authority/peterborough,Peterborough City Council,More than one Service Area Category,More than one Service Division,Premises,01/04/2015 00:00,726972,1396.93,REVENUE,British Gas Business,ELECTRICITY
Peterborough,http://opendatacommunities.org/id/unitary-authority/peterborough,Peterborough City Council,More than one Service Area Category,More than one Service Division,Premises,01/04/2015 00:00,726974,704.5,REVENUE,British Gas Business,ELECTRICITY
Peterborough,http://opendatacommunities.org/id/unitary-authority/peterborough,Peterborough City Council,More than one Service Area Category,More than one Service Division,Balance Sheet,01/04/2015 00:00,726975,6150,Balance Sheet,RSA,INSURANCE CLAIMS
Peterborough,http://opendatacommunities.org/id/unitary-authority/peterborough,Peterborough City Council,Planning Services,Community Development,Supplies and Services,01/04/2015 00:00,726978,3250,REVENUE,Thorney Parish Council,GRANT PAYMENT
Peterborough,http://opendatacommunities.org/id/unitary-authority/peterborough,Peterborough City Council,Adult Social Care,Older People,Supplies and Services,01/04/2015 00:00,726994,8452.8,REVENUE,Augusta Care Ltd,HOME CARE
Peterborough,http://opendatacommunities.org/id/unitary-authority/peterborough,Peterborough City Council,Adult Social Care,Older People,Supplies and Services,01/04/2015 00:00,726995,8452.8,REVENUE,Augusta Care Ltd,HOME CARE
Peterborough,http://opendatacommunities.org/id/unitary-authority/peterborough,Peterborough City Council,Adult Social Care,Older People,Supplies and Services,01/04/2015 00:00,727010,8542.8,REVENUE,Augusta Care Ltd,HOME CARE
Peterborough,http://opendatacommunities.org/id/unitary-authority/peterborough,Peterborough City Council,Adult Social Care,Older People,Supplies and Services,01/04/2015 00:00,727013,4852.8,REVENUE,Augusta Care Ltd,HOME CARE
Peterborough,http://opendatacommunities.org/id/unitary-authority/peterborough,Peterborough City Council,Adult Social Care,Older People,Supplies and Services,01/04/2015 00:00,727016,4852.8,REVENUE,Augusta Care Ltd,HOME CARE
Peterborough,http://opendatacommunities.org/id/unitary-authority/peterborough,Peterborough City Council,Adult Social Care,Older People,Supplies and Services,01/04/2015 00:00,727020,4852.8,REVENUE,Augusta Care Ltd,HOME CARE
Peterborough,http://opendatacommunities.org/id/unitary-authority/peterborough,Peterborough City Council,Adult Social Care,Older People,Supplies and Services,01/04/2015 00:00,727023,8452.8,REVENUE,Augusta Care Ltd,HOME CARE
Peterborough,http://opendatacommunities.org/id/unitary-authority/peterborough,Peterborough City Council,Adult Social Care,Older People,Supplies and Services,01/04/2015 00:00,727027,4852.8,REVENUE,Augusta Care Ltd,HOME CARE
Peterborough,http://opendatacommunities.org/id/unitary-authority/peterborough,Peterborough City Council,Children's & Education Services - Education,Secondary,Employees,01/04/2015 00:00,727034,1785,REVENUE,Families First Ltd,EDUCATION SUPPORT STAFF
Peterborough,http://opendatacommunities.org/id/unitary-authority/peterborough,Peterborough City Council,More than one Service Area Category,More than one Service Division,More than one Expenses Type,01/04/2015 00:00,727039,4501,"Mixture of Capital, Revenue and/or Balance Sheet",Morley Building Services,GRANT PAYMENT
Peterborough,http://opendatacommunities.org/id/unitary-authority/peterborough,Peterborough City Council,More than one Service Area Category,More than one Service Division,More than one Expenses Type,01/04/2015 00:00,727052,3030.56,"Mixture of Capital, Revenue and/or Balance Sheet",Warics Ltd,GRANT PAYMENT
Peterborough,http://opendatacommunities.org/id/unitary-authority/peterborough,Peterborough City Council,Adult Social Care,Adult Physical Disability & Sensory Impairment,Supplies and Services,01/04/2015 00:00,727061,1000,REVENUE,Longueville Court (Barchester),RESIDENTIAL CARE
Peterborough,http://opendatacommunities.org/id/unitary-authority/peterborough,Peterborough City Council,Adult Social Care,Adult Physical Disability & Sensory Impairment,Supplies and Services,01/04/2015 00:00,727063,4000,REVENUE,Longueville Court (Barchester),RESIDENTIAL CARE
Peterborough,http://opendatacommunities.org/id/unitary-authority/peterborough,Peterborough City Council,Cultural and Related Services,Tourism,Supplies and Services,01/04/2015 00:00,727066,1611,REVENUE,Services Fund RAF Wyton,TICKETS
Peterborough,http://opendatacommunities.org/id/unitary-authority/peterborough,Peterborough City Council,Adult Social Care,Older People,Supplies and Services,01/04/2015 00:00,727068,4852.8,REVENUE,Augusta Care Ltd,HOME CARE
Peterborough,http://opendatacommunities.org/id/unitary-authority/peterborough,Peterborough City Council,Adult Social Care,Older People,Supplies and Services,01/04/2015 00:00,727069,860.89,REVENUE,Pilgrim Havens,RESIDENTIAL CARE
Peterborough,http://opendatacommunities.org/id/unitary-authority/peterborough,Peterborough City Council,Adult Social Care,Older People,Supplies and Services,01/04/2015 00:00,727070,4852.8,REVENUE,Augusta Care Ltd,HOME CARE
Peterborough,http://opendatacommunities.org/id/unitary-authority/peterborough,Peterborough City Council,More than one Service Area Category,More than one Service Division,More than one Expenses Type,01/04/2015 00:00,727075,3033.37,REVENUE,Peterborough City Council,Numerous
Peterborough,http://opendatacommunities.org/id/unitary-authority/peterborough,Peterborough City Council,Adult Social Care,Older People,Supplies and Services,01/04/2015 00:00,727080,4852.8,REVENUE,Augusta Care Ltd,HOME CARE
Peterborough,http://opendatacommunities.org/id/unitary-authority/peterborough,Peterborough City Council,Adult Social Care,Older People,Supplies and Services,01/04/2015 00:00,727083,4506.17,REVENUE,Augusta Care Ltd,HOME CARE
Peterborough,http://opendatacommunities.org/id/unitary-authority/peterborough,Peterborough City Council,Adult Social Care,Older People,Supplies and Services,01/04/2015 00:00,727085,4852.8,REVENUE,Augusta Care Ltd,HOME CARE
Peterborough,http://opendatacommunities.org/id/unitary-authority/peterborough,Peterborough City Council,Children's & Education Services - Education,Secondary,Employees,01/04/2015 00:00,727087,2520,REVENUE,Kent Mentor Support,EDUCATION SUPPORT STAFF
Peterborough,http://opendatacommunities.org/id/unitary-authority/peterborough,Peterborough City Council,Adult Social Care,Older People,Supplies and Services,01/04/2015 00:00,727089,4506.17,REVENUE,Augusta Care Ltd,HOME CARE
Peterborough,http://opendatacommunities.org/id/unitary-authority/peterborough,Peterborough City Council,Adult Social Care,Adult Mental Health,Supplies and Services,01/04/2015 00:00,727093,604,REVENUE,The Regard Partnership Limited,PROFESSIONAL SERVICES
Peterborough,http://opendatacommunities.org/id/unitary-authority/peterborough,Peterborough City Council,Adult Social Care,Older People,Supplies and Services,01/04/2015 00:00,727095,7849.03,REVENUE,Augusta Care Ltd,HOME CARE
Peterborough,http://opendatacommunities.org/id/unitary-authority/peterborough,Peterborough City Council,Adult Social Care,Adult Learning Disabilities,Supplies and Services,01/04/2015 00:00,727141,1016.04,REVENUE,HEREWARD CARE SERVICES LIMITED,RESIDENTIAL CARE
Peterborough,http://opendatacommunities.org/id/unitary-authority/peterborough,Peterborough City Council,Adult Social Care,Adult Learning Disabilities,Supplies and Services,01/04/2015 00:00,727142,1480.6,REVENUE,HEREWARD CARE SERVICES LIMITED,RESIDENTIAL CARE
Peterborough,http://opendatacommunities.org/id/unitary-authority/peterborough,Peterborough City Council,Adult Social Care,Older People,Supplies and Services,01/04/2015 00:00,727143,783.63,REVENUE,Atlas Care Services Ltd,HOME CARE
Peterborough,http://opendatacommunities.org/id/unitary-authority/peterborough,Peterborough City Council,Adult Social Care,Adult Learning Disabilities,Supplies and Services,01/04/2015 00:00,727144,1438.84,REVENUE,HEREWARD CARE SERVICES LIMITED,RESIDENTIAL CARE
Peterborough,http://opendatacommunities.org/id/unitary-authority/peterborough,Peterborough City Council,Adult Social Care,Adult Learning Disabilities,Supplies and Services,01/04/2015 00:00,727146,3187.48,REVENUE,HEREWARD CARE SERVICES LIMITED,RESIDENTIAL CARE
Peterborough,http://opendatacommunities.org/id/unitary-authority/peterborough,Peterborough City Council,Adult Social Care,Adult Learning Disabilities,Supplies and Services,01/04/2015 00:00,727147,2850.64,REVENUE,HEREWARD CARE SERVICES LIMITED,RESIDENTIAL CARE
Peterborough,http://opendatacommunities.org/id/unitary-authority/peterborough,Peterborough City Council,Adult Social Care,Adult Learning Disabilities,Supplies and Services,01/04/2015 00:00,727149,2613.46,REVENUE,HEREWARD CARE SERVICES LIMITED,RESIDENTIAL CARE
Peterborough,http://opendatacommunities.org/id/unitary-authority/peterborough,Peterborough City Council,Adult Social Care,Adult Learning Disabilities,Supplies and Services,01/04/2015 00:00,727150,1550.32,REVENUE,HEREWARD CARE SERVICES LIMITED,RESIDENTIAL CARE
Peterborough,http://opendatacommunities.org/id/unitary-authority/peterborough,Peterborough City Council,Adult Social Care,Adult Learning Disabilities,Supplies and Services,01/04/2015 00:00,727153,2713.63,REVENUE,HEREWARD CARE SERVICES LIMITED,RESIDENTIAL CARE
Peterborough,http://opendatacommunities.org/id/unitary-authority/peterborough,Peterborough City Council,Adult Social Care,Adult Learning Disabilities,Supplies and Services,01/04/2015 00:00,727156,2437,REVENUE,HEREWARD CARE SERVICES LIMITED,RESIDENTIAL CARE
Peterborough,http://opendatacommunities.org/id/unitary-authority/peterborough,Peterborough City Council,Adult Social Care,Older People,Supplies and Services,01/04/2015 00:00,727158,1581.52,REVENUE,HEREWARD CARE SERVICES LIMITED,RESIDENTIAL CARE
Peterborough,http://opendatacommunities.org/id/unitary-authority/peterborough,Peterborough City Council,Adult Social Care,Adult Learning Disabilities,Supplies and Services,01/04/2015 00:00,727160,2283,REVENUE,HEREWARD CARE SERVICES LIMITED,RESIDENTIAL CARE
Peterborough,http://opendatacommunities.org/id/unitary-authority/peterborough,Peterborough City Council,Adult Social Care,Adult Learning Disabilities,Supplies and Services,01/04/2015 00:00,727161,1797.76,REVENUE,HEREWARD CARE SERVICES LIMITED,RESIDENTIAL CARE
Peterborough,http://opendatacommunities.org/id/unitary-authority/peterborough,Peterborough City Council,Adult Social Care,Adult Learning Disabilities,Supplies and Services,01/04/2015 00:00,727168,2109.96,REVENUE,HEREWARD CARE SERVICES LIMITED,RESIDENTIAL CARE
Peterborough,http://opendatacommunities.org/id/unitary-authority/peterborough,Peterborough City Council,Adult Social Care,Adult Learning Disabilities,Supplies and Services,01/04/2015 00:00,727171,2513.08,REVENUE,HEREWARD CARE SERVICES LIMITED,RESIDENTIAL CARE
Peterborough,http://opendatacommunities.org/id/unitary-authority/peterborough,Peterborough City Council,Adult Social Care,Adult Learning Disabilities,Supplies and Services,01/04/2015 00:00,727173,2302.68,REVENUE,HEREWARD CARE SERVICES LIMITED,RESIDENTIAL CARE
Peterborough,http://opendatacommunities.org/id/unitary-authority/peterborough,Peterborough City Council,Adult Social Care,Adult Learning Disabilities,Supplies and Services,01/04/2015 00:00,727174,1438.92,REVENUE,HEREWARD CARE SERVICES LIMITED,RESIDENTIAL CARE
Peterborough,http://opendatacommunities.org/id/unitary-authority/peterborough,Peterborough City Council,Adult Social Care,Adult Learning Disabilities,Supplies and Services,01/04/2015 00:00,727176,2401.92,REVENUE,HEREWARD CARE SERVICES LIMITED,RESIDENTIAL CARE
Peterborough,http://opendatacommunities.org/id/unitary-authority/peterborough,Peterborough City Council,More than one Service Area Category,More than one Service Division,Balance Sheet,01/04/2015 00:00,727177,744244.44,Balance Sheet,Teachers Pensions,PENSIONS
Peterborough,http://opendatacommunities.org/id/unitary-authority/peterborough,Peterborough City Council,Adult Social Care,Adult Learning Disabilities,Supplies and Services,01/04/2015 00:00,727178,3446.16,REVENUE,HEREWARD CARE SERVICES LIMITED,RESIDENTIAL CARE
Peterborough,http://opendatacommunities.org/id/unitary-authority/peterborough,Peterborough City Council,Housing Services,Homelessness,Supplies and Services,01/04/2015 00:00,727184,700,REVENUE,Singh and Sons Property Management Ltd,FINANCIAL ASSISTANCE
Peterborough,http://opendatacommunities.org/id/unitary-authority/peterborough,Peterborough City Council,Housing Services,Homelessness,Supplies and Services,01/04/2015 00:00,727188,1220,REVENUE,Redacted Personal Data,FINANCIAL ASSISTANCE
Peterborough,http://opendatacommunities.org/id/unitary-authority/peterborough,Peterborough City Council,Housing Services,Homelessness,Supplies and Services,01/04/2015 00:00,727192,1340,REVENUE,Woodcock Holmes,FINANCIAL ASSISTANCE
Peterborough,http://opendatacommunities.org/id/unitary-authority/peterborough,Peterborough City Council,Housing Services,Homelessness,Supplies and Services,01/04/2015 00:00,727194,1123,REVENUE,Mohammed Safiq Lettings,FINANCIAL ASSISTANCE
Peterborough,http://opendatacommunities.org/id/unitary-authority/peterborough,Peterborough City Council,More than one Service Area Category,More than one Service Division,More than one Expenses Type,01/04/2015 00:00,727208,4302.9,"Mixture of Capital, Revenue and/or Balance Sheet",Rawheat Heating & Plumbing Eng.,GRANT PAYMENT
Peterborough,http://opendatacommunities.org/id/unitary-authority/peterborough,Peterborough City Council,Children's & Education Services - Children's Social Care,Children Looked After,Supplies and Services,01/04/2015 00:00,727228,517.84,REVENUE,Vivacity Culture and Leisure,EDUCATION EXPENSES
Peterborough,http://opendatacommunities.org/id/unitary-authority/peterborough,Peterborough City Council,More than one Service Area Category,More than one Service Division,Supplies and Services,01/04/2015 00:00,727248,3780,REVENUE,Families First Ltd,PURCHASED SOCIAL CARE SERVICES
Peterborough,http://opendatacommunities.org/id/unitary-authority/peterborough,Peterborough City Council,Corporate & Democratic Core,Democratic Representation & Managemetn,Supplies and Services,01/04/2015 00:00,727281,529.73,REVENUE,Danwood Group Limited,PHOTOCOPIER
Peterborough,http://opendatacommunities.org/id/unitary-authority/peterborough,Peterborough City Council,More than one Service Area Category,More than one Service Division,More than one Expenses Type,01/04/2015 00:00,727287,3533,"Mixture of Capital, Revenue and/or Balance Sheet",Morley Building Services,GRANT PAYMENT
Peterborough,http://opendatacommunities.org/id/unitary-authority/peterborough,Peterborough City Council,More than one Service Area Category,More than one Service Division,More than one Expenses Type,01/04/2015 00:00,727290,1864.8,"Mixture of Capital, Revenue and/or Balance Sheet",Morley Building Services,GRANT PAYMENT
Peterborough,http://opendatacommunities.org/id/unitary-authority/peterborough,Peterborough City Council,More than one Service Area Category,More than one Service Division,More than one Expenses Type,01/04/2015 00:00,727291,3712.5,"Mixture of Capital, Revenue and/or Balance Sheet",Morley Building Services,GRANT PAYMENT
Peterborough,http://opendatacommunities.org/id/unitary-authority/peterborough,Peterborough City Council,More than one Service Area Category,More than one Service Division,More than one Expenses Type,01/04/2015 00:00,727299,3265.26,"Mixture of Capital, Revenue and/or Balance Sheet",Allworks Home Improvements Ltd,GRANT PAYMENT
Peterborough,http://opendatacommunities.org/id/unitary-authority/peterborough,Peterborough City Council,More than one Service Area Category,More than one Service Division,More than one Expenses Type,01/04/2015 00:00,727301,3118.5,"Mixture of Capital, Revenue and/or Balance Sheet",Casbon Building Services,GRANT PAYMENT
Peterborough,http://opendatacommunities.org/id/unitary-authority/peterborough,Peterborough City Council,Capital,Capital,Capital Pending Update to BS,01/04/2015 00:00,727303,7471,CAPITAL,Casbon Building Services,GRANT PAYMENT
Peterborough,http://opendatacommunities.org/id/unitary-authority/peterborough,Peterborough City Council,Corporate & Democratic Core,Democratic Representation & Managemetn,Supplies and Services,01/04/2015 00:00,727304,540,REVENUE,Association of Directors of Adult Social Services (ADASS),CONFERENCES/EVENTS
Peterborough,http://opendatacommunities.org/id/unitary-authority/peterborough,Peterborough City Council,More than one Service Area Category,More than one Service Division,More than one Expenses Type,01/04/2015 00:00,727306,3975,"Mixture of Capital, Revenue and/or Balance Sheet",The Mobility Equipment Company,GRANT PAYMENT
Peterborough,http://opendatacommunities.org/id/unitary-authority/peterborough,Peterborough City Council,Adult Social Care,Social Care Activities,Third Party Payments,08/04/2015 00:00,705795,1600.44,REVENUE,Caritas Recruitment,EXTERNAL TEMPORARY STAFF
Peterborough,http://opendatacommunities.org/id/unitary-authority/peterborough,Peterborough City Council,Adult Social Care,Social Care Activities,Third Party Payments,08/04/2015 00:00,705798,1630.68,REVENUE,Caritas Recruitment,EXTERNAL TEMPORARY STAFF
Peterborough,http://opendatacommunities.org/id/unitary-authority/peterborough,Peterborough City Council,Housing Services,Homelessness,Supplies and Services,08/04/2015 00:00,714652,550,REVENUE,A & M Removals,FINANCIAL ASSISTANCE
Peterborough,http://opendatacommunities.org/id/unitary-authority/peterborough,Peterborough City Council,Children's & Education Services - Children's Social Care,Children Looked After,Supplies and Services - Transfer Payments,08/04/2015 00:00,720740,7517.81,REVENUE,Heath Farm Family Services Ltd,BOARDING - OUT ALLOWANCES
Peterborough,http://opendatacommunities.org/id/unitary-authority/peterborough,Peterborough City Council,Children's & Education Services - Children's Social Care,Children Looked After,Supplies and Services - Transfer Payments,08/04/2015 00:00,720741,6120.33,REVENUE,Heath Farm Family Services Ltd,BOARDING - OUT ALLOWANCES
Peterborough,http://opendatacommunities.org/id/unitary-authority/peterborough,Peterborough City Council,Children's & Education Services - Children's Social Care,Children Looked After,Supplies and Services - Transfer Payments,08/04/2015 00:00,720742,3207.9,REVENUE,Fostering Solutions,BOARDING - OUT ALLOWANCES
Peterborough,http://opendatacommunities.org/id/unitary-authority/peterborough,Peterborough City Council,Children's & Education Services - Children's Social Care,Children Looked After,Supplies and Services - Transfer Payments,08/04/2015 00:00,720743,2886.41,REVENUE,Fostering Solutions,BOARDING - OUT ALLOWANCES
Peterborough,http://opendatacommunities.org/id/unitary-authority/peterborough,Peterborough City Council,Children's & Education Services - Children's Social Care,Children Looked After,Supplies and Services - Transfer Payments,08/04/2015 00:00,720744,3554.46,REVENUE,Fostering Solutions,BOARDING - OUT ALLOWANCES
Peterborough,http://opendatacommunities.org/id/unitary-authority/peterborough,Peterborough City Council,Children's & Education Services - Children's Social Care,Children Looked After,Supplies and Services - Transfer Payments,08/04/2015 00:00,720745,3122.01,REVENUE,Fostering Solutions,BOARDING - OUT ALLOWANCES
Peterborough,http://opendatacommunities.org/id/unitary-authority/peterborough,Peterborough City Council,Deficit/(Surplus) on Trading Undertakings,Trading Account Surpluses & Deficits,Third Party Payments,08/04/2015 00:00,720818,55750.4,REVENUE,Homes & Communities Agency,CONTRIBUTIONS
Peterborough,http://opendatacommunities.org/id/unitary-authority/peterborough,Peterborough City Council,Children's & Education Services - Children's Social Care,Children Looked After,Supplies and Services - Transfer Payments,08/04/2015 00:00,720977,2990.26,REVENUE,Fostering Solutions,BOARDING - OUT ALLOWANCES
Peterborough,http://opendatacommunities.org/id/unitary-authority/peterborough,Peterborough City Council,Children's & Education Services - Children's Social Care,Children Looked After,Supplies and Services - Transfer Payments,08/04/2015 00:00,720978,3207.9,REVENUE,Fostering Solutions,BOARDING - OUT ALLOWANCES
Peterborough,http://opendatacommunities.org/id/unitary-authority/peterborough,Peterborough City Council,Children's & Education Services - Children's Social Care,Children Looked After,Supplies and Services - Transfer Payments,08/04/2015 00:00,720979,3376.74,REVENUE,Fostering Solutions,BOARDING - OUT ALLOWANCES
Peterborough,http://opendatacommunities.org/id/unitary-authority/peterborough,Peterborough City Council,Children's & Education Services - Children's Social Care,Children Looked After,Supplies and Services - Transfer Payments,08/04/2015 00:00,720992,2860.77,REVENUE,Fostering Solutions,BOARDING - OUT ALLOWANCES
Peterborough,http://opendatacommunities.org/id/unitary-authority/peterborough,Peterborough City Council,Children's & Education Services - Children's Social Care,Children Looked After,Supplies and Services - Transfer Payments,08/04/2015 00:00,720993,2990.26,REVENUE,Fostering Solutions,BOARDING - OUT ALLOWANCES
Peterborough,http://opendatacommunities.org/id/unitary-authority/peterborough,Peterborough City Council,Children's & Education Services - Children's Social Care,Children Looked After,Supplies and Services - Transfer Payments,08/04/2015 00:00,720994,3376.74,REVENUE,Fostering Solutions,BOARDING - OUT ALLOWANCES
Peterborough,http://opendatacommunities.org/id/unitary-authority/peterborough,Peterborough City Council,Children's & Education Services - Children's Social Care,Children Looked After,Supplies and Services - Transfer Payments,08/04/2015 00:00,720995,2860.77,REVENUE,Fostering Solutions,BOARDING - OUT ALLOWANCES
Peterborough,http://opendatacommunities.org/id/unitary-authority/peterborough,Peterborough City Council,Children's & Education Services - Children's Social Care,Children Looked After,Supplies and Services - Transfer Payments,08/04/2015 00:00,721063,5156.54,REVENUE,Families First Ltd,BOARDING - OUT ALLOWANCES
Peterborough,http://opendatacommunities.org/id/unitary-authority/peterborough,Peterborough City Council,Adult Social Care,Older People,Supplies and Services,08/04/2015 00:00,721429,2328,REVENUE,Cambridgeshirehomecare,HOME CARE
Peterborough,http://opendatacommunities.org/id/unitary-authority/peterborough,Peterborough City Council,Adult Social Care,Adult Mental Health,Supplies and Services,08/04/2015 00:00,721453,2265.54,REVENUE,GSE Residential Ltd,PROFESSIONAL SERVICES
Peterborough,http://opendatacommunities.org/id/unitary-authority/peterborough,Peterborough City Council,Adult Social Care,Adult Mental Health,Supplies and Services,08/04/2015 00:00,721455,2345.17,REVENUE,GSE Residential Ltd,PROFESSIONAL SERVICES
Peterborough,http://opendatacommunities.org/id/unitary-authority/peterborough,Peterborough City Council,Adult Social Care,Adult Mental Health,Supplies and Services,08/04/2015 00:00,721457,2540.64,REVENUE,GSE Residential Ltd,PROFESSIONAL SERVICES
Peterborough,http://opendatacommunities.org/id/unitary-authority/peterborough,Peterborough City Council,Adult Social Care,Adult Mental Health,Supplies and Services,08/04/2015 00:00,721459,1213.25,REVENUE,GSE Residential Ltd,PROFESSIONAL SERVICES
Peterborough,http://opendatacommunities.org/id/unitary-authority/peterborough,Peterborough City Council,Children's & Education Services - Children's Social Care,Children Looked After,Supplies and Services - Transfer Payments,08/04/2015 00:00,721487,3052.57,REVENUE,Foster Care Associates Ltd FCA,BOARDING - OUT ALLOWANCES
Peterborough,http://opendatacommunities.org/id/unitary-authority/peterborough,Peterborough City Council,Children's & Education Services - Children's Social Care,Children Looked After,Supplies and Services - Transfer Payments,08/04/2015 00:00,721491,2960.99,REVENUE,Foster Care Associates Ltd FCA,BOARDING - OUT ALLOWANCES
Peterborough,http://opendatacommunities.org/id/unitary-authority/peterborough,Peterborough City Council,Children's & Education Services - Children's Social Care,Children Looked After,Supplies and Services - Transfer Payments,08/04/2015 00:00,721492,4096.34,REVENUE,Foster Care Associates Ltd FCA,BOARDING - OUT ALLOWANCES
Peterborough,http://opendatacommunities.org/id/unitary-authority/peterborough,Peterborough City Council,Children's & Education Services - Children's Social Care,Children Looked After,Supplies and Services - Transfer Payments,08/04/2015 00:00,721495,3052.57,REVENUE,Foster Care Associates Ltd FCA,BOARDING - OUT ALLOWANCES
Peterborough,http://opendatacommunities.org/id/unitary-authority/peterborough,Peterborough City Council,Children's & Education Services - Children's Social Care,Children Looked After,Supplies and Services - Transfer Payments,08/04/2015 00:00,721496,3555.7,REVENUE,Foster Care Associates Ltd FCA,BOARDING - OUT ALLOWANCES
Peterborough,http://opendatacommunities.org/id/unitary-authority/peterborough,Peterborough City Council,Children's & Education Services - Children's Social Care,Children Looked After,Supplies and Services - Transfer Payments,08/04/2015 00:00,721500,2907.49,REVENUE,Foster Care Associates Ltd FCA,BOARDING - OUT ALLOWANCES
Peterborough,http://opendatacommunities.org/id/unitary-authority/peterborough,Peterborough City Council,Children's & Education Services - Children's Social Care,Children Looked After,Supplies and Services - Transfer Payments,08/04/2015 00:00,721505,3555.7,REVENUE,Foster Care Associates Ltd FCA,BOARDING - OUT ALLOWANCES
Peterborough,http://opendatacommunities.org/id/unitary-authority/peterborough,Peterborough City Council,Children's & Education Services - Children's Social Care,Children Looked After,Supplies and Services - Transfer Payments,08/04/2015 00:00,721507,4096.34,REVENUE,Foster Care Associates Ltd FCA,BOARDING - OUT ALLOWANCES
Peterborough,http://opendatacommunities.org/id/unitary-authority/peterborough,Peterborough City Council,Children's & Education Services - Children's Social Care,Children Looked After,Supplies and Services - Transfer Payments,08/04/2015 00:00,721513,3449.03,REVENUE,Foster Care Associates Ltd FCA,BOARDING - OUT ALLOWANCES
Peterborough,http://opendatacommunities.org/id/unitary-authority/peterborough,Peterborough City Council,Children's & Education Services - Children's Social Care,Children Looked After,Supplies and Services - Transfer Payments,08/04/2015 00:00,721514,4336.5,REVENUE,Foster Care Associates Ltd FCA,BOARDING - OUT ALLOWANCES
Peterborough,http://opendatacommunities.org/id/unitary-authority/peterborough,Peterborough City Council,Children's & Education Services - Children's Social Care,Children Looked After,Supplies and Services - Transfer Payments,08/04/2015 00:00,721516,4292.69,REVENUE,Foster Care Associates Ltd FCA,BOARDING - OUT ALLOWANCES
Peterborough,http://opendatacommunities.org/id/unitary-authority/peterborough,Peterborough City Council,Children's & Education Services - Children's Social Care,Children Looked After,Supplies and Services - Transfer Payments,08/04/2015 00:00,721517,3555.7,REVENUE,Foster Care Associates Ltd FCA,BOARDING - OUT ALLOWANCES
Peterborough,http://opendatacommunities.org/id/unitary-authority/peterborough,Peterborough City Council,Children's & Education Services - Children's Social Care,Children Looked After,Supplies and Services - Transfer Payments,08/04/2015 00:00,721519,4292.69,REVENUE,Foster Care Associates Ltd FCA,BOARDING - OUT ALLOWANCES
Peterborough,http://opendatacommunities.org/id/unitary-authority/peterborough,Peterborough City Council,Children's & Education Services - Children's Social Care,Children Looked After,Supplies and Services - Transfer Payments,08/04/2015 00:00,721520,3052.57,REVENUE,Foster Care Associates Ltd FCA,BOARDING - OUT ALLOWANCES
Peterborough,http://opendatacommunities.org/id/unitary-authority/peterborough,Peterborough City Council,Corporate & Democratic Core,Corporate Management,Supplies and Services,08/04/2015 00:00,721529,18571.2,REVENUE,PricewaterhouseCoopers LLP,AUDIT FEES
Peterborough,http://opendatacommunities.org/id/unitary-authority/peterborough,Peterborough City Council,Corporate & Democratic Core,Corporate Management,Supplies and Services,08/04/2015 00:00,721530,11808,REVENUE,PricewaterhouseCoopers LLP,AUDIT FEES
Peterborough,http://opendatacommunities.org/id/unitary-authority/peterborough,Peterborough City Council,Children's & Education Services - Children's Social Care,Children Looked After,Supplies and Services - Transfer Payments,08/04/2015 00:00,721532,3484.89,REVENUE,Foster Care Associates Ltd FCA,BOARDING - OUT ALLOWANCES
Peterborough,http://opendatacommunities.org/id/unitary-authority/peterborough,Peterborough City Council,Children's & Education Services - Children's Social Care,Children Looked After,Supplies and Services - Transfer Payments,08/04/2015 00:00,721534,3555.7,REVENUE,Foster Care Associates Ltd FCA,BOARDING - OUT ALLOWANCES
Peterborough,http://opendatacommunities.org/id/unitary-authority/peterborough,Peterborough City Council,Children's & Education Services - Children's Social Care,Children Looked After,Supplies and Services - Transfer Payments,08/04/2015 00:00,721535,3556.01,REVENUE,Foster Care Associates Ltd FCA,BOARDING - OUT ALLOWANCES
Peterborough,http://opendatacommunities.org/id/unitary-authority/peterborough,Peterborough City Council,Children's & Education Services - Children's Social Care,Children Looked After,Supplies and Services - Transfer Payments,08/04/2015 00:00,721536,3556.01,REVENUE,Foster Care Associates Ltd FCA,BOARDING - OUT ALLOWANCES
Peterborough,http://opendatacommunities.org/id/unitary-authority/peterborough,Peterborough City Council,Support Services,Support Services,Supplies and Services,08/04/2015 00:00,721539,526.8,REVENUE,Walters Limited,FURNITURE AND EQUIPMENT PURCHASE
Peterborough,http://opendatacommunities.org/id/unitary-authority/peterborough,Peterborough City Council,Children's & Education Services - Children's Social Care,Children Looked After,Supplies and Services - Transfer Payments,08/04/2015 00:00,721541,3484.89,REVENUE,Foster Care Associates Ltd FCA,BOARDING - OUT ALLOWANCES
Peterborough,http://opendatacommunities.org/id/unitary-authority/peterborough,Peterborough City Council,Children's & Education Services - Children's Social Care,Children Looked After,Supplies and Services - Transfer Payments,08/04/2015 00:00,721543,3556.01,REVENUE,Foster Care Associates Ltd FCA,BOARDING - OUT ALLOWANCES
Peterborough,http://opendatacommunities.org/id/unitary-authority/peterborough,Peterborough City Council,Children's & Education Services - Children's Social Care,Sure Start Children's Centres / Flying Start and Early Years,Employees,08/04/2015 00:00,722174,1440,REVENUE,Herts for Learning Ltd,TRAINING
Peterborough,http://opendatacommunities.org/id/unitary-authority/peterborough,Peterborough City Council,Children's & Education Services - Children's Social Care,Other Children's & Families Services,Employees,08/04/2015 00:00,722191,1465.2,REVENUE,SWP Consulting,EXTERNAL TEMPORARY STAFF
Peterborough,http://opendatacommunities.org/id/unitary-authority/peterborough,Peterborough City Council,Capital,Capital,Capital Pending Update to BS,08/04/2015 00:00,722297,35000,CAPITAL,Thomas Cook  Ltd,GRANT PAYMENT
Peterborough,http://opendatacommunities.org/id/unitary-authority/peterborough,Peterborough City Council,Children's & Education Services - Children's Social Care,Children Looked After,Premises,08/04/2015 00:00,722321,600,REVENUE,Bright Hygiene Manage. (London) Ltd,CLEANING
Peterborough,http://opendatacommunities.org/id/unitary-authority/peterborough,Peterborough City Council,Children's & Education Services - Children's Social Care,Sure Start Children's Centres / Flying Start and Early Years,Supplies and Services,08/04/2015 00:00,722346,13750,REVENUE,Peterborough & Fenland MIND,HIRED SERVICES
Peterborough,http://opendatacommunities.org/id/unitary-authority/peterborough,Peterborough City Council,Children's & Education Services - Children's Social Care,More than one Service Division,Supplies and Services - Transfer Payments,08/04/2015 00:00,722353,12820.71,REVENUE,ABC Care and Education Ltd,BOARDING - OUT ALLOWANCES
Peterborough,http://opendatacommunities.org/id/unitary-authority/peterborough,Peterborough City Council,Capital,Capital,Capital Pending Update to BS,08/04/2015 00:00,722355,8774.4,CAPITAL,Barker Storey Matthews,CONSULTANTS FEES
Peterborough,http://opendatacommunities.org/id/unitary-authority/peterborough,Peterborough City Council,Children's & Education Services - Children's Social Care,Other Children's & Families Services,Supplies and Services,08/04/2015 00:00,722361,33600,REVENUE,Cambs & P'boro NHS Foundation Trust,CONSULTANTS FEES
Peterborough,http://opendatacommunities.org/id/unitary-authority/peterborough,Peterborough City Council,Children's & Education Services - Children's Social Care,Other Children's & Families Services,Employees,08/04/2015 00:00,722368,2112,REVENUE,Eden Brown Ltd,EXTERNAL TEMPORARY STAFF
Peterborough,http://opendatacommunities.org/id/unitary-authority/peterborough,Peterborough City Council,Children's & Education Services - Children's Social Care,Other Children's & Families Services,Employees,08/04/2015 00:00,722369,1003.57,REVENUE,Eden Brown Ltd,EXTERNAL TEMPORARY STAFF
Peterborough,http://opendatacommunities.org/id/unitary-authority/peterborough,Peterborough City Council,Children's & Education Services - Children's Social Care,Other Children's & Families Services,Employees,08/04/2015 00:00,722370,1816.56,REVENUE,Eden Brown Ltd,EXTERNAL TEMPORARY STAFF
Peterborough,http://opendatacommunities.org/id/unitary-authority/peterborough,Peterborough City Council,Children's & Education Services - Children's Social Care,Other Children's & Families Services,Employees,08/04/2015 00:00,722372,1753.38,REVENUE,Eden Brown Ltd,EXTERNAL TEMPORARY STAFF
Peterborough,http://opendatacommunities.org/id/unitary-authority/peterborough,Peterborough City Council,Children's & Education Services - Children's Social Care,Other Children's & Families Services,Employees,08/04/2015 00:00,722374,3506.76,REVENUE,Eden Brown Ltd,EXTERNAL TEMPORARY STAFF
Peterborough,http://opendatacommunities.org/id/unitary-authority/peterborough,Peterborough City Council,Children's & Education Services - Children's Social Care,Other Children's & Families Services,Employees,08/04/2015 00:00,722375,990.61,REVENUE,Eden Brown Ltd,EXTERNAL TEMPORARY STAFF
Peterborough,http://opendatacommunities.org/id/unitary-authority/peterborough,Peterborough City Council,Children's & Education Services - Children's Social Care,Other Children's & Families Services,Employees,08/04/2015 00:00,722377,986.03,REVENUE,Eden Brown Ltd,EXTERNAL TEMPORARY STAFF
Peterborough,http://opendatacommunities.org/id/unitary-authority/peterborough,Peterborough City Council,Children's & Education Services - Children's Social Care,Children Looked After,Supplies and Services - Transfer Payments,08/04/2015 00:00,722379,5766.75,REVENUE,IAS TACT,BOARDING - OUT ALLOWANCES
Peterborough,http://opendatacommunities.org/id/unitary-authority/peterborough,Peterborough City Council,Children's & Education Services - Children's Social Care,Children Looked After,Supplies and Services - Transfer Payments,08/04/2015 00:00,722381,5516.01,REVENUE,IAS TACT,BOARDING - OUT ALLOWANCES
Peterborough,http://opendatacommunities.org/id/unitary-authority/peterborough,Peterborough City Council,Children's & Education Services - Children's Social Care,Children Looked After,Supplies and Services - Transfer Payments,08/04/2015 00:00,722383,2711.63,REVENUE,IAS TACT,BOARDING - OUT ALLOWANCES
Peterborough,http://opendatacommunities.org/id/unitary-authority/peterborough,Peterborough City Council,Children's & Education Services - Children's Social Care,Children Looked After,Supplies and Services - Transfer Payments,08/04/2015 00:00,722385,2834.89,REVENUE,IAS TACT,BOARDING - OUT ALLOWANCES
Peterborough,http://opendatacommunities.org/id/unitary-authority/peterborough,Peterborough City Council,Children's & Education Services - Children's Social Care,Children Looked After,Supplies and Services - Transfer Payments,08/04/2015 00:00,722386,2834.89,REVENUE,IAS TACT,BOARDING - OUT ALLOWANCES
Peterborough,http://opendatacommunities.org/id/unitary-authority/peterborough,Peterborough City Council,Children's & Education Services - Children's Social Care,Children Looked After,Supplies and Services - Transfer Payments,08/04/2015 00:00,722388,2834.89,REVENUE,IAS TACT,BOARDING - OUT ALLOWANCES
Peterborough,http://opendatacommunities.org/id/unitary-authority/peterborough,Peterborough City Council,Children's & Education Services - Children's Social Care,Children Looked After,Supplies and Services - Transfer Payments,08/04/2015 00:00,722390,3109.02,REVENUE,IAS TACT,BOARDING - OUT ALLOWANCES
Peterborough,http://opendatacommunities.org/id/unitary-authority/peterborough,Peterborough City Council,Children's & Education Services - Children's Social Care,Children Looked After,Supplies and Services - Transfer Payments,08/04/2015 00:00,722391,3109.02,REVENUE,IAS TACT,BOARDING - OUT ALLOWANCES
Peterborough,http://opendatacommunities.org/id/unitary-authority/peterborough,Peterborough City Council,Children's & Education Services - Children's Social Care,Children Looked After,Supplies and Services - Transfer Payments,08/04/2015 00:00,722392,3000,REVENUE,IAS TACT,BOARDING - OUT ALLOWANCES
Peterborough,http://opendatacommunities.org/id/unitary-authority/peterborough,Peterborough City Council,Children's & Education Services - Children's Social Care,Services to Young People,Supplies and Services,08/04/2015 00:00,722395,1200,REVENUE,Peterborough Relationship Support,PURCHASED SOCIAL CARE SERVICES
Peterborough,http://opendatacommunities.org/id/unitary-authority/peterborough,Peterborough City Council,Children's & Education Services - Children's Social Care,Safeguarding Children and Young People Services,Employees,08/04/2015 00:00,722424,6000,REVENUE,RJW Associates Ltd,HIRED SERVICES
Peterborough,http://opendatacommunities.org/id/unitary-authority/peterborough,Peterborough City Council,Children's & Education Services - Children's Social Care,Services to Young People,Supplies and Services,08/04/2015 00:00,722433,1685.7,REVENUE,Wrixon Care Services,PURCHASED SOCIAL CARE SERVICES
Peterborough,http://opendatacommunities.org/id/unitary-authority/peterborough,Peterborough City Council,Children's & Education Services - Children's Social Care,Services to Young People,Supplies and Services,08/04/2015 00:00,722434,1659.01,REVENUE,Wrixon Care Services,PURCHASED SOCIAL CARE SERVICES
Peterborough,http://opendatacommunities.org/id/unitary-authority/peterborough,Peterborough City Council,Environmental and Regulatory Services,Regulatory services,Employees,08/04/2015 00:00,722437,1256.1,REVENUE,The Synergy Group,EXTERNAL TEMPORARY STAFF
Peterborough,http://opendatacommunities.org/id/unitary-authority/peterborough,Peterborough City Council,Support Services,Support Services,Employees,08/04/2015 00:00,722438,1901.46,REVENUE,The Synergy Group,EXTERNAL TEMPORARY STAFF
Peterborough,http://opendatacommunities.org/id/unitary-authority/peterborough,Peterborough City Council,Support Services,Support Services,Employees,08/04/2015 00:00,722440,1193.94,REVENUE,The Synergy Group,EXTERNAL TEMPORARY STAFF
Peterborough,http://opendatacommunities.org/id/unitary-authority/peterborough,Peterborough City Council,Support Services,Support Services,Premises,08/04/2015 00:00,722544,1825.18,REVENUE,Beebys Ltd,CLEANING
Peterborough,http://opendatacommunities.org/id/unitary-authority/peterborough,Peterborough City Council,Children's & Education Services - Children's Social Care,Other Children's & Families Services,Employees,08/04/2015 00:00,722574,1687.2,REVENUE,NonStop Recruitment Ltd,EXTERNAL TEMPORARY STAFF
Peterborough,http://opendatacommunities.org/id/unitary-authority/peterborough,Peterborough City Council,Capital,Capital,Capital Pending Update to BS,08/04/2015 00:00,722612,957.78,CAPITAL,Garfield Builders Ltd,BUILDING AND SITE WORKS
Peterborough,http://opendatacommunities.org/id/unitary-authority/peterborough,Peterborough City Council,Capital,Capital,Capital Pending Update to BS,08/04/2015 00:00,722615,6815.58,CAPITAL,Garfield Builders Ltd,BUILDING AND SITE WORKS
Peterborough,http://opendatacommunities.org/id/unitary-authority/peterborough,Peterborough City Council,Adult Social Care,Older People,Supplies and Services,08/04/2015 00:00,722627,-1431.48,REVENUE,THE TUDORS,RESIDENTIAL CARE
Peterborough,http://opendatacommunities.org/id/unitary-authority/peterborough,Peterborough City Council,Capital,Capital,Capital Pending Update to BS,08/04/2015 00:00,722635,815.57,CAPITAL,V Couzens (Stamford) Limited,BUILDING AND SITE WORKS
Peterborough,http://opendatacommunities.org/id/unitary-authority/peterborough,Peterborough City Council,Adult Social Care,Older People,Supplies and Services,08/04/2015 00:00,722671,1155.84,REVENUE,Avery Homes (Nelson) Ltd,RESIDENTIAL CARE
Peterborough,http://opendatacommunities.org/id/unitary-authority/peterborough,Peterborough City Council,Adult Social Care,Older People,Supplies and Services,08/04/2015 00:00,722674,1187.36,REVENUE,Avery Homes (Nelson) Ltd,RESIDENTIAL CARE
Peterborough,http://opendatacommunities.org/id/unitary-authority/peterborough,Peterborough City Council,More than one Service Area Category,More than one Service Division,Supplies and Services,08/04/2015 00:00,722734,600,REVENUE,"Buckle, Mr Jonathan",LEGAL COSTS
Peterborough,http://opendatacommunities.org/id/unitary-authority/peterborough,Peterborough City Council,Adult Social Care,Adult Learning Disabilities,Supplies and Services,08/04/2015 00:00,722790,4275.8,REVENUE,Mencap,HOME CARE
Peterborough,http://opendatacommunities.org/id/unitary-authority/peterborough,Peterborough City Council,Planning Services,Planning Policy,Employees,08/04/2015 00:00,722828,1295,REVENUE,City College Peterborough,TRAINING
Peterborough,http://opendatacommunities.org/id/unitary-authority/peterborough,Peterborough City Council,Children's & Education Services - Children's Social Care,Youth Justice,Employees,08/04/2015 00:00,722850,8006.99,REVENUE,Cambs & P'boro NHS Foundation Trust,HIRED SERVICES
Peterborough,http://opendatacommunities.org/id/unitary-authority/peterborough,Peterborough City Council,Support Services,Support Services,Supplies and Services,08/04/2015 00:00,722853,2805.31,REVENUE,Capita Business Services Ltd,COMPUTER SOFTWARE
Peterborough,http://opendatacommunities.org/id/unitary-authority/peterborough,Peterborough City Council,Children's & Education Services - Children's Social Care,Services to Young People,Supplies and Services,08/04/2015 00:00,722871,1500,REVENUE,Peterborough Relationship Support,PURCHASED SOCIAL CARE SERVICES
Peterborough,http://opendatacommunities.org/id/unitary-authority/peterborough,Peterborough City Council,Children's & Education Services - Children's Social Care,Services to Young People,Supplies and Services,08/04/2015 00:00,722886,2000,REVENUE,Sue Bach Associates Ltd,PURCHASED SOCIAL CARE SERVICES
Peterborough,http://opendatacommunities.org/id/unitary-authority/peterborough,Peterborough City Council,Adult Social Care,Older People,Supplies and Services,08/04/2015 00:00,722887,1466.52,REVENUE,Barchester Wood Grange,RESIDENTIAL CARE
Peterborough,http://opendatacommunities.org/id/unitary-authority/peterborough,Peterborough City Council,Children's & Education Services - Children's Social Care,Other Children's & Families Services,Employees,08/04/2015 00:00,722893,960,REVENUE,In-Trac Training & Consultancy Services,TRAINING
Peterborough,http://opendatacommunities.org/id/unitary-authority/peterborough,Peterborough City Council,Deficit/(Surplus) on Trading Undertakings,Trading Account Surpluses & Deficits,Supplies and Services,08/04/2015 00:00,722910,1125.67,REVENUE,Schaeffler (UK) Ltd,ITEMS FOR RESALE
Peterborough,http://opendatacommunities.org/id/unitary-authority/peterborough,Peterborough City Council,Environmental and Regulatory Services,Flood Defence & Land Drainage,Supplies and Services,08/04/2015 00:00,722914,24450,REVENUE,Hydro-Logic Services LLP,CONTRACTORS
Peterborough,http://opendatacommunities.org/id/unitary-authority/peterborough,Peterborough City Council,Environmental and Regulatory Services,Flood Defence & Land Drainage,Supplies and Services,08/04/2015 00:00,722918,2808,REVENUE,Hydro-Logic Services LLP,CONTRACTORS
Peterborough,http://opendatacommunities.org/id/unitary-authority/peterborough,Peterborough City Council,Adult Social Care,Adult Learning Disabilities,Supplies and Services,08/04/2015 00:00,722920,830,REVENUE,Mencap,HOME CARE
Peterborough,http://opendatacommunities.org/id/unitary-authority/peterborough,Peterborough City Council,Deficit/(Surplus) on Trading Undertakings,Trading Account Surpluses & Deficits,Premises,08/04/2015 00:00,722929,2139.6,REVENUE,Tesam Distribution Ltd,BUILDING MAINTENANCE
Peterborough,http://opendatacommunities.org/id/unitary-authority/peterborough,Peterborough City Council,Children's & Education Services - Education,Other Education and Community Budget,Supplies and Services,08/04/2015 00:00,722938,2575,REVENUE,Worcestershire County Council,EDUCATION EXPENSES
Peterborough,http://opendatacommunities.org/id/unitary-authority/peterborough,Peterborough City Council,Cultural and Related Services,Recreation & Sport,Supplies and Services,08/04/2015 00:00,722942,720,REVENUE,RMIS Ltd,ADMINISTRATION EXPENSES
Peterborough,http://opendatacommunities.org/id/unitary-authority/peterborough,Peterborough City Council,Children's & Education Services - Education,Other Education and Community Budget,Supplies and Services,08/04/2015 00:00,722947,540,REVENUE,Tribal Education Ltd,ICT MAINTENANCE
Peterborough,http://opendatacommunities.org/id/unitary-authority/peterborough,Peterborough City Council,Adult Social Care,Adult Learning Disabilities,Supplies and Services,08/04/2015 00:00,722956,616.4,REVENUE,Thera East Anglia,DAY CARE
Peterborough,http://opendatacommunities.org/id/unitary-authority/peterborough,Peterborough City Council,Adult Social Care,Adult Learning Disabilities,Supplies and Services,08/04/2015 00:00,722959,616.4,REVENUE,Thera East Anglia,DAY CARE
Peterborough,http://opendatacommunities.org/id/unitary-authority/peterborough,Peterborough City Council,Planning Services,Environmental Initiatives,Supplies and Services,08/04/2015 00:00,722980,4646.08,REVENUE,Deloitte LLP,CONSULTANTS FEES
Peterborough,http://opendatacommunities.org/id/unitary-authority/peterborough,Peterborough City Council,Adult Social Care,Information and Early Intervention,Supplies and Services,08/04/2015 00:00,722983,1000,REVENUE,1st Sensory Legion,GRANT PAYMENT
Peterborough,http://opendatacommunities.org/id/unitary-authority/peterborough,Peterborough City Council,Children's & Education Services - Children's Social Care,Other Children's & Families Services,Supplies and Services,08/04/2015 00:00,723030,4050,REVENUE,Aspire Business Solutions,COMPUTER SOFTWARE
Peterborough,http://opendatacommunities.org/id/unitary-authority/peterborough,Peterborough City Council,Children's & Education Services - Children's Social Care,Safeguarding Children and Young People Services,Supplies and Services,08/04/2015 00:00,723035,3270.02,REVENUE,Malcolm A Ross,CONSULTANTS FEES
Peterborough,http://opendatacommunities.org/id/unitary-authority/peterborough,Peterborough City Council,Planning Services,Environmental Initiatives,Supplies and Services,08/04/2015 00:00,723038,11841.92,REVENUE,Deloitte LLP,CONSULTANTS FEES
Peterborough,http://opendatacommunities.org/id/unitary-authority/peterborough,Peterborough City Council,Planning Services,Environmental Initiatives,Supplies and Services,08/04/2015 00:00,723039,116144.2,REVENUE,Deloitte LLP,CONSULTANTS FEES
Peterborough,http://opendatacommunities.org/id/unitary-authority/peterborough,Peterborough City Council,Children's & Education Services - Children's Social Care,Other Children's & Families Services,Supplies and Services,08/04/2015 00:00,723042,23040,REVENUE,Aspire Business Solutions,COMPUTER SOFTWARE
Peterborough,http://opendatacommunities.org/id/unitary-authority/peterborough,Peterborough City Council,Planning Services,Environmental Initiatives,Supplies and Services,08/04/2015 00:00,723045,5250.65,REVENUE,Deloitte LLP,CONSULTANTS FEES
Peterborough,http://opendatacommunities.org/id/unitary-authority/peterborough,Peterborough City Council,Capital,Capital,Capital Pending Update to BS,08/04/2015 00:00,723047,9104.87,CAPITAL,Deloitte LLP,CONSULTANTS FEES
Peterborough,http://opendatacommunities.org/id/unitary-authority/peterborough,Peterborough City Council,Capital,Capital,Capital Pending Update to BS,08/04/2015 00:00,723048,9503.52,CAPITAL,IIC by Education (P'boro) Ltd,BUILDING AND SITE WORKS
Peterborough,http://opendatacommunities.org/id/unitary-authority/peterborough,Peterborough City Council,Planning Services,Environmental Initiatives,Supplies and Services,08/04/2015 00:00,723050,41218,REVENUE,Deloitte LLP,CONSULTANTS FEES
Peterborough,http://opendatacommunities.org/id/unitary-authority/peterborough,Peterborough City Council,Planning Services,Environmental Initiatives,Supplies and Services,08/04/2015 00:00,723052,3961,REVENUE,Deloitte LLP,CONSULTANTS FEES
Peterborough,http://opendatacommunities.org/id/unitary-authority/peterborough,Peterborough City Council,Capital,Capital,Capital Pending Update to BS,08/04/2015 00:00,723054,4834.73,CAPITAL,Deloitte LLP,CONSULTANTS FEES
Peterborough,http://opendatacommunities.org/id/unitary-authority/peterborough,Peterborough City Council,Highways and Transport Services,Street Lighting,Supplies and Services,08/04/2015 00:00,723062,878.03,REVENUE,UK Power Networks (operations) Ltd,CONTRACTORS
Peterborough,http://opendatacommunities.org/id/unitary-authority/peterborough,Peterborough City Council,Adult Social Care,Adult Learning Disabilities,Supplies and Services,08/04/2015 00:00,723419,5585.04,REVENUE,Redacted Personal Data,ADULT SOCIAL CARE DIRECT PAYMENT
Peterborough,http://opendatacommunities.org/id/unitary-authority/peterborough,Peterborough City Council,Support Services,Support Services,Supplies and Services,08/04/2015 00:00,723555,3224.4,REVENUE,Buchanan Computing,COMPUTER HARDWARE
Peterborough,http://opendatacommunities.org/id/unitary-authority/peterborough,Peterborough City Council,Capital,Capital,Capital Pending Update to BS,08/04/2015 00:00,723557,12726,CAPITAL,UK Power Networks (operations) Ltd,INFRASTRUCTURE
Peterborough,http://opendatacommunities.org/id/unitary-authority/peterborough,Peterborough City Council,Capital,Capital,Capital Pending Update to BS,08/04/2015 00:00,723560,5400,CAPITAL,The PCC for Bedfordshire (Police & Crime Commissioner),PROFESSIONAL/LEGAL FEES
Peterborough,http://opendatacommunities.org/id/unitary-authority/peterborough,Peterborough City Council,Public Health,Children 5-19 Public Health Programme,Third Party Payments,08/04/2015 00:00,723563,672782.5,REVENUE,Cambs & P'boro NHS Foundation Trust,THIRD PARTY PAYMENTS - CONTRACT
Peterborough,http://opendatacommunities.org/id/unitary-authority/peterborough,Peterborough City Council,Support Services,Support Services,Employees,08/04/2015 00:00,723573,1629.12,REVENUE,The Synergy Group,EXTERNAL TEMPORARY STAFF
Peterborough,http://opendatacommunities.org/id/unitary-authority/peterborough,Peterborough City Council,More than one Service Area Category,More than one Service Division,Supplies and Services,08/04/2015 00:00,723578,1383.3,REVENUE,Whistl London Ltd,POSTAGE
Peterborough,http://opendatacommunities.org/id/unitary-authority/peterborough,Peterborough City Council,More than one Service Area Category,More than one Service Division,Supplies and Services,08/04/2015 00:00,723579,3949.5,REVENUE,Whistl London Ltd,POSTAGE
Peterborough,http://opendatacommunities.org/id/unitary-authority/peterborough,Peterborough City Council,Planning Services,Planning Policy,Supplies and Services,08/04/2015 00:00,723617,1590,REVENUE,Haymarket Media Group,PUBLICATIONS
Peterborough,http://opendatacommunities.org/id/unitary-authority/peterborough,Peterborough City Council,Support Services,Support Services,Employees,08/04/2015 00:00,723624,1350,REVENUE,Sellick Partnership Group Limited,EXTERNAL TEMPORARY STAFF
Peterborough,http://opendatacommunities.org/id/unitary-authority/peterborough,Peterborough City Council,Environmental and Regulatory Services,"Cemetery, Crematorium & Mortuary Services",Premises,08/04/2015 00:00,723634,906.9,REVENUE,Facultatieve Technologies Ltd,CREMATORS
Peterborough,http://opendatacommunities.org/id/unitary-authority/peterborough,Peterborough City Council,Highways and Transport Services,Traffic management & Road Safety,Supplies and Services,08/04/2015 00:00,723636,673.35,REVENUE,Johnston Press Midlands Division,ADVERTISING
Peterborough,http://opendatacommunities.org/id/unitary-authority/peterborough,Peterborough City Council,Environmental and Regulatory Services,Regulatory services,Supplies and Services,08/04/2015 00:00,723641,960,REVENUE,Campbell Associates Ltd,EQUIPMENT
Peterborough,http://opendatacommunities.org/id/unitary-authority/peterborough,Peterborough City Council,Children's & Education Services - Education,Other Education and Community Budget,Supplies and Services,08/04/2015 00:00,723642,720,REVENUE,Top Class Tutors,EDUCATION EXPENSES
Peterborough,http://opendatacommunities.org/id/unitary-authority/peterborough,Peterborough City Council,Children's & Education Services - Education,Other Education and Community Budget,Supplies and Services,08/04/2015 00:00,723643,720,REVENUE,Top Class Tutors,EDUCATION EXPENSES
Peterborough,http://opendatacommunities.org/id/unitary-authority/peterborough,Peterborough City Council,Children's & Education Services - Education,Other Education and Community Budget,Employees,08/04/2015 00:00,723644,4138.5,REVENUE,Top Class Tutors,SUPPLY TEACHERS
Peterborough,http://opendatacommunities.org/id/unitary-authority/peterborough,Peterborough City Council,Adult Social Care,Older People,Supplies and Services,08/04/2015 00:00,723645,1014.68,REVENUE,ABBEYGATE REST HOME,RESIDENTIAL CARE
Peterborough,http://opendatacommunities.org/id/unitary-authority/peterborough,Peterborough City Council,Support Services,Support Services,Supplies and Services,08/04/2015 00:00,723651,876,REVENUE,The Change & Development Co Ltd,COURSE FEES
Peterborough,http://opendatacommunities.org/id/unitary-authority/peterborough,Peterborough City Council,Children's & Education Services - Children's Social Care,Services to Young People,Supplies and Services,08/04/2015 00:00,723660,7800,REVENUE,BDP Social Care Ltd,PURCHASED SOCIAL CARE SERVICES
Peterborough,http://opendatacommunities.org/id/unitary-authority/peterborough,Peterborough City Council,Support Services,Support Services,Supplies and Services,08/04/2015 00:00,723666,20129.59,REVENUE,Danwood Group Limited,PRINTING
